Department Family,Entity,Date,Expense Type,Expense Area,Supplier,Transaction Number,Amount,VAT Registration Number
Department of Health,East Sussex Hospitals NHS Trust,10/04/2013,SLA KENT COMM HEALTH NHS TRUST,Planned Care,KENT COMMUNITY HEALTH NHS TRUST,0000134920,3499.20,
Department of Health,East Sussex Hospitals NHS Trust,10/04/2013,SLA KENT COMM HEALTH NHS TRUST,Planned Care,KENT COMMUNITY HEALTH NHS TRUST,0000134920,5248.80,
Department of Health,East Sussex Hospitals NHS Trust,10/04/2013,SLA KENT COMM HEALTH NHS TRUST,Planned Care,KENT COMMUNITY HEALTH NHS TRUST,0000135108,583.20,
Department of Health,East Sussex Hospitals NHS Trust,10/04/2013,SLA KENT COMM HEALTH NHS TRUST,Planned Care,KENT COMMUNITY HEALTH NHS TRUST,0000135108,874.80,
Department of Health,East Sussex Hospitals NHS Trust,10/04/2013,SLA KENT COMM HEALTH NHS TRUST,Planned Care,KENT COMMUNITY HEALTH NHS TRUST,0000135359,583.20,
Department of Health,East Sussex Hospitals NHS Trust,10/04/2013,SLA KENT COMM HEALTH NHS TRUST,Planned Care,KENT COMMUNITY HEALTH NHS TRUST,0000135359,874.80,
Department of Health,East Sussex Hospitals NHS Trust,10/04/2013,SLA KENT COMM HEALTH NHS TRUST,Planned Care,KENT COMMUNITY HEALTH NHS TRUST,0000135611,583.20,
Department of Health,East Sussex Hospitals NHS Trust,10/04/2013,SLA KENT COMM HEALTH NHS TRUST,Planned Care,KENT COMMUNITY HEALTH NHS TRUST,0000135611,874.80,
Department of Health,East Sussex Hospitals NHS Trust,10/04/2013,SLA KENT COMM HEALTH NHS TRUST,Planned Care,KENT COMMUNITY HEALTH NHS TRUST,0000135951,583.20,
Department of Health,East Sussex Hospitals NHS Trust,10/04/2013,SLA KENT COMM HEALTH NHS TRUST,Planned Care,KENT COMMUNITY HEALTH NHS TRUST,0000135951,874.80,
Department of Health,East Sussex Hospitals NHS Trust,10/04/2013,NHS SUPPLY CHAIN CREDITORS,Cross Site,NHS SUPPLY CHAIN,0000136330,212271.30,
Department of Health,East Sussex Hospitals NHS Trust,10/04/2013,AGENCY - GENERAL GRADES,Commercial,INTERWORK RECRUITMENT CONSULTANTS LTD,0000284909,895.53,
Department of Health,East Sussex Hospitals NHS Trust,10/04/2013,AGENCY - GENERAL GRADES,Commercial,INTERWORK RECRUITMENT CONSULTANTS LTD,0000285449,894.13,
Department of Health,East Sussex Hospitals NHS Trust,10/04/2013,AGENCY - GENERAL GRADES,Commercial,INTERWORK RECRUITMENT CONSULTANTS LTD,0000285591,780.77,
Department of Health,East Sussex Hospitals NHS Trust,10/04/2013,AGENCY - GENERAL GRADES,Commercial,INTERWORK RECRUITMENT CONSULTANTS LTD,0000285688,1263.65,
Department of Health,East Sussex Hospitals NHS Trust,10/04/2013,AGENCY STAFF GRADE,Urgent Care,TOTAL ASSIST RECRUITMENT LTD,0000286201,2632.50
Department of Health,East Sussex Hospitals NHS Trust,10/04/2013,AGENCY STAFF GRADE,Urgent Care,TOTAL ASSIST RECRUITMENT LTD,0000286202,607.50
Department of Health,East Sussex Hospitals NHS Trust,10/04/2013,AGENCY CONSULTANT,Urgent Care,TOTAL ASSIST RECRUITMENT LTD,0000286203,621.00
Department of Health,East Sussex Hospitals NHS Trust,10/04/2013,AGENCY CONSULTANT,Urgent Care,TLC - THE LOCUM CONSULTANCY,0000286272,1084.96
Department of Health,East Sussex Hospitals NHS Trust,10/04/2013,AGENCY CONSULTANT,Planned Care,TLC - THE LOCUM CONSULTANCY,0000286273,4752.00
Department of Health,East Sussex Hospitals NHS Trust,10/04/2013,AGENCY SPECIALIST REG,Urgent Care,PERTEMPS NETWORK MEDICAL LIMITED,0000286286,842.40
Department of Health,East Sussex Hospitals NHS Trust,10/04/2013,AGENCY SPECIALIST REG,Urgent Care,PERTEMPS NETWORK MEDICAL LIMITED,0000286312,2548.80
Department of Health,East Sussex Hospitals NHS Trust,10/04/2013,AGENCY - GENERAL GRADES,Commercial,INTERWORK RECRUITMENT CONSULTANTS LTD,0000286329,848.06
Department of Health,East Sussex Hospitals NHS Trust,10/04/2013,AGENCY NURSE - QUALIFIED,Integrated Care,TEAM24 LTD,0000286365,536.32
Department of Health,East Sussex Hospitals NHS Trust,10/04/2013,AGENCY NURSE - QUALIFIED,Integrated Care,TEAM24 LTD,0000286366,2261.56
Department of Health,East Sussex Hospitals NHS Trust,10/04/2013,AGENCY NURSE - QUALIFIED,Integrated Care,TEAM24 LTD,0000286367,596.97
Department of Health,East Sussex Hospitals NHS Trust,10/04/2013,AGENCY NURSE - QUALIFIED,Integrated Care,TEAM24 LTD,0000286368,1058.78
Department of Health,East Sussex Hospitals NHS Trust,10/04/2013,AGENCY NURSE - QUALIFIED,Integrated Care,TEAM24 LTD,0000286375,978.68
Department of Health,East Sussex Hospitals NHS Trust,10/04/2013,AGENCY NURSE - QUALIFIED,Integrated Care,TEAM24 LTD,0000286376,978.56
Department of Health,East Sussex Hospitals NHS Trust,10/04/2013,AGENCY - GENERAL GRADES,Commercial,INTERWORK RECRUITMENT CONSULTANTS LTD,0000286446,655.31
Department of Health,East Sussex Hospitals NHS Trust,10/04/2013,TECHNICAL OFFICER BAND 7,Integrated Care,ORCHARD MEDICAL RECRUITMENT,0000286529,1721.54
Department of Health,East Sussex Hospitals NHS Trust,10/04/2013,AGENCY SPECIALIST REG,Urgent Care,TOTAL ASSIST RECRUITMENT LTD,0000286552,3740.14
Department of Health,East Sussex Hospitals NHS Trust,10/04/2013,AGENCY SPECIALIST REG,Urgent Care,TOTAL ASSIST RECRUITMENT LTD,0000286553,4170.04
Department of Health,East Sussex Hospitals NHS Trust,10/04/2013,AGENCY STAFF GRADE,Urgent Care,TOTAL ASSIST RECRUITMENT LTD,0000286554,1539.00
Department of Health,East Sussex Hospitals NHS Trust,10/04/2013,AGENCY SPECIALIST REG,Urgent Care,TOTAL ASSIST RECRUITMENT LTD,0000286701,687.84
Department of Health,East Sussex Hospitals NHS Trust,10/04/2013,AGENCY NURSE - QUALIFIED,Urgent Care,AMBITION,0000286756,543.38
Department of Health,East Sussex Hospitals NHS Trust,10/04/2013,AGENCY SPECIALIST REG,Urgent Care,MEDACS HEALTHCARE SERVICES LTD,0000286833,3958.58
Department of Health,East Sussex Hospitals NHS Trust,10/04/2013,AGENCY SPECIALIST REG,Urgent Care,MEDACS HEALTHCARE SERVICES LTD,0000286835,5375.46
Department of Health,East Sussex Hospitals NHS Trust,10/04/2013,AGENCY SPECIALIST REG,Urgent Care,MEDACS HEALTHCARE SERVICES LTD,0000287099,3122.56
Department of Health,East Sussex Hospitals NHS Trust,10/04/2013,AGENCY SPECIALIST REG,Urgent Care,MEDACS HEALTHCARE SERVICES LTD,0000287101,2174.81
Department of Health,East Sussex Hospitals NHS Trust,10/04/2013,AGENCY ADMIN & CLERICAL,Urgent Care,JOSEPHINE SAMMONS LTD,0000287123,428.88
Department of Health,East Sussex Hospitals NHS Trust,10/04/2013,AGENCY NURSE - QUALIFIED,Urgent Care,AMBITION,0000287151,827.09
Department of Health,East Sussex Hospitals NHS Trust,10/04/2013,AGENCY NURSE - QUALIFIED,Urgent Care,AMBITION,0000287152,813.83
Department of Health,East Sussex Hospitals NHS Trust,10/04/2013,AGENCY ANCILLARY,Commercial,INTERWORK RECRUITMENT CONSULTANTS LTD,0000287171,761.47
Department of Health,East Sussex Hospitals NHS Trust,10/04/2013,AGENCY ANCILLARY,Commercial,INTERWORK RECRUITMENT CONSULTANTS LTD,0000287174,613.49
Department of Health,East Sussex Hospitals NHS Trust,10/04/2013,AGENCY ANCILLARY,Commercial,INTERWORK RECRUITMENT CONSULTANTS LTD,0000287182,952.39
Department of Health,East Sussex Hospitals NHS Trust,10/04/2013,AGENCY - GENERAL GRADES,Commercial,INTERWORK RECRUITMENT CONSULTANTS LTD,0000287184,655.01
Department of Health,East Sussex Hospitals NHS Trust,10/04/2013,AGENCY SPECIALIST REG,Integrated Care,MEDACS HEALTHCARE SERVICES LTD,0000287192,828.38
Department of Health,East Sussex Hospitals NHS Trust,10/04/2013,AGENCY NURSE - QUALIFIED,Urgent Care,PREMIERCARE NETWORK LTD,0000287197,1083.71
Department of Health,East Sussex Hospitals NHS Trust,10/04/2013,AGENCY SPECIALIST REG,Integrated Care,MEDACS HEALTHCARE SERVICES LTD,0000287198,1882.36
Department of Health,East Sussex Hospitals NHS Trust,10/04/2013,AGENCY SPECIALIST REG,Integrated Care,MEDACS HEALTHCARE SERVICES LTD,0000287199,1882.36
Department of Health,East Sussex Hospitals NHS Trust,10/04/2013,AGENCY PHYSIOTHERAPY STAFF,Urgent Care,REAL STAFFING LTD,0000287419,931.51
Department of Health,East Sussex Hospitals NHS Trust,10/04/2013,AGENCY ANCILLARY,Commercial,INTERWORK RECRUITMENT CONSULTANTS LTD,0000287435,1220.10
Department of Health,East Sussex Hospitals NHS Trust,10/04/2013,AGENCY ANCILLARY,Commercial,INTERWORK RECRUITMENT CONSULTANTS LTD,0000287437,884.34
Department of Health,East Sussex Hospitals NHS Trust,10/04/2013,COLSAN,Integrated Care,COLSAN INSTRUMENT SERVICES,0000361243,779.05
Department of Health,East Sussex Hospitals NHS Trust,10/04/2013,M&S EQUIPMENT - OTHER,Planned Care,CJS DIRECT LTD,0000361344,5633.72
Department of Health,East Sussex Hospitals NHS Trust,10/04/2013,CAPITAL EXPENDITURE,Other Central,AVINNY CONSULTING ENGINEERS,0000361429,2000.00
Department of Health,East Sussex Hospitals NHS Trust,10/04/2013,CAPITAL EXPENDITURE,Other Central,BOOKER & BEST LIMITED,0000361430,23539.68
Department of Health,East Sussex Hospitals NHS Trust,10/04/2013,CAPITAL EXPENDITURE,Other Central,BOOKER & BEST LIMITED,0000361431,76372.88
Department of Health,East Sussex Hospitals NHS Trust,10/04/2013,PROFESSIONAL FEES,Commercial,JOHN HARRATT,0000361432,1250.00
Department of Health,East Sussex Hospitals NHS Trust,10/04/2013,PROFESSIONAL FEES,Commercial,NIGEL HOLLAND,0000361433,3056.00
Department of Health,East Sussex Hospitals NHS Trust,10/04/2013,CONTRACT ENGINEERING MAINT,Commercial,COLSAN INSTRUMENT SERVICES,0000621728,1145.00
Department of Health,East Sussex Hospitals NHS Trust,10/04/2013,PROSTHESES-KNEES,Planned Care,BIOMET UK HEALTHCARE LTD,0000895578,3722.70
Department of Health,East Sussex Hospitals NHS Trust,10/04/2013,NATIONAL JOINT REGISTRY LEVY,Planned Care,BIOMET UK HEALTHCARE LTD,0000895578,40.01
Department of Health,East Sussex Hospitals NHS Trust,10/04/2013,PRE-STERILE COMMERCIAL PACKS,Planned Care,MOLNLYCKE HEALTHCARE,0000895591,368.01
Department of Health,East Sussex Hospitals NHS Trust,10/04/2013,DISPOSABLE DRAPES,Planned Care,MOLNLYCKE HEALTHCARE,0000895591,801.05
Department of Health,East Sussex Hospitals NHS Trust,10/04/2013,PROSTHESES-KNEES,Planned Care,BIOMET UK HEALTHCARE LTD,0000895640,5482.68
Department of Health,East Sussex Hospitals NHS Trust,10/04/2013,NATIONAL JOINT REGISTRY LEVY,Planned Care,BIOMET UK HEALTHCARE LTD,0000895640,20.00
Department of Health,East Sussex Hospitals NHS Trust,10/04/2013,PROSTHESES-HIP,Planned Care,STRYKER UK,0000895757,2325.46
Department of Health,East Sussex Hospitals NHS Trust,10/04/2013,PROSTHESES-OTHER,Planned Care,STRYKER UK,0000895757,248.64
Department of Health,East Sussex Hospitals NHS Trust,10/04/2013,PROSTHESES-HIP,Planned Care,STRYKER UK,0000895842,1374.24
Department of Health,East Sussex Hospitals NHS Trust,10/04/2013,NATIONAL JOINT REGISTRY LEVY,Planned Care,STRYKER UK,0000895842,20.00
Department of Health,East Sussex Hospitals NHS Trust,10/04/2013,PROSTHESES-HIP,Planned Care,STRYKER UK,0000895867,544.32
Department of Health,East Sussex Hospitals NHS Trust,10/04/2013,PROSTHESES-HIP,Planned Care,STRYKER UK,0000895910,1555.85
Department of Health,East Sussex Hospitals NHS Trust,10/04/2013,NATIONAL JOINT REGISTRY LEVY,Planned Care,STRYKER UK,0000895910,20.00
Department of Health,East Sussex Hospitals NHS Trust,10/04/2013,PROSTHESES-KNEES,Planned Care,BIOMET UK HEALTHCARE LTD,0000895911,655.50
Department of Health,East Sussex Hospitals NHS Trust,10/04/2013,PROSTHESES-KNEES,Planned Care,BIOMET UK HEALTHCARE LTD,0000895999,617.76
Department of Health,East Sussex Hospitals NHS Trust,10/04/2013,NATIONAL JOINT REGISTRY LEVY,Planned Care,BIOMET UK HEALTHCARE LTD,0000895999,20.00
Department of Health,East Sussex Hospitals NHS Trust,10/04/2013,PROSTHESES-HIP,Planned Care,JOINT REPLACEMENT INSTRUMENTATION  LTD,0000896000,855.60
Department of Health,East Sussex Hospitals NHS Trust,10/04/2013,PROSTHESES-HIP,Planned Care,JOINT REPLACEMENT INSTRUMENTATION  LTD,0000896016,804.00
Department of Health,East Sussex Hospitals NHS Trust,10/04/2013,PROSTHESES-HIP,Planned Care,JOINT REPLACEMENT INSTRUMENTATION  LTD,0000896121,553.20
Department of Health,East Sussex Hospitals NHS Trust,10/04/2013,PROSTHESES-HIP,Planned Care,JOINT REPLACEMENT INSTRUMENTATION  LTD,0000896122,553.20
Department of Health,East Sussex Hospitals NHS Trust,10/04/2013,PROSTHESES-HIP,Planned Care,JOINT REPLACEMENT INSTRUMENTATION  LTD,0000896177,553.20
Department of Health,East Sussex Hospitals NHS Trust,10/04/2013,M&S GENERAL SUPPLIES-OTHER,Planned Care,ARTHROCARE UK LIMITED,0000896193,567.00
Department of Health,East Sussex Hospitals NHS Trust,10/04/2013,PROSTHESES-HIP,Planned Care,JOINT REPLACEMENT INSTRUMENTATION  LTD,0000896201,553.20
Department of Health,East Sussex Hospitals NHS Trust,10/04/2013,M&S GENERAL SUPPLIES-OTHER,Planned Care,BIOMET UK HEALTHCARE LTD,0000896524,1167.20
Department of Health,East Sussex Hospitals NHS Trust,10/04/2013,STOCK-ASCRIBE CONQUEST,Pharmacy Stock,ALLIANCE HEALTHCARE (DISTRIBUTION) LTD,0001207402,2646.58
Department of Health,East Sussex Hospitals NHS Trust,10/04/2013,STOCK-ASCRIBE CONQUEST,Pharmacy Stock,ALLIANCE HEALTHCARE (DISTRIBUTION) LTD,0001207453,3331.02
Department of Health,East Sussex Hospitals NHS Trust,10/04/2013,STOCK-ASCRIBE CONQUEST,Pharmacy Stock,ROCHE PRODUCTS LTD,0001207505,26378.94
Department of Health,East Sussex Hospitals NHS Trust,10/04/2013,STOCK-ASCRIBE CONQUEST,Pharmacy Stock,ROCHE PRODUCTS LTD,0001207524,3910.22
Department of Health,East Sussex Hospitals NHS Trust,10/04/2013,STOCK-ASCRIBE CONQUEST,Pharmacy Stock,NOVARTIS PHARMACEUTICALS UK LTD,0001207534,22728.60
Department of Health,East Sussex Hospitals NHS Trust,10/04/2013,STOCK-ASCRIBE CONQUEST,Pharmacy Stock,NOVARTIS PHARMACEUTICALS UK LTD,0001207546,3701.22
Department of Health,East Sussex Hospitals NHS Trust,10/04/2013,STOCK-ASCRIBE CONQUEST,Pharmacy Stock,FRESENIUS LTD,0001207565,505.44
Department of Health,East Sussex Hospitals NHS Trust,10/04/2013,STOCK-ASCRIBE CONQUEST,Pharmacy Stock,NOVARTIS PHARMACEUTICALS UK LTD,0001207578,47522.58
Department of Health,East Sussex Hospitals NHS Trust,10/04/2013,STOCK-ASCRIBE CONQUEST,Pharmacy Stock,ROCHE PRODUCTS LTD,0001207579,6128.78
Department of Health,East Sussex Hospitals NHS Trust,10/04/2013,STOCK-ASCRIBE CONQUEST,Pharmacy Stock,ROCHE PRODUCTS LTD,0001207580,1112.28
Department of Health,East Sussex Hospitals NHS Trust,10/04/2013,STOCK-ASCRIBE CONQUEST,Pharmacy Stock,NOVARTIS PHARMACEUTICALS UK LTD,0001207581,2217.86
Department of Health,East Sussex Hospitals NHS Trust,10/04/2013,STOCK-ASCRIBE CONQUEST,Pharmacy Stock,NOVARTIS PHARMACEUTICALS UK LTD,0001207595,2220.10
Department of Health,East Sussex Hospitals NHS Trust,10/04/2013,STOCK-ASCRIBE CONQUEST,Pharmacy Stock,ROCHE PRODUCTS LTD,0001207611,5310.70
Department of Health,East Sussex Hospitals NHS Trust,10/04/2013,STOCK-ASCRIBE CONQUEST,Pharmacy Stock,ROCHE PRODUCTS LTD,0001207612,4191.00
Department of Health,East Sussex Hospitals NHS Trust,10/04/2013,STOCK-ASCRIBE CONQUEST,Pharmacy Stock,AAH PHARMACEUTICALS LTD,0001207644,2071.56
Department of Health,East Sussex Hospitals NHS Trust,10/04/2013,STOCK-ASCRIBE CONQUEST,Pharmacy Stock,AAH PHARMACEUTICALS LTD,0001207840,2359.37
Department of Health,East Sussex Hospitals NHS Trust,10/04/2013,STOCK-ASCRIBE CONQUEST,Pharmacy Stock,ALLIANCE HEALTHCARE (DISTRIBUTION) LTD,0001207889,2803.82
Department of Health,East Sussex Hospitals NHS Trust,10/04/2013,STOCK-ASCRIBE CONQUEST,Pharmacy Stock,ELI LILLY & CO LTD,0001207998,4800.00
Department of Health,East Sussex Hospitals NHS Trust,10/04/2013,STOCK-ASCRIBE CONQUEST,Pharmacy Stock,ALCURA UK LTD,0001208058,715.00
Department of Health,East Sussex Hospitals NHS Trust,10/04/2013,STOCK-ASCRIBE CONQUEST,Pharmacy Stock,ALCURA UK LTD,0001208059,704.28
Department of Health,East Sussex Hospitals NHS Trust,10/04/2013,STOCK-ASCRIBE CONQUEST,Pharmacy Stock,ALCURA UK LTD,0001208060,704.28
Department of Health,East Sussex Hospitals NHS Trust,10/04/2013,STOCK-ASCRIBE CONQUEST,Pharmacy Stock,ALCURA UK LTD,0001208061,715.00
Department of Health,East Sussex Hospitals NHS Trust,10/04/2013,STOCK-ASCRIBE CONQUEST,Pharmacy Stock,ALCURA UK LTD,0001208062,704.28
Department of Health,East Sussex Hospitals NHS Trust,10/04/2013,STOCK-ASCRIBE CONQUEST,Pharmacy Stock,ALCURA UK LTD,0001208063,704.28
Department of Health,East Sussex Hospitals NHS Trust,10/04/2013,STOCK-ASCRIBE CONQUEST,Pharmacy Stock,ALCURA UK LTD,0001208064,715.00
Department of Health,East Sussex Hospitals NHS Trust,10/04/2013,STOCK-ASCRIBE CONQUEST,Pharmacy Stock,ALCURA UK LTD,0001208065,715.00
Department of Health,East Sussex Hospitals NHS Trust,10/04/2013,STOCK-ASCRIBE CONQUEST,Pharmacy Stock,ALCURA UK LTD,0001208068,704.28
Department of Health,East Sussex Hospitals NHS Trust,10/04/2013,STOCK-ASCRIBE CONQUEST,Pharmacy Stock,ALCURA UK LTD,0001208069,715.00
Department of Health,East Sussex Hospitals NHS Trust,10/04/2013,STOCK-ASCRIBE CONQUEST,Pharmacy Stock,ALCURA UK LTD,0001208072,1408.56
Department of Health,East Sussex Hospitals NHS Trust,10/04/2013,STOCK-ASCRIBE CONQUEST,Pharmacy Stock,ALCURA UK LTD,0001208073,704.28
Department of Health,East Sussex Hospitals NHS Trust,10/04/2013,STOCK-ASCRIBE CONQUEST,Pharmacy Stock,ALCURA UK LTD,0001208076,704.28
Department of Health,East Sussex Hospitals NHS Trust,10/04/2013,STOCK-ASCRIBE CONQUEST,Pharmacy Stock,ALCURA UK LTD,0001208077,715.00
Department of Health,East Sussex Hospitals NHS Trust,10/04/2013,STOCK-ASCRIBE CONQUEST,Pharmacy Stock,ALCURA UK LTD,0001208078,715.00
Department of Health,East Sussex Hospitals NHS Trust,10/04/2013,STOCK-ASCRIBE CONQUEST,Pharmacy Stock,ALCURA UK LTD,0001208079,715.00
Department of Health,East Sussex Hospitals NHS Trust,10/04/2013,STOCK-ASCRIBE CONQUEST,Pharmacy Stock,ALCURA UK LTD,0001208080,704.28
Department of Health,East Sussex Hospitals NHS Trust,10/04/2013,STOCK-ASCRIBE CONQUEST,Pharmacy Stock,ALCURA UK LTD,0001208081,715.00
Department of Health,East Sussex Hospitals NHS Trust,10/04/2013,STOCK-ASCRIBE CONQUEST,Pharmacy Stock,ALCURA UK LTD,0001208082,704.28
Department of Health,East Sussex Hospitals NHS Trust,10/04/2013,STOCK-ASCRIBE CONQUEST,Pharmacy Stock,ALCURA UK LTD,0001208083,704.28
Department of Health,East Sussex Hospitals NHS Trust,10/04/2013,STOCK-ASCRIBE CONQUEST,Pharmacy Stock,ALCURA UK LTD,0001208084,715.00
Department of Health,East Sussex Hospitals NHS Trust,10/04/2013,STOCK-ASCRIBE CONQUEST,Pharmacy Stock,ALCURA UK LTD,0001208085,704.28
Department of Health,East Sussex Hospitals NHS Trust,10/04/2013,STOCK-ASCRIBE CONQUEST,Pharmacy Stock,ALCURA UK LTD,0001208086,704.28
Department of Health,East Sussex Hospitals NHS Trust,10/04/2013,STOCK-ASCRIBE CONQUEST,Pharmacy Stock,ALCURA UK LTD,0001208087,704.28
Department of Health,East Sussex Hospitals NHS Trust,10/04/2013,STOCK-ASCRIBE CONQUEST,Pharmacy Stock,ALCURA UK LTD,0001208088,715.00
Department of Health,East Sussex Hospitals NHS Trust,10/04/2013,STOCK-ASCRIBE CONQUEST,Pharmacy Stock,ALCURA UK LTD,0001208092,715.00
Department of Health,East Sussex Hospitals NHS Trust,10/04/2013,STOCK-ASCRIBE CONQUEST,Pharmacy Stock,ALCURA UK LTD,0001208095,704.28
Department of Health,East Sussex Hospitals NHS Trust,10/04/2013,STOCK-ASCRIBE CONQUEST,Pharmacy Stock,ALCURA UK LTD,0001208096,715.00
Department of Health,East Sussex Hospitals NHS Trust,10/04/2013,STOCK-ASCRIBE CONQUEST,Pharmacy Stock,ALCURA UK LTD,0001208097,704.28
Department of Health,East Sussex Hospitals NHS Trust,10/04/2013,STOCK-ASCRIBE CONQUEST,Pharmacy Stock,ALCURA UK LTD,0001208098,704.28
Department of Health,East Sussex Hospitals NHS Trust,10/04/2013,STOCK-ASCRIBE CONQUEST,Pharmacy Stock,ALCURA UK LTD,0001208099,704.28
Department of Health,East Sussex Hospitals NHS Trust,10/04/2013,STOCK-ASCRIBE CONQUEST,Pharmacy Stock,ALCURA UK LTD,0001208100,704.28
Department of Health,East Sussex Hospitals NHS Trust,10/04/2013,STOCK-ASCRIBE CONQUEST,Pharmacy Stock,ALCURA UK LTD,0001208101,704.28
Department of Health,East Sussex Hospitals NHS Trust,10/04/2013,STOCK-ASCRIBE CONQUEST,Pharmacy Stock,ALCURA UK LTD,0001208102,715.00
Department of Health,East Sussex Hospitals NHS Trust,10/04/2013,STOCK-ASCRIBE CONQUEST,Pharmacy Stock,ALCURA UK LTD,0001208103,704.28
Department of Health,East Sussex Hospitals NHS Trust,10/04/2013,STOCK-ASCRIBE CONQUEST,Pharmacy Stock,ALCURA UK LTD,0001208104,704.28
Department of Health,East Sussex Hospitals NHS Trust,10/04/2013,STOCK-ASCRIBE CONQUEST,Pharmacy Stock,ALCURA UK LTD,0001208105,715.00
Department of Health,East Sussex Hospitals NHS Trust,10/04/2013,STOCK-ASCRIBE CONQUEST,Pharmacy Stock,ALCURA UK LTD,0001208106,715.00
Department of Health,East Sussex Hospitals NHS Trust,10/04/2013,STOCK-ASCRIBE CONQUEST,Pharmacy Stock,ALCURA UK LTD,0001208108,704.28
Department of Health,East Sussex Hospitals NHS Trust,10/04/2013,STOCK-ASCRIBE CONQUEST,Pharmacy Stock,ALCURA UK LTD,0001208109,704.28
Department of Health,East Sussex Hospitals NHS Trust,10/04/2013,STOCK-ASCRIBE CONQUEST,Pharmacy Stock,ROCHE PRODUCTS LTD,0001208118,9777.60
Department of Health,East Sussex Hospitals NHS Trust,10/04/2013,STOCK-ASCRIBE CONQUEST,Pharmacy Stock,ALCURA UK LTD,0001208133,715.00
Department of Health,East Sussex Hospitals NHS Trust,10/04/2013,STOCK-ASCRIBE CONQUEST,Pharmacy Stock,FRESENIUS LTD,0001208158,505.44
Department of Health,East Sussex Hospitals NHS Trust,10/04/2013,STOCK-ASCRIBE CONQUEST,Pharmacy Stock,AAH PHARMACEUTICALS LTD,0001208196,798.92
Department of Health,East Sussex Hospitals NHS Trust,10/04/2013,STOCK-ASCRIBE CONQUEST,Pharmacy Stock,AAH PHARMACEUTICALS LTD,0001208200,1962.96
Department of Health,East Sussex Hospitals NHS Trust,10/04/2013,STOCK-ASCRIBE CONQUEST,Pharmacy Stock,AAH PHARMACEUTICALS LTD,0001208202,528.70
Department of Health,East Sussex Hospitals NHS Trust,10/04/2013,STOCK-ASCRIBE CONQUEST,Pharmacy Stock,AAH PHARMACEUTICALS LTD,0001208212,608.82
Department of Health,East Sussex Hospitals NHS Trust,10/04/2013,STOCK-ASCRIBE CONQUEST,Pharmacy Stock,AAH PHARMACEUTICALS LTD,0001208216,828.83
Department of Health,East Sussex Hospitals NHS Trust,10/04/2013,STOCK-ASCRIBE CONQUEST,Pharmacy Stock,AAH PHARMACEUTICALS LTD,0001208227,514.93
Department of Health,East Sussex Hospitals NHS Trust,10/04/2013,STOCK-ASCRIBE CONQUEST,Pharmacy Stock,AAH PHARMACEUTICALS LTD,0001208247,536.27
Department of Health,East Sussex Hospitals NHS Trust,10/04/2013,STOCK-ASCRIBE CONQUEST,Pharmacy Stock,GE HEALTHCARE LTD,0001208324,2400.00
Department of Health,East Sussex Hospitals NHS Trust,10/04/2013,STOCK-ASCRIBE CONQUEST,Pharmacy Stock,ROCHE PRODUCTS LTD,0001208346,2411.52
Department of Health,East Sussex Hospitals NHS Trust,10/04/2013,STOCK-ASCRIBE CONQUEST,Pharmacy Stock,FRESENIUS LTD,0001208349,1083.54
Department of Health,East Sussex Hospitals NHS Trust,10/04/2013,STOCK-ASCRIBE CONQUEST,Pharmacy Stock,ALLIANCE HEALTHCARE (DISTRIBUTION) LTD,0001208354,944.32
Department of Health,East Sussex Hospitals NHS Trust,10/04/2013,STOCK-ASCRIBE CONQUEST,Pharmacy Stock,ALLIANCE HEALTHCARE (DISTRIBUTION) LTD,0001208356,758.59
Department of Health,East Sussex Hospitals NHS Trust,10/04/2013,STOCK-ASCRIBE CONQUEST,Pharmacy Stock,ALLIANCE HEALTHCARE (DISTRIBUTION) LTD,0001208365,3780.58
Department of Health,East Sussex Hospitals NHS Trust,10/04/2013,STOCK-ASCRIBE CONQUEST,Pharmacy Stock,BATH ASU,0001208366,996.00
Department of Health,East Sussex Hospitals NHS Trust,10/04/2013,STOCK-ASCRIBE CONQUEST,Pharmacy Stock,ALCURA UK LTD,0001208382,1757.39
Department of Health,East Sussex Hospitals NHS Trust,10/04/2013,STOCK-ASCRIBE CONQUEST,Pharmacy Stock,ALCURA UK LTD,0001208383,1847.48
Department of Health,East Sussex Hospitals NHS Trust,10/04/2013,STOCK-ASCRIBE CONQUEST,Pharmacy Stock,ALCURA UK LTD,0001208384,1240.07
Department of Health,East Sussex Hospitals NHS Trust,10/04/2013,STOCK-ASCRIBE CONQUEST,Pharmacy Stock,ALCURA UK LTD,0001208385,1758.25
Department of Health,East Sussex Hospitals NHS Trust,10/04/2013,STOCK-ASCRIBE CONQUEST,Pharmacy Stock,ALCURA UK LTD,0001208426,715.00
Department of Health,East Sussex Hospitals NHS Trust,10/04/2013,STOCK-ASCRIBE CONQUEST,Pharmacy Stock,ALCURA UK LTD,0001208427,704.28
Department of Health,East Sussex Hospitals NHS Trust,10/04/2013,STOCK-ASCRIBE CONQUEST,Pharmacy Stock,ALCURA UK LTD,0001208428,704.28
Department of Health,East Sussex Hospitals NHS Trust,10/04/2013,STOCK-ASCRIBE CONQUEST,Pharmacy Stock,ALCURA UK LTD,0001208429,715.00
Department of Health,East Sussex Hospitals NHS Trust,10/04/2013,STOCK-ASCRIBE CONQUEST,Pharmacy Stock,ALCURA UK LTD,0001208430,715.00
Department of Health,East Sussex Hospitals NHS Trust,10/04/2013,STOCK-ASCRIBE CONQUEST,Pharmacy Stock,ALCURA UK LTD,0001208431,715.00
Department of Health,East Sussex Hospitals NHS Trust,10/04/2013,STOCK-ASCRIBE CONQUEST,Pharmacy Stock,ALCURA UK LTD,0001208432,704.28
Department of Health,East Sussex Hospitals NHS Trust,10/04/2013,STOCK-ASCRIBE CONQUEST,Pharmacy Stock,ALCURA UK LTD,0001208433,704.28
Department of Health,East Sussex Hospitals NHS Trust,10/04/2013,STOCK-ASCRIBE CONQUEST,Pharmacy Stock,ALCURA UK LTD,0001208434,704.28
Department of Health,East Sussex Hospitals NHS Trust,10/04/2013,STOCK-ASCRIBE CONQUEST,Pharmacy Stock,ALCURA UK LTD,0001208438,704.28
Department of Health,East Sussex Hospitals NHS Trust,10/04/2013,STOCK-ASCRIBE CONQUEST,Pharmacy Stock,ALCURA UK LTD,0001208439,704.28
Department of Health,East Sussex Hospitals NHS Trust,10/04/2013,STOCK-ASCRIBE CONQUEST,Pharmacy Stock,ALCURA UK LTD,0001208440,704.28
Department of Health,East Sussex Hospitals NHS Trust,10/04/2013,STOCK-ASCRIBE CONQUEST,Pharmacy Stock,ALCURA UK LTD,0001208441,704.28
Department of Health,East Sussex Hospitals NHS Trust,10/04/2013,STOCK-ASCRIBE CONQUEST,Pharmacy Stock,ALCURA UK LTD,0001208442,704.28
Department of Health,East Sussex Hospitals NHS Trust,10/04/2013,STOCK-ASCRIBE CONQUEST,Pharmacy Stock,ALCURA UK LTD,0001208444,704.28
Department of Health,East Sussex Hospitals NHS Trust,10/04/2013,STOCK-ASCRIBE CONQUEST,Pharmacy Stock,ALCURA UK LTD,0001208484,3485.79
Department of Health,East Sussex Hospitals NHS Trust,10/04/2013,STOCK-ASCRIBE CONQUEST,Pharmacy Stock,AAH PHARMACEUTICALS LTD,0001208595,540.00
Department of Health,East Sussex Hospitals NHS Trust,10/04/2013,STOCK-ASCRIBE CONQUEST,Pharmacy Stock,AAH PHARMACEUTICALS LTD,0001208601,2504.52
Department of Health,East Sussex Hospitals NHS Trust,10/04/2013,STOCK-ASCRIBE CONQUEST,Pharmacy Stock,AAH PHARMACEUTICALS LTD,0001208610,1658.28
Department of Health,East Sussex Hospitals NHS Trust,10/04/2013,STOCK-ASCRIBE CONQUEST,Pharmacy Stock,AAH PHARMACEUTICALS LTD,0001208612,729.54
Department of Health,East Sussex Hospitals NHS Trust,10/04/2013,STOCK-ASCRIBE CONQUEST,Pharmacy Stock,AAH PHARMACEUTICALS LTD,0001208616,617.35
Department of Health,East Sussex Hospitals NHS Trust,10/04/2013,STOCK-ASCRIBE CONQUEST,Pharmacy Stock,AAH PHARMACEUTICALS LTD,0001208628,582.06
Department of Health,East Sussex Hospitals NHS Trust,10/04/2013,STOCK-ASCRIBE CONQUEST,Pharmacy Stock,AAH PHARMACEUTICALS LTD,0001208631,626.89
Department of Health,East Sussex Hospitals NHS Trust,10/04/2013,STOCK-ASCRIBE CONQUEST,Pharmacy Stock,AAH PHARMACEUTICALS LTD,0001208636,1441.98
Department of Health,East Sussex Hospitals NHS Trust,10/04/2013,STOCK-ASCRIBE CONQUEST,Pharmacy Stock,AAH PHARMACEUTICALS LTD,0001208644,1906.08
Department of Health,East Sussex Hospitals NHS Trust,10/04/2013,STOCK-ASCRIBE CONQUEST,Pharmacy Stock,AAH PHARMACEUTICALS LTD,0001208662,509.71
Department of Health,East Sussex Hospitals NHS Trust,10/04/2013,STOCK-ASCRIBE CONQUEST,Pharmacy Stock,AAH PHARMACEUTICALS LTD,0001208673,610.96
Department of Health,East Sussex Hospitals NHS Trust,10/04/2013,STOCK-ASCRIBE CONQUEST,Pharmacy Stock,AAH PHARMACEUTICALS LTD,0001208685,1012.76
Department of Health,East Sussex Hospitals NHS Trust,10/04/2013,STOCK-ASCRIBE CONQUEST,Pharmacy Stock,AAH PHARMACEUTICALS LTD,0001208694,578.33
Department of Health,East Sussex Hospitals NHS Trust,10/04/2013,STOCK-ASCRIBE CONQUEST,Pharmacy Stock,AAH PHARMACEUTICALS LTD,0001208698,4708.22
Department of Health,East Sussex Hospitals NHS Trust,10/04/2013,STOCK-ASCRIBE CONQUEST,Pharmacy Stock,AAH PHARMACEUTICALS LTD,0001208741,558.96
Department of Health,East Sussex Hospitals NHS Trust,10/04/2013,STOCK-ASCRIBE CONQUEST,Pharmacy Stock,AAH PHARMACEUTICALS LTD,0001208744,979.20
Department of Health,East Sussex Hospitals NHS Trust,10/04/2013,STOCK-ASCRIBE CONQUEST,Pharmacy Stock,AAH PHARMACEUTICALS LTD,0001208748,2218.08
Department of Health,East Sussex Hospitals NHS Trust,10/04/2013,STOCK-ASCRIBE CONQUEST,Pharmacy Stock,AAH PHARMACEUTICALS LTD,0001208749,708.48
Department of Health,East Sussex Hospitals NHS Trust,10/04/2013,STOCK-ASCRIBE CONQUEST,Pharmacy Stock,AAH PHARMACEUTICALS LTD,0001208763,693.35
Department of Health,East Sussex Hospitals NHS Trust,10/04/2013,STOCK-ASCRIBE CONQUEST,Pharmacy Stock,AAH PHARMACEUTICALS LTD,0001208766,729.54
Department of Health,East Sussex Hospitals NHS Trust,10/04/2013,STOCK-ASCRIBE CONQUEST,Pharmacy Stock,AAH PHARMACEUTICALS LTD,0001208770,515.99
Department of Health,East Sussex Hospitals NHS Trust,10/04/2013,STOCK-ASCRIBE CONQUEST,Pharmacy Stock,AAH PHARMACEUTICALS LTD,0001208772,684.00
Department of Health,East Sussex Hospitals NHS Trust,10/04/2013,STOCK-ASCRIBE CONQUEST,Pharmacy Stock,AAH PHARMACEUTICALS LTD,0001208793,1285.92
Department of Health,East Sussex Hospitals NHS Trust,10/04/2013,STOCK-ASCRIBE CONQUEST,Pharmacy Stock,AAH PHARMACEUTICALS LTD,0001208807,589.81
Department of Health,East Sussex Hospitals NHS Trust,10/04/2013,STOCK-ASCRIBE CONQUEST,Pharmacy Stock,AAH PHARMACEUTICALS LTD,0001208827,753.48
Department of Health,East Sussex Hospitals NHS Trust,10/04/2013,STOCK-ASCRIBE CONQUEST,Pharmacy Stock,AAH PHARMACEUTICALS LTD,0001208828,553.80
Department of Health,East Sussex Hospitals NHS Trust,10/04/2013,STOCK-ASCRIBE CONQUEST,Pharmacy Stock,AAH PHARMACEUTICALS LTD,0001208831,525.50
Department of Health,East Sussex Hospitals NHS Trust,10/04/2013,STOCK-ASCRIBE CONQUEST,Pharmacy Stock,AAH PHARMACEUTICALS LTD,0001208844,584.12
Department of Health,East Sussex Hospitals NHS Trust,10/04/2013,DEFENCE COSTS,Corporate Services,CAPSTICKS,0001420845,946.80
Department of Health,East Sussex Hospitals NHS Trust,10/04/2013,ADVERTISING COSTS-NON STAFF,Commercial,JOHNSTON PUBLISHING LTD,0001421090,436.74
Department of Health,East Sussex Hospitals NHS Trust,10/04/2013,ADVERT-OTHER,Commercial,CLOSERSTILL MEDIA HEALTHCARE LIMITED,0001526717,2769.00
Department of Health,East Sussex Hospitals NHS Trust,10/04/2013,CONSULTANCY FEES,Corporate Services,CAPITA BUSINESS SERVICES LTD,0001526732,18228.10
Department of Health,East Sussex Hospitals NHS Trust,10/04/2013,DRUGS-OTHER,Integrated Care,AAH PHARMACEUTICALS LTD,0001526776,2493.75
Department of Health,East Sussex Hospitals NHS Trust,10/04/2013,DRUGS-OTHER,Integrated Care,AAH PHARMACEUTICALS LTD,0001526909,2041.20
Department of Health,East Sussex Hospitals NHS Trust,10/04/2013,DRUGS-OTHER,Integrated Care,AAH PHARMACEUTICALS LTD,0001526910,942.90
Department of Health,East Sussex Hospitals NHS Trust,10/04/2013,PRESCRIPTIONS INCL DRUGS,Integrated Care,ALCURA UK LTD,0001526930,40487.76
Department of Health,East Sussex Hospitals NHS Trust,10/04/2013,ADVERTISING COSTS-NON STAFF,Commercial,JOHNSTON PUBLISHING LTD,0001526935,750.00
Department of Health,East Sussex Hospitals NHS Trust,10/04/2013,PATS APPL - CONTACT LENSES,Planned Care,THOMAS H COLLISON LTD,0001526945,4180.00
Department of Health,East Sussex Hospitals NHS Trust,10/04/2013,DRUGS-OTHER,Integrated Care,ALCURA UK LTD,0001527035,52428.58
Department of Health,East Sussex Hospitals NHS Trust,10/04/2013,COURIER SERVICES,Commercial,INTERLINK EXPRESS PARCELS LIMITED,0001527046,517.80
Department of Health,East Sussex Hospitals NHS Trust,10/04/2013,DRUGS-OTHER,Integrated Care,AAH PHARMACEUTICALS LTD,0001527088,506.52
Department of Health,East Sussex Hospitals NHS Trust,10/04/2013,H/CARE PURCH COMMERCIAL- OTHER,Integrated Care,KINGS MEDICAL LTD,0001527121,664.80
Department of Health,East Sussex Hospitals NHS Trust,10/04/2013,H/CARE PURCH COMMERCIAL- OTHER,Integrated Care,KINGS MEDICAL LTD,0001527122,1803.80
Department of Health,East Sussex Hospitals NHS Trust,10/04/2013,COURIER SERVICES,Commercial,INTERLINK EXPRESS PARCELS LIMITED,0001527289,730.04
Department of Health,East Sussex Hospitals NHS Trust,10/04/2013,COURIER SERVICES,Commercial,INTERLINK EXPRESS PARCELS LIMITED,0001527290,654.08
Department of Health,East Sussex Hospitals NHS Trust,10/04/2013,COURIER SERVICES,Commercial,INTERLINK EXPRESS PARCELS LIMITED,0001527291,592.52
Department of Health,East Sussex Hospitals NHS Trust,10/04/2013,COURIER SERVICES,Commercial,INTERLINK EXPRESS PARCELS LIMITED,0001527292,645.35
Department of Health,East Sussex Hospitals NHS Trust,10/04/2013,AGENCY DRIVERS,Commercial,SAMS PRIVATE HIRE,0001527316,1400.00
Department of Health,East Sussex Hospitals NHS Trust,10/04/2013,TRAINING FEES - NURSE CONT ED,Corporate Services,MEDROCK TRAINING LTD,0001527345,1125.00
Department of Health,East Sussex Hospitals NHS Trust,10/04/2013,HOSPITALITY,Corporate Services,THE HASTINGS CENTRE,0001527347,714.50
Department of Health,East Sussex Hospitals NHS Trust,10/04/2013,SEWERAGE - RATES & METERED,Commercial,SOUTHERN WATER SERVICES LTD,0001527349,1401.29
Department of Health,East Sussex Hospitals NHS Trust,10/04/2013,PROFESSIONAL FEES,Corporate Services,THE NHS CONFEDERATION GROUP COMPANY LTD,0001527352,4944.00
Department of Health,East Sussex Hospitals NHS Trust,10/04/2013,TRAINING COURSE FEES-OTHER,Integrated Care,BATH ASU,0001613470,982.80
Department of Health,East Sussex Hospitals NHS Trust,10/04/2013,CLEANING EQUIPMENT,Commercial,ECOLAB LTD,0001613984,543.22
Department of Health,East Sussex Hospitals NHS Trust,10/04/2013,DRUGS-OTHER,Commercial,BATH ASU,0001614118,576.00
Department of Health,East Sussex Hospitals NHS Trust,10/04/2013,TELEPHONES-RENTAL&CALLS,Commercial,MAINTEL VOICE & DATA LTD,0001704069,515.08
Department of Health,East Sussex Hospitals NHS Trust,10/04/2013,PHOTOCOPIER HIRE,Commercial,RICOH UK LTD,0001704219,1916.40
Department of Health,East Sussex Hospitals NHS Trust,10/04/2013,PHOTOCOPIER HIRE,Commercial,RICOH UK LTD,0001704242,456.05
Department of Health,East Sussex Hospitals NHS Trust,10/04/2013,PHOTOCOPIER HIRE,Commercial,RICOH UK LTD,0001704245,533.12
Department of Health,East Sussex Hospitals NHS Trust,10/04/2013,TELEPHONES-RENTAL&CALLS,Commercial,BRITISH TELECOM,0001704251,2400.00
Department of Health,East Sussex Hospitals NHS Trust,10/04/2013,WHEELCHAIR,Integrated Care,SOUTHERN MOBILITY CENTRE,0001813094,3777.60
Department of Health,East Sussex Hospitals NHS Trust,10/04/2013,WHEELCHAIR REPAIRS,Integrated Care,THE HELPING HAND COMPANY (LEDBURY) LTD,0001813095,1103.76
Department of Health,East Sussex Hospitals NHS Trust,10/04/2013,PROSTHESES-OTHER,Planned Care,BIOMET UK HEALTHCARE LTD,0001813389,652.80
Department of Health,East Sussex Hospitals NHS Trust,10/04/2013,M&S GENERAL SUPPLIES-OTHER,Planned Care,ARTHROCARE UK LIMITED,0001813416,825.00
Department of Health,East Sussex Hospitals NHS Trust,10/04/2013,SPECIAL SEATING,Integrated Care,CLINICAL ENGINEERING CONSULTANTS LTD,0001813484,2531.40
Department of Health,East Sussex Hospitals NHS Trust,10/04/2013,PROSTHESES-OTHER,Planned Care,BIOMET UK HEALTHCARE LTD,0001813518,724.80
Department of Health,East Sussex Hospitals NHS Trust,10/04/2013,WHEELCHAIR REPAIRS,Integrated Care,SOUTHERN MOBILITY CENTRE,0001813779,646.80
Department of Health,East Sussex Hospitals NHS Trust,10/04/2013,PROVISIONS,Commercial,3663,0001904864,647.03
Department of Health,East Sussex Hospitals NHS Trust,10/04/2013,PROVISIONS,Commercial,3663,0001904868,868.66
Department of Health,East Sussex Hospitals NHS Trust,10/04/2013,PROVISIONS,Commercial,AUTOBAR UK LIMITED,0001904954,4061.74
Department of Health,East Sussex Hospitals NHS Trust,10/04/2013,PROVISIONS,Commercial,AUTOBAR UK LIMITED,0001904972,829.60
Department of Health,East Sussex Hospitals NHS Trust,10/04/2013,PROVISIONS,Commercial,3663,0001905032,3427.92
Department of Health,East Sussex Hospitals NHS Trust,10/04/2013,PROVISIONS,Commercial,3663,0001905034,963.48
Department of Health,East Sussex Hospitals NHS Trust,10/04/2013,PROVISIONS,Commercial,3663,0001905035,745.10
Department of Health,East Sussex Hospitals NHS Trust,10/04/2013,PROVISIONS,Commercial,3663,0001905037,682.70
Department of Health,East Sussex Hospitals NHS Trust,10/04/2013,HARDWARE & CROCKERY,Commercial,TRI-STAR PACKAGING SUPPLIES LTD,0001905081,915.63
Department of Health,East Sussex Hospitals NHS Trust,10/04/2013,HARDWARE & CROCKERY,Commercial,TRI-STAR PACKAGING SUPPLIES LTD,0001905084,1938.96
Department of Health,East Sussex Hospitals NHS Trust,10/04/2013,HARDWARE & CROCKERY,Commercial,TRI-STAR PACKAGING SUPPLIES LTD,0001905087,2203.45
Department of Health,East Sussex Hospitals NHS Trust,10/04/2013,HARDWARE & CROCKERY,Commercial,TRI-STAR PACKAGING SUPPLIES LTD,0001905090,1436.91
Department of Health,East Sussex Hospitals NHS Trust,10/04/2013,PROVISIONS,Commercial,BRAKE BROS (FROZEN FOODS) LTD,0001905200,1048.04
Department of Health,East Sussex Hospitals NHS Trust,10/04/2013,PROVISIONS,Commercial,BRAKE BROS (FROZEN FOODS) LTD,0001905202,937.73
Department of Health,East Sussex Hospitals NHS Trust,10/04/2013,PROVISIONS,Commercial,BRAKE BROS (FROZEN FOODS) LTD,0001905204,725.29
Department of Health,East Sussex Hospitals NHS Trust,10/04/2013,PROVISIONS,Commercial,BRAKE BROS (FROZEN FOODS) LTD,0001905206,777.30
Department of Health,East Sussex Hospitals NHS Trust,10/04/2013,PROVISIONS,Commercial,BRAKE BROS (FROZEN FOODS) LTD,0001905209,937.73
Department of Health,East Sussex Hospitals NHS Trust,10/04/2013,PROVISIONS,Commercial,BRAKE BROS (FROZEN FOODS) LTD,0001905210,989.86
Department of Health,East Sussex Hospitals NHS Trust,10/04/2013,PROVISIONS,Commercial,BRAKE BROS (FROZEN FOODS) LTD,0001905213,937.73
Department of Health,East Sussex Hospitals NHS Trust,10/04/2013,PROVISIONS,Commercial,BRAKE BROS (FROZEN FOODS) LTD,0001905217,1114.77
Department of Health,East Sussex Hospitals NHS Trust,10/04/2013,PROVISIONS,Commercial,BRAKE BROS (FROZEN FOODS) LTD,0001905221,1047.30
Department of Health,East Sussex Hospitals NHS Trust,10/04/2013,PROVISIONS,Commercial,BRAKE BROS (FROZEN FOODS) LTD,0001905222,916.78
Department of Health,East Sussex Hospitals NHS Trust,10/04/2013,PROVISIONS,Commercial,BRAKE BROS (FROZEN FOODS) LTD,0001905223,555.66
Department of Health,East Sussex Hospitals NHS Trust,10/04/2013,PROVISIONS,Commercial,BRAKE BROS (FROZEN FOODS) LTD,0001905224,1050.92
Department of Health,East Sussex Hospitals NHS Trust,10/04/2013,PROVISIONS,Commercial,3663,0001905229,553.99
Department of Health,East Sussex Hospitals NHS Trust,10/04/2013,PROVISIONS,Commercial,3663,0001905230,670.84
Department of Health,East Sussex Hospitals NHS Trust,10/04/2013,PROVISIONS,Commercial,BRAKE BROS (FROZEN FOODS) LTD,0001905250,916.78
Department of Health,East Sussex Hospitals NHS Trust,10/04/2013,PROVISIONS,Commercial,BRAKE BROS (FROZEN FOODS) LTD,0001905251,1189.26
Department of Health,East Sussex Hospitals NHS Trust,10/04/2013,PROVISIONS,Commercial,BRAKE BROS (FROZEN FOODS) LTD,0001905254,916.78
Department of Health,East Sussex Hospitals NHS Trust,10/04/2013,PROVISIONS,Commercial,BRAKE BROS (FROZEN FOODS) LTD,0001905256,563.55
Department of Health,East Sussex Hospitals NHS Trust,10/04/2013,PROVISIONS,Commercial,BRAKE BROS (FROZEN FOODS) LTD,0001905257,966.97
Department of Health,East Sussex Hospitals NHS Trust,10/04/2013,PROVISIONS,Commercial,BRAKE BROS (FROZEN FOODS) LTD,0001905259,773.17
Department of Health,East Sussex Hospitals NHS Trust,10/04/2013,PROVISIONS,Commercial,BRAKE BROS (FROZEN FOODS) LTD,0001905260,916.78
Department of Health,East Sussex Hospitals NHS Trust,10/04/2013,PROVISIONS,Commercial,3663,0001905299,560.80
Department of Health,East Sussex Hospitals NHS Trust,10/04/2013,LAB.REAGENTS-MISCELLANEOUS,Integrated Care,VITECH SCIENTIFIC LTD,0002111575,624.00
Department of Health,East Sussex Hospitals NHS Trust,10/04/2013,QUALITY CONTROL MATERIAL,Integrated Care,VITECH SCIENTIFIC LTD,0002111575,219.60
Department of Health,East Sussex Hospitals NHS Trust,10/04/2013,LAB MATS IL CONSUMABLES,Integrated Care,INSTRUMENTATION LABORATORIES UK LTD,0002113068,2006.28
Department of Health,East Sussex Hospitals NHS Trust,10/04/2013,SURGICAL INSTRUMENTS,Planned Care,PURPLE SURGICAL UK LTD,0002113572,1540.58
Department of Health,East Sussex Hospitals NHS Trust,10/04/2013,PROSTHESIS - SPINAL,Planned Care,ZIMMER LTD,0002114402,3365.28
Department of Health,East Sussex Hospitals NHS Trust,10/04/2013,PROSTHESES-OTHER,Planned Care,ZIMMER LTD,0002114402,676.08
Department of Health,East Sussex Hospitals NHS Trust,10/04/2013,PROSTHESIS - LENS,Planned Care,ALCON EYE CARE UK LTD,0002114556,983.40
Department of Health,East Sussex Hospitals NHS Trust,10/04/2013,PROSTHESES-KNEES,Planned Care,BIOMET UK HEALTHCARE LTD,0002114935,1863.90
Department of Health,East Sussex Hospitals NHS Trust,10/04/2013,NATIONAL JOINT REGISTRY LEVY,Planned Care,BIOMET UK HEALTHCARE LTD,0002114935,20.00
Department of Health,East Sussex Hospitals NHS Trust,10/04/2013,PROSTHESES-KNEES,Planned Care,BIOMET UK HEALTHCARE LTD,0002114944,896.40
Department of Health,East Sussex Hospitals NHS Trust,10/04/2013,NATIONAL JOINT REGISTRY LEVY,Planned Care,BIOMET UK HEALTHCARE LTD,0002114944,20.00
Department of Health,East Sussex Hospitals NHS Trust,10/04/2013,GENERAL LAB. CONSUMABLES,Integrated Care,SYSMEX UK LTD,0002115051,12.42
Department of Health,East Sussex Hospitals NHS Trust,10/04/2013,LAB MATS - SYSMEX HAEM CONS,Integrated Care,SYSMEX UK LTD,0002115051,854.52
Department of Health,East Sussex Hospitals NHS Trust,10/04/2013,PROSTHESES-KNEES,Planned Care,BIOMET UK HEALTHCARE LTD,0002115064,5123.52
Department of Health,East Sussex Hospitals NHS Trust,10/04/2013,NATIONAL JOINT REGISTRY LEVY,Planned Care,BIOMET UK HEALTHCARE LTD,0002115064,80.02
Department of Health,East Sussex Hospitals NHS Trust,10/04/2013,GENERAL LAB. CONSUMABLES,Integrated Care,INSTRUMENTATION LABORATORIES UK LTD,0002115072,2738.86
Department of Health,East Sussex Hospitals NHS Trust,10/04/2013,LOANER KITS - HIRE CHARGE,Planned Care,BIOMET UK HEALTHCARE LTD,0002115103,600.00
Department of Health,East Sussex Hospitals NHS Trust,10/04/2013,PROSTHESES-OTHER,Planned Care,BIOMET UK HEALTHCARE LTD,0002115103,2373.60
Department of Health,East Sussex Hospitals NHS Trust,10/04/2013,NATIONAL JOINT REGISTRY LEVY,Planned Care,BIOMET UK HEALTHCARE LTD,0002115103,20.00
Department of Health,East Sussex Hospitals NHS Trust,10/04/2013,PROSTHESES-KNEES,Planned Care,BIOMET UK HEALTHCARE LTD,0002115104,658.80
Department of Health,East Sussex Hospitals NHS Trust,10/04/2013,NATIONAL JOINT REGISTRY LEVY,Planned Care,BIOMET UK HEALTHCARE LTD,0002115104,20.00
Department of Health,East Sussex Hospitals NHS Trust,10/04/2013,M&S GENERAL SUPPLIES-OTHER,Planned Care,BIOMET UK HEALTHCARE LTD,0002115105,234.00
Department of Health,East Sussex Hospitals NHS Trust,10/04/2013,SURGICAL INSTRUMENTS,Planned Care,BIOMET UK HEALTHCARE LTD,0002115105,456.00
Department of Health,East Sussex Hospitals NHS Trust,10/04/2013,SURGICAL INSTRUMENTS,Planned Care,BIOMET UK HEALTHCARE LTD,0002115106,247.20
Department of Health,East Sussex Hospitals NHS Trust,10/04/2013,PROSTHESES-KNEES,Planned Care,BIOMET UK HEALTHCARE LTD,0002115106,2154.60
Department of Health,East Sussex Hospitals NHS Trust,10/04/2013,NATIONAL JOINT REGISTRY LEVY,Planned Care,BIOMET UK HEALTHCARE LTD,0002115106,20.00
Department of Health,East Sussex Hospitals NHS Trust,10/04/2013,PROSTHESES-HIP,Planned Care,BIOMET UK HEALTHCARE LTD,0002115219,3529.80
Department of Health,East Sussex Hospitals NHS Trust,10/04/2013,M&S GENERAL SUPPLIES-OTHER,Planned Care,BIOMET UK HEALTHCARE LTD,0002115220,93.60
Department of Health,East Sussex Hospitals NHS Trust,10/04/2013,SURGICAL INSTRUMENTS,Planned Care,BIOMET UK HEALTHCARE LTD,0002115220,221.40
Department of Health,East Sussex Hospitals NHS Trust,10/04/2013,PROSTHESES-OTHER,Planned Care,BIOMET UK HEALTHCARE LTD,0002115220,1163.40
Department of Health,East Sussex Hospitals NHS Trust,10/04/2013,LAPARASCOPIC EQUIP-GYNAECOLOGY,Planned Care,PURPLE SURGICAL UK LTD,0002115249,960.00
Department of Health,East Sussex Hospitals NHS Trust,10/04/2013,LASER/LAPARASCOPIC EQUIPMENT,Planned Care,PURPLE SURGICAL UK LTD,0002115250,912.00
Department of Health,East Sussex Hospitals NHS Trust,10/04/2013,PROSTHESIS - SHOULDERS,Planned Care,BIOMET UK HEALTHCARE LTD,0002115298,1380.00
Department of Health,East Sussex Hospitals NHS Trust,10/04/2013,NATIONAL JOINT REGISTRY LEVY,Planned Care,BIOMET UK HEALTHCARE LTD,0002115298,20.00
Department of Health,East Sussex Hospitals NHS Trust,10/04/2013,PROSTHESES-HIP,Planned Care,BIOMET UK HEALTHCARE LTD,0002115299,513.60
Department of Health,East Sussex Hospitals NHS Trust,10/04/2013,PROSTHESES-KNEES,Planned Care,BIOMET UK HEALTHCARE LTD,0002115300,1022.70
Department of Health,East Sussex Hospitals NHS Trust,10/04/2013,PROSTHESES-OTHER,Planned Care,BIOMET UK HEALTHCARE LTD,0002115300,81.60
Department of Health,East Sussex Hospitals NHS Trust,10/04/2013,PROSTHESES-HIP,Planned Care,STRYKER UK,0002115356,544.32
Department of Health,East Sussex Hospitals NHS Trust,10/04/2013,M&S GENERAL SUPPLIES-OTHER,Planned Care,STRYKER UK,0002115358,777.60
Department of Health,East Sussex Hospitals NHS Trust,10/04/2013,MED EQUIPMENT LEASES,Planned Care,DE LAGE LANDEN LEASING LTD,0002115388,1864.07
Department of Health,East Sussex Hospitals NHS Trust,10/04/2013,MED EQUIPMENT LEASES,Urgent Care,DE LAGE LANDEN LEASING LTD,0002115388,1864.08
Department of Health,East Sussex Hospitals NHS Trust,10/04/2013,MAINT-PHILIPS MEDICAL SYSTEMS,Integrated Care,PHILIPS MEDICAL SYSTEMS UK LTD,0002115411,2233.75
Department of Health,East Sussex Hospitals NHS Trust,10/04/2013,SPECIAL SEATING,Integrated Care,CLINICAL ENGINEERING CONSULTANTS LTD,0002115434,711.60
Department of Health,East Sussex Hospitals NHS Trust,10/04/2013,PROSTHESES-OTHER,Planned Care,ZIMMER LTD,0002115527,556.20
Department of Health,East Sussex Hospitals NHS Trust,10/04/2013,PROSTHESIS - SPINAL,Planned Care,ZIMMER LTD,0002115528,3032.64
Department of Health,East Sussex Hospitals NHS Trust,10/04/2013,PROSTHESES-HIP,Planned Care,BIOMET UK HEALTHCARE LTD,0002115536,3228.00
Department of Health,East Sussex Hospitals NHS Trust,10/04/2013,PROSTHESES-HIP,Planned Care,BIOMET UK HEALTHCARE LTD,0002115537,3177.00
Department of Health,East Sussex Hospitals NHS Trust,10/04/2013,PROSTHESIS - LENS,Planned Care,ALCON EYE CARE UK LTD,0002115541,1041.60
Department of Health,East Sussex Hospitals NHS Trust,10/04/2013,PROSTHESES-OTHER,Planned Care,ZIMMER LTD,0002115544,1145.88
Department of Health,East Sussex Hospitals NHS Trust,10/04/2013,PROSTHESIS - SPINAL,Planned Care,ZIMMER LTD,0002115545,5276.88
Department of Health,East Sussex Hospitals NHS Trust,10/04/2013,LAB.REAGENTS-MISCELLANEOUS,Integrated Care,VITECH SCIENTIFIC LTD,0002115547,638.40
Department of Health,East Sussex Hospitals NHS Trust,10/04/2013,LOANER KITS - HIRE CHARGE,Planned Care,BIOMET UK HEALTHCARE LTD,0002115551,660.00
Department of Health,East Sussex Hospitals NHS Trust,10/04/2013,GENERAL LAB. CONSUMABLES,Integrated Care,OXOID LIMITED,0002115578,39.36
Department of Health,East Sussex Hospitals NHS Trust,10/04/2013,LAB MATERIALS - OXOID,Integrated Care,OXOID LIMITED,0002115578,843.88
Department of Health,East Sussex Hospitals NHS Trust,10/04/2013,PROSTHESES-KNEES,Planned Care,BIOMET UK HEALTHCARE LTD,0002115602,712.80
Department of Health,East Sussex Hospitals NHS Trust,10/04/2013,PROSTHESES-HIP,Planned Care,BIOMET UK HEALTHCARE LTD,0002115603,1588.50
Department of Health,East Sussex Hospitals NHS Trust,10/04/2013,LAB MATS - SYSMEX HAEM CONS,Integrated Care,SYSMEX UK LTD,0002115608,4971.16
Department of Health,East Sussex Hospitals NHS Trust,10/04/2013,LOANER KITS - HIRE CHARGE,Planned Care,BIOMET UK HEALTHCARE LTD,0002115627,420.00
Department of Health,East Sussex Hospitals NHS Trust,10/04/2013,PROSTHESES-OTHER,Planned Care,BIOMET UK HEALTHCARE LTD,0002115627,3146.40
Department of Health,East Sussex Hospitals NHS Trust,10/04/2013,NATIONAL JOINT REGISTRY LEVY,Planned Care,BIOMET UK HEALTHCARE LTD,0002115627,20.00
Department of Health,East Sussex Hospitals NHS Trust,10/04/2013,PROSTHESIS - SPINAL,Planned Care,ZIMMER LTD,0002115634,669.60
Department of Health,East Sussex Hospitals NHS Trust,10/04/2013,PROSTHESES-OTHER,Planned Care,ZIMMER LTD,0002115634,1352.16
Department of Health,East Sussex Hospitals NHS Trust,10/04/2013,PROSTHESES-OTHER,Planned Care,ARTHROCARE UK LIMITED,0002115641,951.00
Department of Health,East Sussex Hospitals NHS Trust,10/04/2013,M&S GENERAL SUPPLIES-OTHER,Planned Care,BIOMET UK HEALTHCARE LTD,0002115658,212.40
Department of Health,East Sussex Hospitals NHS Trust,10/04/2013,PROSTHESES-KNEES,Planned Care,BIOMET UK HEALTHCARE LTD,0002115658,4071.60
Department of Health,East Sussex Hospitals NHS Trust,10/04/2013,NATIONAL JOINT REGISTRY LEVY,Planned Care,BIOMET UK HEALTHCARE LTD,0002115658,40.01
Department of Health,East Sussex Hospitals NHS Trust,10/04/2013,LAB.REAGENTS-MISCELLANEOUS,Integrated Care,SEBIA UK LTD,0002115667,3613.60
Department of Health,East Sussex Hospitals NHS Trust,10/04/2013,PROSTHESIS - LENS,Planned Care,ALCON EYE CARE UK LTD,0002115668,892.80
Department of Health,East Sussex Hospitals NHS Trust,10/04/2013,MEDICAL RECORDING PAPER,Integrated Care,PHILIPS MEDICAL SYSTEMS UK LTD,0002115669,638.40
Department of Health,East Sussex Hospitals NHS Trust,10/04/2013,RADIOISOTOPES,Integrated Care,GE HEALTHCARE LTD,0002115799,978.00
Department of Health,East Sussex Hospitals NHS Trust,10/04/2013,PROSTHESES-OTHER,Planned Care,ZIMMER LTD,0002115800,556.20
Department of Health,East Sussex Hospitals NHS Trust,10/04/2013,M&S GENERAL SUPPLIES-OTHER,Planned Care,BIOMET UK HEALTHCARE LTD,0002115842,23.40
Department of Health,East Sussex Hospitals NHS Trust,10/04/2013,SURGICAL INSTRUMENTS,Planned Care,BIOMET UK HEALTHCARE LTD,0002115842,303.00
Department of Health,East Sussex Hospitals NHS Trust,10/04/2013,PROSTHESES-OTHER,Planned Care,BIOMET UK HEALTHCARE LTD,0002115842,1035.00
Department of Health,East Sussex Hospitals NHS Trust,10/04/2013,PROSTHESES-HIP,Planned Care,BIOMET UK HEALTHCARE LTD,0002115849,1588.50
Department of Health,East Sussex Hospitals NHS Trust,10/04/2013,PROSTHESES-HIP,Planned Care,BIOMET UK HEALTHCARE LTD,0002115850,1588.50
Department of Health,East Sussex Hospitals NHS Trust,10/04/2013,PROSTHESES-KNEES,Planned Care,BIOMET UK HEALTHCARE LTD,0002115867,1404.00
Department of Health,East Sussex Hospitals NHS Trust,10/04/2013,NATIONAL JOINT REGISTRY LEVY,Planned Care,BIOMET UK HEALTHCARE LTD,0002115867,40.01
Department of Health,East Sussex Hospitals NHS Trust,10/04/2013,CYTOLOGY KITS,Integrated Care,HOLOGIC UK LTD,0002115872,6600.00
Department of Health,East Sussex Hospitals NHS Trust,10/04/2013,PROSTHESES-OTHER,Planned Care,ZIMMER LTD,0002115885,1112.40
Department of Health,East Sussex Hospitals NHS Trust,10/04/2013,GENERAL LAB. CONSUMABLES,Integrated Care,OXOID LIMITED,0002115912,39.36
Department of Health,East Sussex Hospitals NHS Trust,10/04/2013,LAB MATERIALS - OXOID,Integrated Care,OXOID LIMITED,0002115912,970.81
Department of Health,East Sussex Hospitals NHS Trust,10/04/2013,PROSTHESIS - SPINAL,Planned Care,ZIMMER LTD,0002115913,3123.36
Department of Health,East Sussex Hospitals NHS Trust,10/04/2013,PROFESSIONAL FEES,Commercial,FREIGHT TRANSPORT ASSOCIATION,0002116027,840.00
Department of Health,East Sussex Hospitals NHS Trust,10/04/2013,PATS.APPL.-DENTAL,Planned Care,SOUTH EASTERN ORTHODONTICS,0002116160,2778.35
Department of Health,East Sussex Hospitals NHS Trust,10/04/2013,LOANER KITS - HIRE CHARGE,Planned Care,BIOMET UK HEALTHCARE LTD,0002208976,672.00
Department of Health,East Sussex Hospitals NHS Trust,10/04/2013,PROSTHESES-OTHER,Planned Care,BIOMET UK HEALTHCARE LTD,0002208976,2587.08
Department of Health,East Sussex Hospitals NHS Trust,10/04/2013,PROFESSIONAL FEES,Corporate Services,HEALTHCARE QUALITY IMPROVE PART (HQIP),0002213069,22025.18
Department of Health,East Sussex Hospitals NHS Trust,10/04/2013,CONT.MAIN-MED & SURG EQUIP,Commercial,STRYKER UK,0002213379,1855.00
Department of Health,East Sussex Hospitals NHS Trust,10/04/2013,LAB MATS - SYSMEX HAEM CONS,Integrated Care,SYSMEX UK LTD,0002213491,866.94
Department of Health,East Sussex Hospitals NHS Trust,10/04/2013,GENERAL LAB. CONSUMABLES,Integrated Care,INSTRUMENTATION LABORATORIES UK LTD,0002213514,3612.65
Department of Health,East Sussex Hospitals NHS Trust,10/04/2013,M&S GENERAL SUPPLIES-OTHER,Urgent Care,CAREFUSION UK 236 LTD,0002213642,753.46
Department of Health,East Sussex Hospitals NHS Trust,10/04/2013,PRE-STERILE COMMERCIAL PACKS,Commercial,LYALL WILLIS & COMPANY,0002213726,1159.20
Department of Health,East Sussex Hospitals NHS Trust,10/04/2013,M&S GENERAL SUPPLIES-OTHER,Planned Care,PAJUNK UK MEDICAL PRODUCTS LTD,0002213741,3196.80
Department of Health,East Sussex Hospitals NHS Trust,10/04/2013,M&S GENERAL SUPPLIES-OTHER,Commercial,NIDA SOLUTIONS LTD,0002213773,933.77
Department of Health,East Sussex Hospitals NHS Trust,10/04/2013,PRE-STERILE COMMERCIAL PACKS,Commercial,NIDA SOLUTIONS LTD,0002213773,440.04
Department of Health,East Sussex Hospitals NHS Trust,10/04/2013,M&S GENERAL SUPPLIES-OTHER,Planned Care,PURPLE SURGICAL UK LTD,0002213838,1824.00
Department of Health,East Sussex Hospitals NHS Trust,10/04/2013,SUTURES,Planned Care,ARTHROCARE UK LIMITED,0002213844,1389.00
Department of Health,East Sussex Hospitals NHS Trust,10/04/2013,MED EQUIPMENT LEASES,Planned Care,DE LAGE LANDEN LEASING LTD,0002213865,6126.80
Department of Health,East Sussex Hospitals NHS Trust,10/04/2013,VAC WOUND M&S SUPPLIES,Urgent Care,KCI MEDICAL LTD,0002213893,754.04
Department of Health,East Sussex Hospitals NHS Trust,10/04/2013,LAB MATS - SYSMEX HAEM CONS,Integrated Care,SYSMEX UK LTD,0002213951,5598.92
Department of Health,East Sussex Hospitals NHS Trust,10/04/2013,HARDWARE & CROCKERY,Commercial,DE LAGE LANDEN LEASING LTD,0002214138,4500.00
Department of Health,East Sussex Hospitals NHS Trust,10/04/2013,GENERAL LAB. CONSUMABLES,Integrated Care,VITECH SCIENTIFIC LTD,0002214172,98.40
Department of Health,East Sussex Hospitals NHS Trust,10/04/2013,LAB.REAGENTS-MISCELLANEOUS,Integrated Care,VITECH SCIENTIFIC LTD,0002214172,624.00
Department of Health,East Sussex Hospitals NHS Trust,10/04/2013,QUALITY CONTROL MATERIAL,Integrated Care,VITECH SCIENTIFIC LTD,0002214172,136.80
Department of Health,East Sussex Hospitals NHS Trust,10/04/2013,LAB MATERIALS - OXOID,Integrated Care,OXOID LIMITED,0002214206,1365.18
Department of Health,East Sussex Hospitals NHS Trust,10/04/2013,ENGINEERING MATERIALS,Commercial,J F L SPEAR,0002214246,980.00
Department of Health,East Sussex Hospitals NHS Trust,10/04/2013,ENGINEERING MATERIALS,Commercial,J F L SPEAR,0002214248,440.00
Department of Health,East Sussex Hospitals NHS Trust,10/04/2013,VAC WOUND M&S SUPPLIES,Urgent Care,KCI MEDICAL LTD,0002214264,559.45
Department of Health,East Sussex Hospitals NHS Trust,10/04/2013,VAC WOUND M&S SUPPLIES,Planned Care,KCI MEDICAL LTD,0002214264,48.65
Department of Health,East Sussex Hospitals NHS Trust,10/04/2013,ELECTRO MEDICAL EQUIPMENT,Urgent Care,PHILIPS MEDICAL SYSTEMS UK LTD,0002214323,529.20
Department of Health,East Sussex Hospitals NHS Trust,10/04/2013,STOCK-ASCRIBE EDGH,Pharmacy Stock,NOVARTIS PHARMACEUTICALS UK LTD,0013002879,45420.48
Department of Health,East Sussex Hospitals NHS Trust,10/04/2013,STOCK-ASCRIBE EDGH,Pharmacy Stock,NOVARTIS PHARMACEUTICALS UK LTD,0013002880,22710.24
Department of Health,East Sussex Hospitals NHS Trust,10/04/2013,STOCK-ASCRIBE EDGH,Pharmacy Stock,AAH PHARMACEUTICALS LTD,0013003025,1190.73
Department of Health,East Sussex Hospitals NHS Trust,10/04/2013,STOCK-ASCRIBE EDGH,Pharmacy Stock,AAH PHARMACEUTICALS LTD,0013003116,3576.34
Department of Health,East Sussex Hospitals NHS Trust,10/04/2013,STOCK-ASCRIBE EDGH,Pharmacy Stock,AAH PHARMACEUTICALS LTD,0013003175,2212.08
Department of Health,East Sussex Hospitals NHS Trust,10/04/2013,STOCK-ASCRIBE EDGH,Pharmacy Stock,AAH PHARMACEUTICALS LTD,0013003277,513.00
Department of Health,East Sussex Hospitals NHS Trust,10/04/2013,STOCK-ASCRIBE EDGH,Pharmacy Stock,AAH PHARMACEUTICALS LTD,0013003295,521.10
Department of Health,East Sussex Hospitals NHS Trust,10/04/2013,STOCK-ASCRIBE EDGH,Pharmacy Stock,AAH PHARMACEUTICALS LTD,0013003301,581.33
Department of Health,East Sussex Hospitals NHS Trust,10/04/2013,STOCK-ASCRIBE EDGH,Pharmacy Stock,AAH PHARMACEUTICALS LTD,0013003319,625.32
Department of Health,East Sussex Hospitals NHS Trust,10/04/2013,STOCK-ASCRIBE EDGH,Pharmacy Stock,ALCURA UK LTD,0013003333,715.00
Department of Health,East Sussex Hospitals NHS Trust,10/04/2013,STOCK-ASCRIBE EDGH,Pharmacy Stock,ALCURA UK LTD,0013003334,704.28
Department of Health,East Sussex Hospitals NHS Trust,10/04/2013,STOCK-ASCRIBE EDGH,Pharmacy Stock,ELI LILLY & CO LTD,0013003346,3187.30
Department of Health,East Sussex Hospitals NHS Trust,10/04/2013,STOCK-ASCRIBE EDGH,Pharmacy Stock,ELI LILLY & CO LTD,0013003355,2656.08
Department of Health,East Sussex Hospitals NHS Trust,10/04/2013,STOCK-ASCRIBE EDGH,Pharmacy Stock,ROCHE PRODUCTS LTD,0013003366,2797.34
Department of Health,East Sussex Hospitals NHS Trust,10/04/2013,STOCK-ASCRIBE EDGH,Pharmacy Stock,ROCHE PRODUCTS LTD,0013003367,3098.16
Department of Health,East Sussex Hospitals NHS Trust,10/04/2013,STOCK-ASCRIBE EDGH,Pharmacy Stock,ROCHE PRODUCTS LTD,0013003368,20313.36
Department of Health,East Sussex Hospitals NHS Trust,10/04/2013,STOCK-ASCRIBE EDGH,Pharmacy Stock,ROCHE PRODUCTS LTD,0013003370,868.13
Department of Health,East Sussex Hospitals NHS Trust,10/04/2013,STOCK-ASCRIBE EDGH,Pharmacy Stock,ROCHE PRODUCTS LTD,0013003376,12189.12
Department of Health,East Sussex Hospitals NHS Trust,10/04/2013,STOCK-ASCRIBE EDGH,Pharmacy Stock,ROCHE PRODUCTS LTD,0013003382,33844.92
Department of Health,East Sussex Hospitals NHS Trust,10/04/2013,STOCK-ASCRIBE EDGH,Pharmacy Stock,FRESENIUS LTD,0013003383,684.43
Department of Health,East Sussex Hospitals NHS Trust,10/04/2013,STOCK-ASCRIBE EDGH,Pharmacy Stock,ROCHE PRODUCTS LTD,0013003397,2893.80
Department of Health,East Sussex Hospitals NHS Trust,10/04/2013,STOCK-ASCRIBE EDGH,Pharmacy Stock,ROCHE PRODUCTS LTD,0013003398,11092.80
Department of Health,East Sussex Hospitals NHS Trust,10/04/2013,STOCK-ASCRIBE EDGH,Pharmacy Stock,AAH PHARMACEUTICALS LTD,0013003461,656.06
Department of Health,East Sussex Hospitals NHS Trust,10/04/2013,STOCK-ASCRIBE EDGH,Pharmacy Stock,AAH PHARMACEUTICALS LTD,0013003471,513.00
Department of Health,East Sussex Hospitals NHS Trust,10/04/2013,STOCK-ASCRIBE EDGH,Pharmacy Stock,AAH PHARMACEUTICALS LTD,0013003472,541.74
Department of Health,East Sussex Hospitals NHS Trust,10/04/2013,STOCK-ASCRIBE EDGH,Pharmacy Stock,AAH PHARMACEUTICALS LTD,0013003475,694.32
Department of Health,East Sussex Hospitals NHS Trust,10/04/2013,STOCK-ASCRIBE EDGH,Pharmacy Stock,ALCURA UK LTD,0013003484,563.76
Department of Health,East Sussex Hospitals NHS Trust,10/04/2013,STOCK-ASCRIBE EDGH,Pharmacy Stock,ALCURA UK LTD,0013003485,3620.42
Department of Health,East Sussex Hospitals NHS Trust,10/04/2013,STOCK-ASCRIBE EDGH,Pharmacy Stock,ALCURA UK LTD,0013003486,5212.92
Department of Health,East Sussex Hospitals NHS Trust,10/04/2013,STOCK-ASCRIBE EDGH,Pharmacy Stock,ALCURA UK LTD,0013003487,3847.04
Department of Health,East Sussex Hospitals NHS Trust,10/04/2013,STOCK-ASCRIBE EDGH,Pharmacy Stock,ALCURA UK LTD,0013003488,4106.81
Department of Health,East Sussex Hospitals NHS Trust,10/04/2013,STOCK-ASCRIBE EDGH,Pharmacy Stock,ALCURA UK LTD,0013003489,3813.50
Department of Health,East Sussex Hospitals NHS Trust,10/04/2013,STOCK-ASCRIBE EDGH,Pharmacy Stock,ALCURA UK LTD,0013003490,3813.50
Department of Health,East Sussex Hospitals NHS Trust,10/04/2013,STOCK-ASCRIBE EDGH,Pharmacy Stock,ALCURA UK LTD,0013003491,935.19
Department of Health,East Sussex Hospitals NHS Trust,10/04/2013,STOCK-ASCRIBE EDGH,Pharmacy Stock,AAH PHARMACEUTICALS LTD,0013003492,7554.63
Department of Health,East Sussex Hospitals NHS Trust,10/04/2013,STOCK-ASCRIBE EDGH,Pharmacy Stock,ALCURA UK LTD,0013003493,3813.50
Department of Health,East Sussex Hospitals NHS Trust,10/04/2013,STOCK-ASCRIBE EDGH,Pharmacy Stock,ALCURA UK LTD,0013003494,4002.00
Department of Health,East Sussex Hospitals NHS Trust,10/04/2013,STOCK-ASCRIBE EDGH,Pharmacy Stock,ALCURA UK LTD,0013003495,3813.50
Department of Health,East Sussex Hospitals NHS Trust,10/04/2013,STOCK-ASCRIBE EDGH,Pharmacy Stock,ALCURA UK LTD,0013003496,4868.04
Department of Health,East Sussex Hospitals NHS Trust,10/04/2013,STOCK-ASCRIBE EDGH,Pharmacy Stock,ALCURA UK LTD,0013003497,4436.60
Department of Health,East Sussex Hospitals NHS Trust,10/04/2013,STOCK-ASCRIBE EDGH,Pharmacy Stock,ALCURA UK LTD,0013003500,5212.92
Department of Health,East Sussex Hospitals NHS Trust,10/04/2013,STOCK-ASCRIBE EDGH,Pharmacy Stock,ALCURA UK LTD,0013003501,4401.00
Department of Health,East Sussex Hospitals NHS Trust,10/04/2013,STOCK-ASCRIBE EDGH,Pharmacy Stock,AAH PHARMACEUTICALS LTD,0013003522,2419.86
Department of Health,East Sussex Hospitals NHS Trust,10/04/2013,STOCK-ASCRIBE EDGH,Pharmacy Stock,AAH PHARMACEUTICALS LTD,0013003528,592.14
Department of Health,East Sussex Hospitals NHS Trust,10/04/2013,STOCK-ASCRIBE EDGH,Pharmacy Stock,AAH PHARMACEUTICALS LTD,0013003535,513.00
Department of Health,East Sussex Hospitals NHS Trust,10/04/2013,STOCK-ASCRIBE EDGH,Pharmacy Stock,ALCURA UK LTD,0013003675,715.00
Department of Health,East Sussex Hospitals NHS Trust,10/04/2013,STOCK-ASCRIBE EDGH,Pharmacy Stock,ALCURA UK LTD,0013003680,715.00
Department of Health,East Sussex Hospitals NHS Trust,10/04/2013,STOCK-ASCRIBE EDGH,Pharmacy Stock,ALCURA UK LTD,0013003702,704.28
Department of Health,East Sussex Hospitals NHS Trust,10/04/2013,STOCK-ASCRIBE EDGH,Pharmacy Stock,FRESENIUS LTD,0013003727,1371.57
Department of Health,East Sussex Hospitals NHS Trust,10/04/2013,STOCK-ASCRIBE EDGH,Pharmacy Stock,ALCURA UK LTD,0013003730,715.00
Department of Health,East Sussex Hospitals NHS Trust,10/04/2013,STOCK-ASCRIBE EDGH,Pharmacy Stock,ALCURA UK LTD,0013003731,715.00
Department of Health,East Sussex Hospitals NHS Trust,10/04/2013,STOCK-ASCRIBE EDGH,Pharmacy Stock,ALCURA UK LTD,0013003760,704.28
Department of Health,East Sussex Hospitals NHS Trust,10/04/2013,STOCK-ASCRIBE EDGH,Pharmacy Stock,ALLIANCE HEALTHCARE (DISTRIBUTION) LTD,0013003772,1851.36
Department of Health,East Sussex Hospitals NHS Trust,10/04/2013,STOCK-ASCRIBE EDGH,Pharmacy Stock,ALLIANCE HEALTHCARE (DISTRIBUTION) LTD,0013003773,991.10
Department of Health,East Sussex Hospitals NHS Trust,10/04/2013,STOCK-ASCRIBE EDGH,Pharmacy Stock,ALLIANCE HEALTHCARE (DISTRIBUTION) LTD,0013003799,4136.25
Department of Health,East Sussex Hospitals NHS Trust,10/04/2013,STOCK-ASCRIBE EDGH,Pharmacy Stock,ALLIANCE HEALTHCARE (DISTRIBUTION) LTD,0013003802,3798.70
Department of Health,East Sussex Hospitals NHS Trust,10/04/2013,STOCK-ASCRIBE EDGH,Pharmacy Stock,ALLIANCE HEALTHCARE (DISTRIBUTION) LTD,0013003804,4017.28
Department of Health,East Sussex Hospitals NHS Trust,10/04/2013,STOCK-ASCRIBE EDGH,Pharmacy Stock,ALLIANCE HEALTHCARE (DISTRIBUTION) LTD,0013003808,13854.78
Department of Health,East Sussex Hospitals NHS Trust,10/04/2013,STOCK-ASCRIBE EDGH,Pharmacy Stock,ALLIANCE HEALTHCARE (DISTRIBUTION) LTD,0013003830,3968.95
Department of Health,East Sussex Hospitals NHS Trust,10/04/2013,STOCK-ASCRIBE EDGH,Pharmacy Stock,AAH PHARMACEUTICALS LTD,0013003844,1026.00
Department of Health,East Sussex Hospitals NHS Trust,10/04/2013,STOCK-ASCRIBE EDGH,Pharmacy Stock,AAH PHARMACEUTICALS LTD,0013003845,625.32
Department of Health,East Sussex Hospitals NHS Trust,10/04/2013,STOCK-ASCRIBE EDGH,Pharmacy Stock,AAH PHARMACEUTICALS LTD,0013003860,559.38
Department of Health,East Sussex Hospitals NHS Trust,10/04/2013,STOCK-ASCRIBE EDGH,Pharmacy Stock,ROCHE PRODUCTS LTD,0013003912,4158.83
Department of Health,East Sussex Hospitals NHS Trust,10/04/2013,STOCK-ASCRIBE EDGH,Pharmacy Stock,ALCURA UK LTD,0013003931,1643.35
Department of Health,East Sussex Hospitals NHS Trust,10/04/2013,STOCK-ASCRIBE EDGH,Pharmacy Stock,ALCURA UK LTD,0013003932,2451.24
Department of Health,East Sussex Hospitals NHS Trust,10/04/2013,STOCK-ASCRIBE EDGH,Pharmacy Stock,ALCURA UK LTD,0013003933,1240.93
Department of Health,East Sussex Hospitals NHS Trust,10/04/2013,STOCK-ASCRIBE EDGH,Pharmacy Stock,ALCURA UK LTD,0013003934,1757.39
Department of Health,East Sussex Hospitals NHS Trust,10/04/2013,STOCK-ASCRIBE EDGH,Pharmacy Stock,AAH PHARMACEUTICALS LTD,0013003942,625.32
Department of Health,East Sussex Hospitals NHS Trust,10/04/2013,STOCK-ASCRIBE EDGH,Pharmacy Stock,AAH PHARMACEUTICALS LTD,0013003943,513.00
Department of Health,East Sussex Hospitals NHS Trust,10/04/2013,STOCK-ASCRIBE EDGH,Pharmacy Stock,AAH PHARMACEUTICALS LTD,0013003958,521.10
Department of Health,East Sussex Hospitals NHS Trust,10/04/2013,STOCK-ASCRIBE EDGH,Pharmacy Stock,AAH PHARMACEUTICALS LTD,0013003966,521.10
Department of Health,East Sussex Hospitals NHS Trust,10/04/2013,STOCK-ASCRIBE EDGH,Pharmacy Stock,AAH PHARMACEUTICALS LTD,0013003968,1179.47
Department of Health,East Sussex Hospitals NHS Trust,10/04/2013,STOCK-ASCRIBE EDGH,Pharmacy Stock,AAH PHARMACEUTICALS LTD,0013003974,513.00
Department of Health,East Sussex Hospitals NHS Trust,10/04/2013,STOCK-ASCRIBE EDGH,Pharmacy Stock,AAH PHARMACEUTICALS LTD,0013003978,734.40
Department of Health,East Sussex Hospitals NHS Trust,10/04/2013,STOCK-ASCRIBE EDGH,Pharmacy Stock,HEALTHCARE AT HOME LTD,0013004111,704.28
Department of Health,East Sussex Hospitals NHS Trust,10/04/2013,STOCK-ASCRIBE EDGH,Pharmacy Stock,HEALTHCARE AT HOME LTD,0013004112,715.00
Department of Health,East Sussex Hospitals NHS Trust,10/04/2013,STOCK-ASCRIBE EDGH,Pharmacy Stock,HEALTHCARE AT HOME LTD,0013004113,715.00
Department of Health,East Sussex Hospitals NHS Trust,10/04/2013,STOCK-ASCRIBE EDGH,Pharmacy Stock,HEALTHCARE AT HOME LTD,0013004114,715.00
Department of Health,East Sussex Hospitals NHS Trust,10/04/2013,STOCK-ASCRIBE EDGH,Pharmacy Stock,HEALTHCARE AT HOME LTD,0013004115,1408.56
Department of Health,East Sussex Hospitals NHS Trust,10/04/2013,STOCK-ASCRIBE EDGH,Pharmacy Stock,HEALTHCARE AT HOME LTD,0013004116,715.00
Department of Health,East Sussex Hospitals NHS Trust,10/04/2013,STOCK-ASCRIBE EDGH,Pharmacy Stock,HEALTHCARE AT HOME LTD,0013004117,704.28
Department of Health,East Sussex Hospitals NHS Trust,10/04/2013,STOCK-ASCRIBE EDGH,Pharmacy Stock,HEALTHCARE AT HOME LTD,0013004118,715.00
Department of Health,East Sussex Hospitals NHS Trust,10/04/2013,STOCK-ASCRIBE EDGH,Pharmacy Stock,HEALTHCARE AT HOME LTD,0013004119,715.00
Department of Health,East Sussex Hospitals NHS Trust,10/04/2013,STOCK-ASCRIBE EDGH,Pharmacy Stock,HEALTHCARE AT HOME LTD,0013004120,715.00
Department of Health,East Sussex Hospitals NHS Trust,10/04/2013,STOCK-ASCRIBE EDGH,Pharmacy Stock,HEALTHCARE AT HOME LTD,0013004121,715.00
Department of Health,East Sussex Hospitals NHS Trust,10/04/2013,STOCK-ASCRIBE EDGH,Pharmacy Stock,HEALTHCARE AT HOME LTD,0013004122,715.00
Department of Health,East Sussex Hospitals NHS Trust,10/04/2013,STOCK-ASCRIBE EDGH,Pharmacy Stock,HEALTHCARE AT HOME LTD,0013004123,704.28
Department of Health,East Sussex Hospitals NHS Trust,10/04/2013,STOCK-ASCRIBE EDGH,Pharmacy Stock,HEALTHCARE AT HOME LTD,0013004124,2817.12
Department of Health,East Sussex Hospitals NHS Trust,10/04/2013,STOCK-ASCRIBE EDGH,Pharmacy Stock,HEALTHCARE AT HOME LTD,0013004125,715.00
Department of Health,East Sussex Hospitals NHS Trust,10/04/2013,STOCK-ASCRIBE EDGH,Pharmacy Stock,HEALTHCARE AT HOME LTD,0013004126,704.28
Department of Health,East Sussex Hospitals NHS Trust,10/04/2013,STOCK-ASCRIBE EDGH,Pharmacy Stock,HEALTHCARE AT HOME LTD,0013004127,704.28
Department of Health,East Sussex Hospitals NHS Trust,10/04/2013,STOCK-ASCRIBE EDGH,Pharmacy Stock,HEALTHCARE AT HOME LTD,0013004128,704.28
Department of Health,East Sussex Hospitals NHS Trust,10/04/2013,STOCK-ASCRIBE EDGH,Pharmacy Stock,HEALTHCARE AT HOME LTD,0013004129,704.28
Department of Health,East Sussex Hospitals NHS Trust,10/04/2013,STOCK-ASCRIBE EDGH,Pharmacy Stock,HEALTHCARE AT HOME LTD,0013004130,715.00
Department of Health,East Sussex Hospitals NHS Trust,10/04/2013,STOCK-ASCRIBE EDGH,Pharmacy Stock,HEALTHCARE AT HOME LTD,0013004131,1382.15
Department of Health,East Sussex Hospitals NHS Trust,10/04/2013,STOCK-ASCRIBE EDGH,Pharmacy Stock,HEALTHCARE AT HOME LTD,0013004132,1262.45
Department of Health,East Sussex Hospitals NHS Trust,10/04/2013,STOCK-ASCRIBE EDGH,Pharmacy Stock,HEALTHCARE AT HOME LTD,0013004133,715.00
Department of Health,East Sussex Hospitals NHS Trust,10/04/2013,STOCK-ASCRIBE EDGH,Pharmacy Stock,HEALTHCARE AT HOME LTD,0013004134,715.00
Department of Health,East Sussex Hospitals NHS Trust,10/04/2013,STOCK-ASCRIBE EDGH,Pharmacy Stock,HEALTHCARE AT HOME LTD,0013004135,715.00
Department of Health,East Sussex Hospitals NHS Trust,10/04/2013,STOCK-ASCRIBE EDGH,Pharmacy Stock,HEALTHCARE AT HOME LTD,0013004136,715.00
Department of Health,East Sussex Hospitals NHS Trust,10/04/2013,STOCK-ASCRIBE EDGH,Pharmacy Stock,HEALTHCARE AT HOME LTD,0013004137,704.28
Department of Health,East Sussex Hospitals NHS Trust,10/04/2013,STOCK-ASCRIBE EDGH,Pharmacy Stock,HEALTHCARE AT HOME LTD,0013004138,715.00
Department of Health,East Sussex Hospitals NHS Trust,10/04/2013,STOCK-ASCRIBE EDGH,Pharmacy Stock,ALCURA UK LTD,0013004143,704.28
Department of Health,East Sussex Hospitals NHS Trust,10/04/2013,STOCK-ASCRIBE EDGH,Pharmacy Stock,ALCURA UK LTD,0013004150,715.00
Department of Health,East Sussex Hospitals NHS Trust,10/04/2013,STOCK-ASCRIBE EDGH,Pharmacy Stock,ALCURA UK LTD,0013004151,715.00
Department of Health,East Sussex Hospitals NHS Trust,10/04/2013,STOCK-ASCRIBE EDGH,Pharmacy Stock,AAH PHARMACEUTICALS LTD,0013004171,1037.40
Department of Health,East Sussex Hospitals NHS Trust,10/04/2013,STOCK-ASCRIBE EDGH,Pharmacy Stock,AAH PHARMACEUTICALS LTD,0013004177,625.32
Department of Health,East Sussex Hospitals NHS Trust,10/04/2013,STOCK-ASCRIBE EDGH,Pharmacy Stock,AAH PHARMACEUTICALS LTD,0013004185,1880.68
Department of Health,East Sussex Hospitals NHS Trust,17/04/2013,SLA WITH SUSSEX PARTNERSHIP,Planned Care,SUSSEX PARTNERSHIP NHS FOUNDATION TRUST,0000135411,138675.00
Department of Health,East Sussex Hospitals NHS Trust,17/04/2013,OCC THERAPIST BAND 5 RECHARGED,Integrated Care,SUSSEX PARTNERSHIP NHS FOUNDATION TRUST,0000135521,71250.00
Department of Health,East Sussex Hospitals NHS Trust,17/04/2013,OCC THERAPIST BAND 5 RECHARGED,Integrated Care,SUSSEX PARTNERSHIP NHS FOUNDATION TRUST,0000135983,23750.00
Department of Health,East Sussex Hospitals NHS Trust,17/04/2013,SLA WITH SUSSEX PARTNERSHIP,Planned Care,SUSSEX PARTNERSHIP NHS FOUNDATION TRUST,0000136064,46225.00
Department of Health,East Sussex Hospitals NHS Trust,17/04/2013,SR SUSSEX PARTNERSHIP FT,Commercial,SUSSEX PARTNERSHIP NHS FOUNDATION TRUST,0000136299,19599.00
Department of Health,East Sussex Hospitals NHS Trust,17/04/2013,SR SUSSEX PARTNERSHIP FT,Commercial,SUSSEX PARTNERSHIP NHS FOUNDATION TRUST,0000136442,1829.28
Department of Health,East Sussex Hospitals NHS Trust,17/04/2013,SR SUSSEX PARTNERSHIP FT,Commercial,SUSSEX PARTNERSHIP NHS FOUNDATION TRUST,0000136443,3376.85
Department of Health,East Sussex Hospitals NHS Trust,17/04/2013,SR SUSSEX PARTNERSHIP FT,Commercial,SUSSEX PARTNERSHIP NHS FOUNDATION TRUST,0000136444,5315.50
Department of Health,East Sussex Hospitals NHS Trust,17/04/2013,AGENCY SPECIALIST REG,Urgent Care,TEMPLARS MEDICAL,0000282680,3412.80
Department of Health,East Sussex Hospitals NHS Trust,17/04/2013,AGENCY CONSULTANT,Urgent Care,TLC - THE LOCUM CONSULTANCY,0000285139,7223.09
Department of Health,East Sussex Hospitals NHS Trust,17/04/2013,AGENCY NURSE - QUALIFIED,Urgent Care,THORNBURY NURSING SERVICES,0000285629,597.83
Department of Health,East Sussex Hospitals NHS Trust,17/04/2013,AGENCY NURSE - QUALIFIED,Urgent Care,THORNBURY NURSING SERVICES,0000285917,646.45
Department of Health,East Sussex Hospitals NHS Trust,17/04/2013,AGENCY NURSE - QUALIFIED,Urgent Care,THORNBURY NURSING SERVICES,0000285918,596.97
Department of Health,East Sussex Hospitals NHS Trust,17/04/2013,AGENCY NURSE - QUALIFIED,Urgent Care,THORNBURY NURSING SERVICES,0000285919,697.19
Department of Health,East Sussex Hospitals NHS Trust,17/04/2013,AGENCY NURSE - QUALIFIED,Urgent Care,THORNBURY NURSING SERVICES,0000285920,634.47
Department of Health,East Sussex Hospitals NHS Trust,17/04/2013,AGENCY NURSE - QUALIFIED,Urgent Care,THORNBURY NURSING SERVICES,0000285921,649.60
Department of Health,East Sussex Hospitals NHS Trust,17/04/2013,AGENCY NURSE - QUALIFIED,Urgent Care,THORNBURY NURSING SERVICES,0000285922,596.97
Department of Health,East Sussex Hospitals NHS Trust,17/04/2013,AGENCY NURSE - QUALIFIED,Urgent Care,THORNBURY NURSING SERVICES,0000285923,625.79
Department of Health,East Sussex Hospitals NHS Trust,17/04/2013,AGENCY NURSE - QUALIFIED,Urgent Care,THORNBURY NURSING SERVICES,0000286252,649.71
Department of Health,East Sussex Hospitals NHS Trust,17/04/2013,AGENCY NURSE - QUALIFIED,Urgent Care,THORNBURY NURSING SERVICES,0000286253,579.55
Department of Health,East Sussex Hospitals NHS Trust,17/04/2013,AGENCY NURSE - QUALIFIED,Urgent Care,THORNBURY NURSING SERVICES,0000286254,697.33
Department of Health,East Sussex Hospitals NHS Trust,17/04/2013,AGENCY NURSE - QUALIFIED,Urgent Care,THORNBURY NURSING SERVICES,0000286255,632.17
Department of Health,East Sussex Hospitals NHS Trust,17/04/2013,AGENCY NURSE - QUALIFIED,Urgent Care,THORNBURY NURSING SERVICES,0000286256,719.45
Department of Health,East Sussex Hospitals NHS Trust,17/04/2013,AGENCY MLSO,Integrated Care,LABMED,0000286264,1078.20
Department of Health,East Sussex Hospitals NHS Trust,17/04/2013,AGENCY ANCILLARY,Commercial,NINE-TO-FIVE,0000286294,510.46
Department of Health,East Sussex Hospitals NHS Trust,17/04/2013,AGENCY MLSO,Integrated Care,LABMED,0000286319,1347.76
Department of Health,East Sussex Hospitals NHS Trust,17/04/2013,AGENCY NURSE - QUALIFIED,Urgent Care,THORNBURY NURSING SERVICES,0000286321,627.81
Department of Health,East Sussex Hospitals NHS Trust,17/04/2013,AGENCY NURSE - QUALIFIED,Urgent Care,THORNBURY NURSING SERVICES,0000286322,627.81
Department of Health,East Sussex Hospitals NHS Trust,17/04/2013,AGENCY NURSE - QUALIFIED,Urgent Care,THORNBURY NURSING SERVICES,0000286323,695.84
Department of Health,East Sussex Hospitals NHS Trust,17/04/2013,AGENCY NURSE - QUALIFIED,Urgent Care,THORNBURY NURSING SERVICES,0000286325,695.84
Department of Health,East Sussex Hospitals NHS Trust,17/04/2013,AGENCY NURSE - QUALIFIED,Integrated Care,TEAM24 LTD,0000286399,1636.16
Department of Health,East Sussex Hospitals NHS Trust,17/04/2013,AGENCY NURSE - QUALIFIED,Integrated Care,TEAM24 LTD,0000286401,540.04
Department of Health,East Sussex Hospitals NHS Trust,17/04/2013,AGENCY NURSE - QUALIFIED,Integrated Care,TEAM24 LTD,0000286402,536.32
Department of Health,East Sussex Hospitals NHS Trust,17/04/2013,AGENCY NURSE - QUALIFIED,Integrated Care,TEAM24 LTD,0000286403,551.78
Department of Health,East Sussex Hospitals NHS Trust,17/04/2013,AGENCY NURSE - QUALIFIED,Integrated Care,TEAM24 LTD,0000286404,583.99
Department of Health,East Sussex Hospitals NHS Trust,17/04/2013,AGENCY NURSE - QUALIFIED,Integrated Care,TEAM24 LTD,0000286409,519.10
Department of Health,East Sussex Hospitals NHS Trust,17/04/2013,AGENCY NURSE - QUALIFIED,Integrated Care,TEAM24 LTD,0000286411,1665.31
Department of Health,East Sussex Hospitals NHS Trust,17/04/2013,AGENCY NURSE - QUALIFIED,Integrated Care,TEAM24 LTD,0000286412,1574.29
Department of Health,East Sussex Hospitals NHS Trust,17/04/2013,AGENCY NURSE - QUALIFIED,Integrated Care,TEAM24 LTD,0000286413,1026.76
Department of Health,East Sussex Hospitals NHS Trust,17/04/2013,AGENCY NURSE - QUALIFIED,Integrated Care,TEAM24 LTD,0000286414,596.97
Department of Health,East Sussex Hospitals NHS Trust,17/04/2013,AGENCY NURSE - QUALIFIED,Integrated Care,TEAM24 LTD,0000286415,536.32
Department of Health,East Sussex Hospitals NHS Trust,17/04/2013,AGENCY NURSE - QUALIFIED,Integrated Care,TEAM24 LTD,0000286420,1137.01
Department of Health,East Sussex Hospitals NHS Trust,17/04/2013,AGENCY NURSE - QUALIFIED,Integrated Care,TEAM24 LTD,0000286421,528.72
Department of Health,East Sussex Hospitals NHS Trust,17/04/2013,AGENCY NURSE - QUALIFIED,Integrated Care,TEAM24 LTD,0000286422,536.32
Department of Health,East Sussex Hospitals NHS Trust,17/04/2013,AGENCY NURSE - QUALIFIED,Integrated Care,TEAM24 LTD,0000286423,536.32
Department of Health,East Sussex Hospitals NHS Trust,17/04/2013,AGENCY NURSE - QUALIFIED,Integrated Care,TEAM24 LTD,0000286425,1946.88
Department of Health,East Sussex Hospitals NHS Trust,17/04/2013,AGENCY NURSE - QUALIFIED,Integrated Care,TEAM24 LTD,0000286426,1608.96
Department of Health,East Sussex Hospitals NHS Trust,17/04/2013,AGENCY NURSE - QUALIFIED,Integrated Care,TEAM24 LTD,0000286427,1725.24
Department of Health,East Sussex Hospitals NHS Trust,17/04/2013,AGENCY CONSULTANT,Urgent Care,MEDACS HEALTHCARE SERVICES LTD,0000286458,14198.60
Department of Health,East Sussex Hospitals NHS Trust,17/04/2013,AGENCY MLSO,Integrated Care,LABMED,0000286524,1221.96
Department of Health,East Sussex Hospitals NHS Trust,17/04/2013,AGENCY ANCILLARY,Commercial,NINE-TO-FIVE,0000286566,922.51
Department of Health,East Sussex Hospitals NHS Trust,17/04/2013,AGENCY CONSULTANT,Planned Care,TLC - THE LOCUM CONSULTANCY,0000286607,4752.00
Department of Health,East Sussex Hospitals NHS Trust,17/04/2013,AGENCY MTO,Integrated Care,HCL DOCTORS,0000286610,1053.00
Department of Health,East Sussex Hospitals NHS Trust,17/04/2013,AGENCY MTO,Integrated Care,HCL DOCTORS,0000286611,603.72
Department of Health,East Sussex Hospitals NHS Trust,17/04/2013,AGENCY NURSE - QUALIFIED,Urgent Care,MAYFAIR,0000286702,468.74
Department of Health,East Sussex Hospitals NHS Trust,17/04/2013,AGENCY NURSE - QUALIFIED,Urgent Care,MAYFAIR,0000286703,419.48
Department of Health,East Sussex Hospitals NHS Trust,17/04/2013,AGENCY NURSE - UNQUALIFIED,Urgent Care,MAYFAIR,0000286704,945.10
Department of Health,East Sussex Hospitals NHS Trust,17/04/2013,AGENCY NURSE - UNQUALIFIED,Urgent Care,MAYFAIR,0000286705,755.47
Department of Health,East Sussex Hospitals NHS Trust,17/04/2013,AGENCY NURSE - UNQUALIFIED,Urgent Care,MAYFAIR,0000286706,425.90
Department of Health,East Sussex Hospitals NHS Trust,17/04/2013,AGENCY NURSE - UNQUALIFIED,Urgent Care,MAYFAIR,0000286710,911.21
Department of Health,East Sussex Hospitals NHS Trust,17/04/2013,AGENCY TECHNICIAN,Planned Care,THE PLACEMENT GROUP,0000286735,1150.22
Department of Health,East Sussex Hospitals NHS Trust,17/04/2013,AGENCY PHYSIOTHERAPY STAFF,Integrated Care,THE PLACEMENT GROUP,0000286736,1749.92
Department of Health,East Sussex Hospitals NHS Trust,17/04/2013,AGENCY OCC THERAPY STAFF,Integrated Care,THE PLACEMENT GROUP,0000286737,878.38
Department of Health,East Sussex Hospitals NHS Trust,17/04/2013,AGENCY OCC THERAPY STAFF,Integrated Care,THE PLACEMENT GROUP,0000286738,1026.31
Department of Health,East Sussex Hospitals NHS Trust,17/04/2013,AGENCY OCC THERAPY STAFF,Integrated Care,THE PLACEMENT GROUP,0000286739,1386.90
Department of Health,East Sussex Hospitals NHS Trust,17/04/2013,AGENCY TECHNICIAN,Urgent Care,THE PLACEMENT GROUP,0000286741,1175.86
Department of Health,East Sussex Hospitals NHS Trust,17/04/2013,AGENCY TECHNICIAN,Urgent Care,THE PLACEMENT GROUP,0000286742,1959.76
Department of Health,East Sussex Hospitals NHS Trust,17/04/2013,AGENCY NURSE - QUALIFIED,Urgent Care,AMBITION,0000286857,775.11
Department of Health,East Sussex Hospitals NHS Trust,17/04/2013,AGENCY SPECIALIST REG,Integrated Care,SCARAMOUCHE LOCUM SERVICES LTD,0000287012,587.49
Department of Health,East Sussex Hospitals NHS Trust,17/04/2013,AGENCY CONSULTANT,Planned Care,TLC - THE LOCUM CONSULTANCY,0000287013,4752.00
Department of Health,East Sussex Hospitals NHS Trust,17/04/2013,AGENCY RADIOGRAPHY STAFF,Integrated Care,RIG MEDICAL RECRUIT LTD,0000287061,1348.20
Department of Health,East Sussex Hospitals NHS Trust,17/04/2013,AGENCY RADIOGRAPHY STAFF,Integrated Care,RIG MEDICAL RECRUIT LTD,0000287063,1348.20
Department of Health,East Sussex Hospitals NHS Trust,17/04/2013,AGENCY CONSULTANT,Planned Care,TLC - THE LOCUM CONSULTANCY,0000287073,4752.00
Department of Health,East Sussex Hospitals NHS Trust,17/04/2013,AGENCY PHYSIOTHERAPY STAFF,Integrated Care,RIG MEDICAL RECRUIT LTD,0000287093,708.17
Department of Health,East Sussex Hospitals NHS Trust,17/04/2013,AGENCY OCC THERAPY STAFF,Integrated Care,RIG MEDICAL RECRUIT LTD,0000287097,821.74
Department of Health,East Sussex Hospitals NHS Trust,17/04/2013,AGENCY SPEECH THERAPIST,Integrated Care,SUGARMAN GROUP LTD,0000287145,877.50
Department of Health,East Sussex Hospitals NHS Trust,17/04/2013,AGENCY - GENERAL GRADES,Commercial,INTERWORK RECRUITMENT CONSULTANTS LTD,0000287180,1109.56
Department of Health,East Sussex Hospitals NHS Trust,17/04/2013,AGENCY SPEECH THERAPIST,Integrated Care,SUGARMAN GROUP LTD,0000287319,585.00
Department of Health,East Sussex Hospitals NHS Trust,17/04/2013,AGENCY SPEECH THERAPIST,Integrated Care,SUGARMAN GROUP LTD,0000287320,877.50
Department of Health,East Sussex Hospitals NHS Trust,17/04/2013,AGENCY STAFF GRADE,Urgent Care,THE ACCIDENT & EMERGENCY AGENCY LTD,0000287421,1950.00
Department of Health,East Sussex Hospitals NHS Trust,17/04/2013,TRAVEL & SUBSISTENCE,Planned Care,TLC - THE LOCUM CONSULTANCY,0000287425,4752.00
Department of Health,East Sussex Hospitals NHS Trust,17/04/2013,AGENCY - GENERAL GRADES,Commercial,INTERWORK RECRUITMENT CONSULTANTS LTD,0000287440,684.93
Department of Health,East Sussex Hospitals NHS Trust,17/04/2013,AGENCY ANCILLARY,Commercial,NINE-TO-FIVE,0000287448,1068.61
Department of Health,East Sussex Hospitals NHS Trust,17/04/2013,AGENCY SPECIALIST REG,Integrated Care,MEDACS HEALTHCARE SERVICES LTD,0000287514,775.13
Department of Health,East Sussex Hospitals NHS Trust,17/04/2013,AGENCY SPECIALIST REG,Integrated Care,MEDACS HEALTHCARE SERVICES LTD,0000287516,981.23
Department of Health,East Sussex Hospitals NHS Trust,17/04/2013,AGENCY TECHNICIAN,Urgent Care,ABSOLUTE ACCOUNTING & TAX SOLS LTD,0000287517,1176.00
Department of Health,East Sussex Hospitals NHS Trust,17/04/2013,AGENCY TECHNICIAN,Urgent Care,ABSOLUTE ACCOUNTING & TAX SOLS LTD,0000287518,1127.00
Department of Health,East Sussex Hospitals NHS Trust,17/04/2013,AGENCY TECHNICIAN,Urgent Care,ABSOLUTE ACCOUNTING & TAX SOLS LTD,0000287519,1629.75
Department of Health,East Sussex Hospitals NHS Trust,17/04/2013,AGENCY NURSE - QUALIFIED,Urgent Care,AMBITION,0000287599,1157.94
Department of Health,East Sussex Hospitals NHS Trust,17/04/2013,SEBIA,Integrated Care,SEBIA UK LTD,0000360941,1788.00
Department of Health,East Sussex Hospitals NHS Trust,17/04/2013,MEDICAL GASES,Commercial,BOC (MANCHESTER)LTD,0000361100,490.50
Department of Health,East Sussex Hospitals NHS Trust,17/04/2013,MEDICAL GAS - CYLINDER RENTAL,Commercial,BOC (MANCHESTER)LTD,0000361100,282.54
Department of Health,East Sussex Hospitals NHS Trust,17/04/2013,MEDICAL GAS - CYLINDER RENTAL,Commercial,BOC (MANCHESTER)LTD,0000361100,1655.75
Department of Health,East Sussex Hospitals NHS Trust,17/04/2013,MEDICAL GAS - VIE USE,Commercial,BOC (MANCHESTER)LTD,0000361301,1048.08
Department of Health,East Sussex Hospitals NHS Trust,17/04/2013,MEDICAL GAS - VIE USE,Commercial,BOC (MANCHESTER)LTD,0000361303,1162.96
Department of Health,East Sussex Hospitals NHS Trust,17/04/2013,MEDICAL GAS - VIE USE,Commercial,BOC (MANCHESTER)LTD,0000361312,843.85
Department of Health,East Sussex Hospitals NHS Trust,17/04/2013,MEDICAL GAS - VIE USE,Commercial,BOC (MANCHESTER)LTD,0000361335,821.32
Department of Health,East Sussex Hospitals NHS Trust,17/04/2013,ENGINEER CONTRACT - REPAIR,Commercial,ARCOOL LTD,0000361342,929.24
Department of Health,East Sussex Hospitals NHS Trust,17/04/2013,MEDICAL GAS - VIE USE,Commercial,BOC (MANCHESTER)LTD,0000361355,765.86
Department of Health,East Sussex Hospitals NHS Trust,17/04/2013,B & E MAINT - REDEC WORKS,Commercial,CRUTTENDEN T V,0000361417,1457.00
Department of Health,East Sussex Hospitals NHS Trust,17/04/2013,CAPITAL EXPENDITURE,Other Central,AVINNY CONSULTING ENGINEERS,0000361436,1080.00
Department of Health,East Sussex Hospitals NHS Trust,17/04/2013,CAPITAL EXPENDITURE,Other Central,J M LOADES & ASSOCIATES LTD,0000361437,500.00
Department of Health,East Sussex Hospitals NHS Trust,17/04/2013,CAPITAL EXPENDITURE,Other Central,H WILSON (ALFRISTON) LTD,0000361438,36683.60
Department of Health,East Sussex Hospitals NHS Trust,17/04/2013,CAPITAL EXPENDITURE,Other Central,EASTBOURNE ELECTRICAL,0000361439,972.62
Department of Health,East Sussex Hospitals NHS Trust,17/04/2013,CAPITAL EXPENDITURE,Other Central,BOOKER & BEST LIMITED,0000361441,2642.74
Department of Health,East Sussex Hospitals NHS Trust,17/04/2013,MINOR WORKS - BUILDING,Urgent Care,BOOKER & BEST LIMITED,0000361442,2006.74
Department of Health,East Sussex Hospitals NHS Trust,17/04/2013,MINOR WORKS - BUILDING,Commercial,EASTBOURNE ELECTRICAL,0000361443,1505.63
Department of Health,East Sussex Hospitals NHS Trust,17/04/2013,PROFESSIONAL FEES,Commercial,NIGEL HOLLAND,0000361444,2961.20
Department of Health,East Sussex Hospitals NHS Trust,17/04/2013,PROFESSIONAL FEES,Commercial,NIGEL HOLLAND,0000361445,3107.60
Department of Health,East Sussex Hospitals NHS Trust,17/04/2013,PROFESSIONAL FEES,Commercial,NIGEL HOLLAND,0000361446,3358.80
Department of Health,East Sussex Hospitals NHS Trust,17/04/2013,CAPITAL EXPENDITURE,Other Central,BOOKER & BEST LIMITED,0000361447,8400.00
Department of Health,East Sussex Hospitals NHS Trust,17/04/2013,PROFESSIONAL FEES,Commercial,JOHN HARRATT,0000361448,1875.00
Department of Health,East Sussex Hospitals NHS Trust,17/04/2013,PROFESSIONAL FEES,Commercial,EIDOS VISUALS,0000361450,4116.00
Department of Health,East Sussex Hospitals NHS Trust,17/04/2013,PROFESSIONAL FEES,Commercial,KEVAN CORNWALL,0000361451,1480.50
Department of Health,East Sussex Hospitals NHS Trust,17/04/2013,AGENCY SPECIALIST REG,Urgent Care,PAPADI LTD,0000361459,2775.00
Department of Health,East Sussex Hospitals NHS Trust,17/04/2013,MEDICAL GAS - VIE USE,Commercial,BOC (MANCHESTER)LTD,0000620865,1582.78
Department of Health,East Sussex Hospitals NHS Trust,17/04/2013,SEBIA,Integrated Care,SEBIA UK LTD,0000621419,1396.00
Department of Health,East Sussex Hospitals NHS Trust,17/04/2013,ENG MAT`S -CATERING EQUIPMENT,Commercial,HOBART UK,0000621554,1361.80
Department of Health,East Sussex Hospitals NHS Trust,17/04/2013,BUILDING MATERIALS,Commercial,CROWN PAINTS LIMITED,0000621600,541.15
Department of Health,East Sussex Hospitals NHS Trust,17/04/2013,CONTRACT ENGINEERING MAINT,Commercial,HAMWORTHY HEATING LTD,0000621679,1224.30
Department of Health,East Sussex Hospitals NHS Trust,17/04/2013,MEDICAL GAS - VIE RENTAL,Commercial,BOC (MANCHESTER)LTD,0000621709,55.96
Department of Health,East Sussex Hospitals NHS Trust,17/04/2013,MEDICAL GAS - VIE USE,Commercial,BOC (MANCHESTER)LTD,0000621709,707.12
Department of Health,East Sussex Hospitals NHS Trust,17/04/2013,MEDICAL GAS - VIE RENTAL,Commercial,BOC (MANCHESTER)LTD,0000621710,55.96
Department of Health,East Sussex Hospitals NHS Trust,17/04/2013,MEDICAL GAS - VIE USE,Commercial,BOC (MANCHESTER)LTD,0000621710,716.82
Department of Health,East Sussex Hospitals NHS Trust,17/04/2013,MEDICAL GAS - VIE RENTAL,Commercial,BOC (MANCHESTER)LTD,0000621714,55.96
Department of Health,East Sussex Hospitals NHS Trust,17/04/2013,MEDICAL GAS - VIE USE,Commercial,BOC (MANCHESTER)LTD,0000621714,576.53
Department of Health,East Sussex Hospitals NHS Trust,17/04/2013,MEDICAL GAS - VIE RENTAL,Commercial,BOC (MANCHESTER)LTD,0000621715,55.96
Department of Health,East Sussex Hospitals NHS Trust,17/04/2013,MEDICAL GAS - VIE USE,Commercial,BOC (MANCHESTER)LTD,0000621715,488.21
Department of Health,East Sussex Hospitals NHS Trust,17/04/2013,MEDICAL GAS - VIE RENTAL,Commercial,BOC (MANCHESTER)LTD,0000621717,55.96
Department of Health,East Sussex Hospitals NHS Trust,17/04/2013,MEDICAL GAS - VIE USE,Commercial,BOC (MANCHESTER)LTD,0000621717,676.97
Department of Health,East Sussex Hospitals NHS Trust,17/04/2013,MEDICAL GAS - VIE RENTAL,Commercial,BOC (MANCHESTER)LTD,0000621720,55.96
Department of Health,East Sussex Hospitals NHS Trust,17/04/2013,MEDICAL GAS - VIE USE,Commercial,BOC (MANCHESTER)LTD,0000621720,776.34
Department of Health,East Sussex Hospitals NHS Trust,17/04/2013,MEDICAL GAS - VIE RENTAL,Commercial,BOC (MANCHESTER)LTD,0000621723,55.96
Department of Health,East Sussex Hospitals NHS Trust,17/04/2013,MEDICAL GAS - VIE USE,Commercial,BOC (MANCHESTER)LTD,0000621723,578.69
Department of Health,East Sussex Hospitals NHS Trust,17/04/2013,MEDICAL GAS - VIE RENTAL,Commercial,BOC (MANCHESTER)LTD,0000621755,55.96
Department of Health,East Sussex Hospitals NHS Trust,17/04/2013,MEDICAL GAS - VIE USE,Commercial,BOC (MANCHESTER)LTD,0000621755,692.58
Department of Health,East Sussex Hospitals NHS Trust,17/04/2013,ENGINEERING MATERIALS,Commercial,VENTILATION SHEETMETAL LIMITED,0000621769,291.67
Department of Health,East Sussex Hospitals NHS Trust,17/04/2013,CAPITAL EXPENDITURE,Other Central,VENTILATION SHEETMETAL LIMITED,0000621769,743.78
Department of Health,East Sussex Hospitals NHS Trust,17/04/2013,MEDICAL GAS - VIE RENTAL,Commercial,BOC (MANCHESTER)LTD,0000621783,55.96
Department of Health,East Sussex Hospitals NHS Trust,17/04/2013,MEDICAL GAS - VIE USE,Commercial,BOC (MANCHESTER)LTD,0000621783,511.63
Department of Health,East Sussex Hospitals NHS Trust,17/04/2013,PROFESSIONAL FEES,Commercial,RICHARD WILES ASSOCIATES LTD,0000621789,1913.05
Department of Health,East Sussex Hospitals NHS Trust,17/04/2013,PROFESSIONAL FEES,Commercial,RICHARD WILES ASSOCIATES LTD,0000621790,2872.10
Department of Health,East Sussex Hospitals NHS Trust,17/04/2013,MEDICAL GAS - VIE RENTAL,Commercial,BOC (MANCHESTER)LTD,0000621837,55.96
Department of Health,East Sussex Hospitals NHS Trust,17/04/2013,MEDICAL GAS - VIE USE,Commercial,BOC (MANCHESTER)LTD,0000621837,658.13
Department of Health,East Sussex Hospitals NHS Trust,17/04/2013,COMPUTER MAINTENANCE-HARDWARE,Commercial,DATASYM (UK) LTD,0000621841,1740.00
Department of Health,East Sussex Hospitals NHS Trust,17/04/2013,PATS APPL - SPINAL CORSETS,Integrated Care,D M ORTHOTICS LTD,0000754481,683.88
Department of Health,East Sussex Hospitals NHS Trust,17/04/2013,PROSTHESES-OTHER,Planned Care,SMITH & NEPHEW ADVANCED SURGICAL DEVICES,0000893439,524.11
Department of Health,East Sussex Hospitals NHS Trust,17/04/2013,M&S GENERAL SUPPLIES-OTHER,Planned Care,TELEFLEX MEDICAL,0000895741,685.44
Department of Health,East Sussex Hospitals NHS Trust,17/04/2013,STAPLING DEVICES,Planned Care,TPS HEALTHCARE,0000895760,892.80
Department of Health,East Sussex Hospitals NHS Trust,17/04/2013,PRE-STERILE COMMERCIAL PACKS,Planned Care,MOLNLYCKE HEALTHCARE,0000895808,317.53
Department of Health,East Sussex Hospitals NHS Trust,17/04/2013,DISPOSABLE DRAPES,Planned Care,MOLNLYCKE HEALTHCARE,0000895808,348.29
Department of Health,East Sussex Hospitals NHS Trust,17/04/2013,M&S GENERAL SUPPLIES-OTHER,Planned Care,TELEFLEX MEDICAL,0000895810,830.40
Department of Health,East Sussex Hospitals NHS Trust,17/04/2013,"PATS APPL - NECK, ARM, HAND",Planned Care,OSSUR UK LTD,0000895824,282.90
Department of Health,East Sussex Hospitals NHS Trust,17/04/2013,PATS APPL - LEG SUPPORTS,Planned Care,OSSUR UK LTD,0000895824,302.35
Department of Health,East Sussex Hospitals NHS Trust,17/04/2013,PROSTHESES-HIP,Planned Care,STRYKER UK,0000895965,979.78
Department of Health,East Sussex Hospitals NHS Trust,17/04/2013,PROSTHESES-OTHER,Planned Care,STRYKER UK,0000895990,947.52
Department of Health,East Sussex Hospitals NHS Trust,17/04/2013,M&S GENERAL SUPPLIES-OTHER,Planned Care,STRYKER UK,0000895991,365.16
Department of Health,East Sussex Hospitals NHS Trust,17/04/2013,SURGICAL INSTRUMENTS,Planned Care,STRYKER UK,0000895991,606.48
Department of Health,East Sussex Hospitals NHS Trust,17/04/2013,PROSTHESES-HIP,Planned Care,STRYKER UK,0000896003,1921.73
Department of Health,East Sussex Hospitals NHS Trust,17/04/2013,PROSTHESES-OTHER,Planned Care,STRYKER UK,0000896004,947.52
Department of Health,East Sussex Hospitals NHS Trust,17/04/2013,"PATS APPL - NECK, ARM, HAND",Planned Care,OSSUR UK LTD,0000896083,712.56
Department of Health,East Sussex Hospitals NHS Trust,17/04/2013,"PATS APPL - NECK, ARM, HAND",Planned Care,OSSUR UK LTD,0000896087,525.42
Department of Health,East Sussex Hospitals NHS Trust,17/04/2013,"PATS APPL - NECK, ARM, HAND",Planned Care,OSSUR UK LTD,0000896137,-766.08
Department of Health,East Sussex Hospitals NHS Trust,17/04/2013,"PATS APPL - NECK, ARM, HAND",Planned Care,OSSUR UK LTD,0000896139,-554.12
Department of Health,East Sussex Hospitals NHS Trust,17/04/2013,"PATS APPL - NECK, ARM, HAND",Planned Care,OSSUR UK LTD,0000896141,-509.82
Department of Health,East Sussex Hospitals NHS Trust,17/04/2013,"PATS APPL - NECK, ARM, HAND",Planned Care,OSSUR UK LTD,0000896145,-585.25
Department of Health,East Sussex Hospitals NHS Trust,17/04/2013,TSSU INSTRUMENTATION,Commercial,JOINT REPLACEMENT INSTRUMENTATION  LTD,0000896358,1266.00
Department of Health,East Sussex Hospitals NHS Trust,17/04/2013,STOCK-ASCRIBE CONQUEST,Pharmacy Stock,MEDCO HEALTH SOLUTIONS LTD,0001206811,2147.00
Department of Health,East Sussex Hospitals NHS Trust,17/04/2013,STOCK-ASCRIBE CONQUEST,Pharmacy Stock,MEDCO HEALTH SOLUTIONS LTD,0001206812,762.97
Department of Health,East Sussex Hospitals NHS Trust,17/04/2013,STOCK-ASCRIBE CONQUEST,Pharmacy Stock,MEDCO HEALTH SOLUTIONS LTD,0001206813,762.97
Department of Health,East Sussex Hospitals NHS Trust,17/04/2013,STOCK-ASCRIBE CONQUEST,Pharmacy Stock,MEDCO HEALTH SOLUTIONS LTD,0001206836,1577.00
Department of Health,East Sussex Hospitals NHS Trust,17/04/2013,STOCK-ASCRIBE CONQUEST,Pharmacy Stock,MEDCO HEALTH SOLUTIONS LTD,0001206837,762.97
Department of Health,East Sussex Hospitals NHS Trust,17/04/2013,STOCK-ASCRIBE CONQUEST,Pharmacy Stock,MEDCO HEALTH SOLUTIONS LTD,0001206838,2147.00
Department of Health,East Sussex Hospitals NHS Trust,17/04/2013,STOCK-ASCRIBE CONQUEST,Pharmacy Stock,MEDCO HEALTH SOLUTIONS LTD,0001206839,2147.00
Department of Health,East Sussex Hospitals NHS Trust,17/04/2013,STOCK-ASCRIBE CONQUEST,Pharmacy Stock,MEDCO HEALTH SOLUTIONS LTD,0001206840,2147.00
Department of Health,East Sussex Hospitals NHS Trust,17/04/2013,STOCK-ASCRIBE CONQUEST,Pharmacy Stock,MEDCO HEALTH SOLUTIONS LTD,0001206841,762.97
Department of Health,East Sussex Hospitals NHS Trust,17/04/2013,STOCK-ASCRIBE CONQUEST,Pharmacy Stock,MEDCO HEALTH SOLUTIONS LTD,0001206842,762.97
Department of Health,East Sussex Hospitals NHS Trust,17/04/2013,STOCK-ASCRIBE CONQUEST,Pharmacy Stock,MEDCO HEALTH SOLUTIONS LTD,0001206843,762.97
Department of Health,East Sussex Hospitals NHS Trust,17/04/2013,STOCK-ASCRIBE CONQUEST,Pharmacy Stock,MEDCO HEALTH SOLUTIONS LTD,0001206844,762.97
Department of Health,East Sussex Hospitals NHS Trust,17/04/2013,STOCK-ASCRIBE CONQUEST,Pharmacy Stock,MEDCO HEALTH SOLUTIONS LTD,0001206845,762.97
Department of Health,East Sussex Hospitals NHS Trust,17/04/2013,STOCK-ASCRIBE CONQUEST,Pharmacy Stock,MEDCO HEALTH SOLUTIONS LTD,0001206846,762.97
Department of Health,East Sussex Hospitals NHS Trust,17/04/2013,STOCK-ASCRIBE CONQUEST,Pharmacy Stock,MEDCO HEALTH SOLUTIONS LTD,0001206847,1577.00
Department of Health,East Sussex Hospitals NHS Trust,17/04/2013,STOCK-ASCRIBE CONQUEST,Pharmacy Stock,MEDCO HEALTH SOLUTIONS LTD,0001206848,1577.00
Department of Health,East Sussex Hospitals NHS Trust,17/04/2013,STOCK-ASCRIBE CONQUEST,Pharmacy Stock,MEDCO HEALTH SOLUTIONS LTD,0001206849,1577.00
Department of Health,East Sussex Hospitals NHS Trust,17/04/2013,STOCK-ASCRIBE CONQUEST,Pharmacy Stock,MEDCO HEALTH SOLUTIONS LTD,0001206850,762.97
Department of Health,East Sussex Hospitals NHS Trust,17/04/2013,STOCK-ASCRIBE CONQUEST,Pharmacy Stock,MEDCO HEALTH SOLUTIONS LTD,0001206851,762.97
Department of Health,East Sussex Hospitals NHS Trust,17/04/2013,STOCK-ASCRIBE CONQUEST,Pharmacy Stock,MEDCO HEALTH SOLUTIONS LTD,0001206852,762.97
Department of Health,East Sussex Hospitals NHS Trust,17/04/2013,STOCK-ASCRIBE CONQUEST,Pharmacy Stock,MEDCO HEALTH SOLUTIONS LTD,0001206853,762.97
Department of Health,East Sussex Hospitals NHS Trust,17/04/2013,STOCK-ASCRIBE CONQUEST,Pharmacy Stock,MEDCO HEALTH SOLUTIONS LTD,0001206854,762.97
Department of Health,East Sussex Hospitals NHS Trust,17/04/2013,STOCK-ASCRIBE CONQUEST,Pharmacy Stock,UNIDRUG DISTRIBUTION GROUP LTD,0001206987,2673.00
Department of Health,East Sussex Hospitals NHS Trust,17/04/2013,STOCK-ASCRIBE CONQUEST,Pharmacy Stock,UNIDRUG DISTRIBUTION GROUP LTD,0001206996,1266.58
Department of Health,East Sussex Hospitals NHS Trust,17/04/2013,STOCK-ASCRIBE CONQUEST,Pharmacy Stock,ABBOTT LABORATORIES LTD,0001207043,3355.20
Department of Health,East Sussex Hospitals NHS Trust,17/04/2013,STOCK-ASCRIBE CONQUEST,Pharmacy Stock,UNIDRUG DISTRIBUTION GROUP LTD,0001207064,1457.94
Department of Health,East Sussex Hospitals NHS Trust,17/04/2013,STOCK-ASCRIBE CONQUEST,Pharmacy Stock,OXFORD HEALTH NHS FOUNDATION TRUST,0001207494,649.44
Department of Health,East Sussex Hospitals NHS Trust,17/04/2013,STOCK-ASCRIBE CONQUEST,Pharmacy Stock,GAMBRO LUNDIA AB,0001207496,1140.00
Department of Health,East Sussex Hospitals NHS Trust,17/04/2013,STOCK-ASCRIBE CONQUEST,Pharmacy Stock,UNIDRUG DISTRIBUTION GROUP LTD,0001207508,1626.60
Department of Health,East Sussex Hospitals NHS Trust,17/04/2013,STOCK-ASCRIBE CONQUEST,Pharmacy Stock,UNIDRUG DISTRIBUTION GROUP LTD,0001207513,546.78
Department of Health,East Sussex Hospitals NHS Trust,17/04/2013,STOCK-ASCRIBE CONQUEST,Pharmacy Stock,HAMELN PHARMACEUTICALS LTD,0001207523,740.04
Department of Health,East Sussex Hospitals NHS Trust,17/04/2013,STOCK-ASCRIBE CONQUEST,Pharmacy Stock,OXFORD HEALTH NHS FOUNDATION TRUST,0001207530,569.66
Department of Health,East Sussex Hospitals NHS Trust,17/04/2013,STOCK-ASCRIBE CONQUEST,Pharmacy Stock,UNIDRUG DISTRIBUTION GROUP LTD,0001207533,605.40
Department of Health,East Sussex Hospitals NHS Trust,17/04/2013,STOCK-ASCRIBE CONQUEST,Pharmacy Stock,UNIDRUG DISTRIBUTION GROUP LTD,0001207544,881.76
Department of Health,East Sussex Hospitals NHS Trust,17/04/2013,STOCK-ASCRIBE CONQUEST,Pharmacy Stock,WAYMADE HEALTHCARE PLC,0001207557,622.00
Department of Health,East Sussex Hospitals NHS Trust,17/04/2013,STOCK-ASCRIBE CONQUEST,Pharmacy Stock,BAYER PLC,0001207558,5364.84
Department of Health,East Sussex Hospitals NHS Trust,17/04/2013,STOCK-ASCRIBE CONQUEST,Pharmacy Stock,GAMBRO LUNDIA AB,0001207561,1140.00
Department of Health,East Sussex Hospitals NHS Trust,17/04/2013,STOCK-ASCRIBE CONQUEST,Pharmacy Stock,OXFORD HEALTH NHS FOUNDATION TRUST,0001207566,864.20
Department of Health,East Sussex Hospitals NHS Trust,17/04/2013,STOCK-ASCRIBE CONQUEST,Pharmacy Stock,GAMBRO LUNDIA AB,0001207589,1080.00
Department of Health,East Sussex Hospitals NHS Trust,17/04/2013,STOCK-ASCRIBE CONQUEST,Pharmacy Stock,UNIDRUG DISTRIBUTION GROUP LTD,0001207591,669.00
Department of Health,East Sussex Hospitals NHS Trust,17/04/2013,STOCK-ASCRIBE CONQUEST,Pharmacy Stock,WAYMADE HEALTHCARE PLC,0001207592,809.64
Department of Health,East Sussex Hospitals NHS Trust,17/04/2013,STOCK-ASCRIBE CONQUEST,Pharmacy Stock,UNIDRUG DISTRIBUTION GROUP LTD,0001207615,886.56
Department of Health,East Sussex Hospitals NHS Trust,17/04/2013,STOCK-ASCRIBE CONQUEST,Pharmacy Stock,BAYER PLC,0001208056,2682.42
Department of Health,East Sussex Hospitals NHS Trust,17/04/2013,STOCK-ASCRIBE CONQUEST,Pharmacy Stock,GAMBRO LUNDIA AB,0001208112,2280.00
Department of Health,East Sussex Hospitals NHS Trust,17/04/2013,STOCK-ASCRIBE CONQUEST,Pharmacy Stock,HAMELN PHARMACEUTICALS LTD,0001208114,551.82
Department of Health,East Sussex Hospitals NHS Trust,17/04/2013,STOCK-ASCRIBE CONQUEST,Pharmacy Stock,CHIESI  LTD,0001208117,1680.00
Department of Health,East Sussex Hospitals NHS Trust,17/04/2013,STOCK-ASCRIBE CONQUEST,Pharmacy Stock,UNIDRUG DISTRIBUTION GROUP LTD,0001208123,550.18
Department of Health,East Sussex Hospitals NHS Trust,17/04/2013,STOCK-ASCRIBE CONQUEST,Pharmacy Stock,UNIDRUG DISTRIBUTION GROUP LTD,0001208163,615.00
Department of Health,East Sussex Hospitals NHS Trust,17/04/2013,STOCK-ASCRIBE CONQUEST,Pharmacy Stock,UNIDRUG DISTRIBUTION GROUP LTD,0001208347,1830.00
Department of Health,East Sussex Hospitals NHS Trust,17/04/2013,STOCK-ASCRIBE CONQUEST,Pharmacy Stock,UNIDRUG DISTRIBUTION GROUP LTD,0001208377,703.86
Department of Health,East Sussex Hospitals NHS Trust,17/04/2013,STOCK-ASCRIBE CONQUEST,Pharmacy Stock,UNIDRUG DISTRIBUTION GROUP LTD,0001208397,716.40
Department of Health,East Sussex Hospitals NHS Trust,17/04/2013,STOCK-ASCRIBE CONQUEST,Pharmacy Stock,ELI LILLY & CO LTD,0001208399,6374.59
Department of Health,East Sussex Hospitals NHS Trust,17/04/2013,STOCK-ASCRIBE CONQUEST,Pharmacy Stock,UNIDRUG DISTRIBUTION GROUP LTD,0001208404,1358.40
Department of Health,East Sussex Hospitals NHS Trust,17/04/2013,STOCK-ASCRIBE CONQUEST,Pharmacy Stock,ROCHE PRODUCTS LTD,0001208474,5546.40
Department of Health,East Sussex Hospitals NHS Trust,17/04/2013,STOCK-ASCRIBE CONQUEST,Pharmacy Stock,ROCHE PRODUCTS LTD,0001208475,4218.77
Department of Health,East Sussex Hospitals NHS Trust,17/04/2013,STOCK-ASCRIBE CONQUEST,Pharmacy Stock,ELI LILLY & CO LTD,0001208483,6374.59
Department of Health,East Sussex Hospitals NHS Trust,17/04/2013,STOCK-ASCRIBE CONQUEST,Pharmacy Stock,UNIDRUG DISTRIBUTION GROUP LTD,0001208570,531.00
Department of Health,East Sussex Hospitals NHS Trust,17/04/2013,STOCK-ASCRIBE CONQUEST,Pharmacy Stock,ROCHE PRODUCTS LTD,0001208580,1370.48
Department of Health,East Sussex Hospitals NHS Trust,17/04/2013,STOCK-ASCRIBE CONQUEST,Pharmacy Stock,UNIDRUG DISTRIBUTION GROUP LTD,0001208729,539.76
Department of Health,East Sussex Hospitals NHS Trust,17/04/2013,STOCK-ASCRIBE CONQUEST,Pharmacy Stock,ELI LILLY & CO LTD,0001208734,9600.00
Department of Health,East Sussex Hospitals NHS Trust,17/04/2013,STOCK-ASCRIBE CONQUEST,Pharmacy Stock,UNIDRUG DISTRIBUTION GROUP LTD,0001208873,2660.70
Department of Health,East Sussex Hospitals NHS Trust,17/04/2013,STOCK-ASCRIBE CONQUEST,Pharmacy Stock,UNIDRUG DISTRIBUTION GROUP LTD,0001208881,1497.18
Department of Health,East Sussex Hospitals NHS Trust,17/04/2013,STOCK-ASCRIBE CONQUEST,Pharmacy Stock,UNIDRUG DISTRIBUTION GROUP LTD,0001208882,1131.60
Department of Health,East Sussex Hospitals NHS Trust,17/04/2013,STOCK-ASCRIBE CONQUEST,Pharmacy Stock,UNIDRUG DISTRIBUTION GROUP LTD,0001208895,-848.70
Department of Health,East Sussex Hospitals NHS Trust,17/04/2013,STOCK-ASCRIBE CONQUEST,Pharmacy Stock,ELI LILLY & CO LTD,0001208897,6374.59
Department of Health,East Sussex Hospitals NHS Trust,17/04/2013,STOCK-ASCRIBE CONQUEST,Pharmacy Stock,ROCHE PRODUCTS LTD,0001208972,1370.48
Department of Health,East Sussex Hospitals NHS Trust,17/04/2013,STOCK-ASCRIBE CONQUEST,Pharmacy Stock,UNIDRUG DISTRIBUTION GROUP LTD,0001208977,1081.92
Department of Health,East Sussex Hospitals NHS Trust,17/04/2013,STOCK-ASCRIBE CONQUEST,Pharmacy Stock,UNIDRUG DISTRIBUTION GROUP LTD,0001208981,549.88
Department of Health,East Sussex Hospitals NHS Trust,17/04/2013,STOCK-ASCRIBE CONQUEST,Pharmacy Stock,ELI LILLY & CO LTD,0001208986,4800.00
Department of Health,East Sussex Hospitals NHS Trust,17/04/2013,STOCK-ASCRIBE CONQUEST,Pharmacy Stock,HEALTHCARE AT HOME LTD,0001209047,715.00
Department of Health,East Sussex Hospitals NHS Trust,17/04/2013,STOCK-ASCRIBE CONQUEST,Pharmacy Stock,HEALTHCARE AT HOME LTD,0001209048,715.00
Department of Health,East Sussex Hospitals NHS Trust,17/04/2013,STOCK-ASCRIBE CONQUEST,Pharmacy Stock,HEALTHCARE AT HOME LTD,0001209049,815.64
Department of Health,East Sussex Hospitals NHS Trust,17/04/2013,STOCK-ASCRIBE CONQUEST,Pharmacy Stock,HEALTHCARE AT HOME LTD,0001209050,715.00
Department of Health,East Sussex Hospitals NHS Trust,17/04/2013,STOCK-ASCRIBE CONQUEST,Pharmacy Stock,HEALTHCARE AT HOME LTD,0001209051,715.00
Department of Health,East Sussex Hospitals NHS Trust,17/04/2013,STOCK-ASCRIBE CONQUEST,Pharmacy Stock,HEALTHCARE AT HOME LTD,0001209052,704.28
Department of Health,East Sussex Hospitals NHS Trust,17/04/2013,STOCK-ASCRIBE CONQUEST,Pharmacy Stock,HEALTHCARE AT HOME LTD,0001209053,1408.56
Department of Health,East Sussex Hospitals NHS Trust,17/04/2013,STOCK-ASCRIBE CONQUEST,Pharmacy Stock,HEALTHCARE AT HOME LTD,0001209054,715.00
Department of Health,East Sussex Hospitals NHS Trust,17/04/2013,STOCK-ASCRIBE CONQUEST,Pharmacy Stock,HEALTHCARE AT HOME LTD,0001209055,715.00
Department of Health,East Sussex Hospitals NHS Trust,17/04/2013,STOCK-ASCRIBE CONQUEST,Pharmacy Stock,HEALTHCARE AT HOME LTD,0001209056,704.28
Department of Health,East Sussex Hospitals NHS Trust,17/04/2013,STOCK-ASCRIBE CONQUEST,Pharmacy Stock,HEALTHCARE AT HOME LTD,0001209057,715.00
Department of Health,East Sussex Hospitals NHS Trust,17/04/2013,STOCK-ASCRIBE CONQUEST,Pharmacy Stock,HEALTHCARE AT HOME LTD,0001209058,815.64
Department of Health,East Sussex Hospitals NHS Trust,17/04/2013,STOCK-ASCRIBE CONQUEST,Pharmacy Stock,HEALTHCARE AT HOME LTD,0001209059,2817.12
Department of Health,East Sussex Hospitals NHS Trust,17/04/2013,STOCK-ASCRIBE CONQUEST,Pharmacy Stock,HEALTHCARE AT HOME LTD,0001209062,1408.56
Department of Health,East Sussex Hospitals NHS Trust,17/04/2013,STOCK-ASCRIBE CONQUEST,Pharmacy Stock,HEALTHCARE AT HOME LTD,0001209063,715.00
Department of Health,East Sussex Hospitals NHS Trust,17/04/2013,STOCK-ASCRIBE CONQUEST,Pharmacy Stock,HEALTHCARE AT HOME LTD,0001209064,2145.00
Department of Health,East Sussex Hospitals NHS Trust,17/04/2013,STOCK-ASCRIBE CONQUEST,Pharmacy Stock,HEALTHCARE AT HOME LTD,0001209065,1408.56
Department of Health,East Sussex Hospitals NHS Trust,17/04/2013,STOCK-ASCRIBE CONQUEST,Pharmacy Stock,HEALTHCARE AT HOME LTD,0001209066,1408.56
Department of Health,East Sussex Hospitals NHS Trust,17/04/2013,STOCK-ASCRIBE CONQUEST,Pharmacy Stock,HEALTHCARE AT HOME LTD,0001209067,1408.56
Department of Health,East Sussex Hospitals NHS Trust,17/04/2013,STOCK-ASCRIBE CONQUEST,Pharmacy Stock,HEALTHCARE AT HOME LTD,0001209068,715.00
Department of Health,East Sussex Hospitals NHS Trust,17/04/2013,STOCK-ASCRIBE CONQUEST,Pharmacy Stock,HEALTHCARE AT HOME LTD,0001209069,715.00
Department of Health,East Sussex Hospitals NHS Trust,17/04/2013,STOCK-ASCRIBE CONQUEST,Pharmacy Stock,HEALTHCARE AT HOME LTD,0001209070,715.00
Department of Health,East Sussex Hospitals NHS Trust,17/04/2013,STOCK-ASCRIBE CONQUEST,Pharmacy Stock,HEALTHCARE AT HOME LTD,0001209071,715.00
Department of Health,East Sussex Hospitals NHS Trust,17/04/2013,STOCK-ASCRIBE CONQUEST,Pharmacy Stock,HEALTHCARE AT HOME LTD,0001209072,715.00
Department of Health,East Sussex Hospitals NHS Trust,17/04/2013,STOCK-ASCRIBE CONQUEST,Pharmacy Stock,HEALTHCARE AT HOME LTD,0001209073,704.28
Department of Health,East Sussex Hospitals NHS Trust,17/04/2013,STOCK-ASCRIBE CONQUEST,Pharmacy Stock,HEALTHCARE AT HOME LTD,0001209074,1430.00
Department of Health,East Sussex Hospitals NHS Trust,17/04/2013,STOCK-ASCRIBE CONQUEST,Pharmacy Stock,HEALTHCARE AT HOME LTD,0001209075,715.00
Department of Health,East Sussex Hospitals NHS Trust,17/04/2013,STOCK-ASCRIBE CONQUEST,Pharmacy Stock,HEALTHCARE AT HOME LTD,0001209076,1408.56
Department of Health,East Sussex Hospitals NHS Trust,17/04/2013,STOCK-ASCRIBE CONQUEST,Pharmacy Stock,HEALTHCARE AT HOME LTD,0001209077,704.28
Department of Health,East Sussex Hospitals NHS Trust,17/04/2013,STOCK-ASCRIBE CONQUEST,Pharmacy Stock,HEALTHCARE AT HOME LTD,0001209078,1408.56
Department of Health,East Sussex Hospitals NHS Trust,17/04/2013,STOCK-ASCRIBE CONQUEST,Pharmacy Stock,HEALTHCARE AT HOME LTD,0001209079,815.64
Department of Health,East Sussex Hospitals NHS Trust,17/04/2013,STOCK-ASCRIBE CONQUEST,Pharmacy Stock,HEALTHCARE AT HOME LTD,0001209080,715.00
Department of Health,East Sussex Hospitals NHS Trust,17/04/2013,STOCK-ASCRIBE CONQUEST,Pharmacy Stock,HEALTHCARE AT HOME LTD,0001209081,704.28
Department of Health,East Sussex Hospitals NHS Trust,17/04/2013,STOCK-ASCRIBE CONQUEST,Pharmacy Stock,HEALTHCARE AT HOME LTD,0001209082,715.00
Department of Health,East Sussex Hospitals NHS Trust,17/04/2013,STOCK-ASCRIBE CONQUEST,Pharmacy Stock,HEALTHCARE AT HOME LTD,0001209083,704.28
Department of Health,East Sussex Hospitals NHS Trust,17/04/2013,STOCK-ASCRIBE CONQUEST,Pharmacy Stock,HEALTHCARE AT HOME LTD,0001209084,1430.00
Department of Health,East Sussex Hospitals NHS Trust,17/04/2013,STOCK-ASCRIBE CONQUEST,Pharmacy Stock,HEALTHCARE AT HOME LTD,0001209085,715.00
Department of Health,East Sussex Hospitals NHS Trust,17/04/2013,STOCK-ASCRIBE CONQUEST,Pharmacy Stock,HEALTHCARE AT HOME LTD,0001209086,1408.56
Department of Health,East Sussex Hospitals NHS Trust,17/04/2013,STOCK-ASCRIBE CONQUEST,Pharmacy Stock,HEALTHCARE AT HOME LTD,0001209087,815.64
Department of Health,East Sussex Hospitals NHS Trust,17/04/2013,STOCK-ASCRIBE CONQUEST,Pharmacy Stock,UNIDRUG DISTRIBUTION GROUP LTD,0001209163,988.20
Department of Health,East Sussex Hospitals NHS Trust,17/04/2013,STOCK-ASCRIBE CONQUEST,Pharmacy Stock,UNIDRUG DISTRIBUTION GROUP LTD,0001209164,594.00
Department of Health,East Sussex Hospitals NHS Trust,17/04/2013,STOCK-ASCRIBE CONQUEST,Pharmacy Stock,UNIDRUG DISTRIBUTION GROUP LTD,0001209178,3938.16
Department of Health,East Sussex Hospitals NHS Trust,17/04/2013,STOCK-ASCRIBE CONQUEST,Pharmacy Stock,WAINS (OF TUNBRIDGE WELLS) LTD,0001209333,744.48
Department of Health,East Sussex Hospitals NHS Trust,17/04/2013,AGENCY STAFF GRADE,Urgent Care,DR DSOUZA LTD,0001420981,1900.00
Department of Health,East Sussex Hospitals NHS Trust,17/04/2013,AGENCY STAFF GRADE,Urgent Care,DR DSOUZA LTD,0001420982,2175.00
Department of Health,East Sussex Hospitals NHS Trust,17/04/2013,AGENCY STAFF GRADE,Urgent Care,DR DSOUZA LTD,0001420983,1900.00
Department of Health,East Sussex Hospitals NHS Trust,17/04/2013,ESPERANCE - SERVICES RECEIVED,Planned Care,BMI HEALTHCARE COLLECTIONS,0001421124,1835.51
Department of Health,East Sussex Hospitals NHS Trust,17/04/2013,PROFESSIONAL FEES,Integrated Care,DR PETER REYNOLDS,0001421130,2000.00
Department of Health,East Sussex Hospitals NHS Trust,17/04/2013,REGISTRATION FEES CRECHE,Corporate Services,EDENRED,0001421143,118.49
Department of Health,East Sussex Hospitals NHS Trust,17/04/2013,REGISTRATION FEES CRECHE,Corporate Services,EDENRED,0001421143,118.48
Department of Health,East Sussex Hospitals NHS Trust,17/04/2013,PROFESSIONAL FEES,Planned Care,DR S GUJRAL,0001421150,838.00
Department of Health,East Sussex Hospitals NHS Trust,17/04/2013,CONTRACT-SECURITY,Commercial,CARDINAL SECURITY LTD,0001525981,1956.75
Department of Health,East Sussex Hospitals NHS Trust,17/04/2013,CONTRACT-SECURITY,Commercial,CARDINAL SECURITY LTD,0001525982,1896.72
Department of Health,East Sussex Hospitals NHS Trust,17/04/2013,CONTRACT-SECURITY,Commercial,CARDINAL SECURITY LTD,0001526222,1896.72
Department of Health,East Sussex Hospitals NHS Trust,17/04/2013,CONTRACT-SECURITY,Commercial,CARDINAL SECURITY LTD,0001526223,1971.77
Department of Health,East Sussex Hospitals NHS Trust,17/04/2013,CONTRACT-SECURITY,Commercial,CARDINAL SECURITY LTD,0001526306,1971.74
Department of Health,East Sussex Hospitals NHS Trust,17/04/2013,CONTRACT-SECURITY,Commercial,CARDINAL SECURITY LTD,0001526307,1896.72
Department of Health,East Sussex Hospitals NHS Trust,17/04/2013,CONTRACT-SECURITY,Commercial,CARDINAL SECURITY LTD,0001526359,470.75
Department of Health,East Sussex Hospitals NHS Trust,17/04/2013,CONTRACT-SECURITY,Commercial,CARDINAL SECURITY LTD,0001526360,470.75
Department of Health,East Sussex Hospitals NHS Trust,17/04/2013,CONTRACT-SECURITY,Commercial,CARDINAL SECURITY LTD,0001526361,484.20
Department of Health,East Sussex Hospitals NHS Trust,17/04/2013,LEGAL FEES(OTHER),Corporate Services,BEVAN BRITTAN,0001526912,1805.03
Department of Health,East Sussex Hospitals NHS Trust,17/04/2013,MEDICAL GASES,Planned Care,BOC (MANCHESTER)LTD,0001527041,709.20
Department of Health,East Sussex Hospitals NHS Trust,17/04/2013,CONTINENCE PRODUCTS,Integrated Care,PAUL HARTMANN LTD,0001527092,7033.10
Department of Health,East Sussex Hospitals NHS Trust,17/04/2013,POSTAGE - FRANKING MACHINE,Commercial,PITNEY BOWES FINANCE PLC,0001527113,918.40
Department of Health,East Sussex Hospitals NHS Trust,17/04/2013,DRUGS-OTHER,Integrated Care,AAH PHARMACEUTICALS LTD,0001527118,4091.22
Department of Health,East Sussex Hospitals NHS Trust,17/04/2013,DRUGS-OTHER,Integrated Care,AAH PHARMACEUTICALS LTD,0001527119,962.85
Department of Health,East Sussex Hospitals NHS Trust,17/04/2013,DRUGS-OTHER,Integrated Care,AAH PHARMACEUTICALS LTD,0001527120,2268.00
Department of Health,East Sussex Hospitals NHS Trust,17/04/2013,POSTAGE - FRANKING MACHINE,Commercial,PURCHASE POWER,0001527137,513.00
Department of Health,East Sussex Hospitals NHS Trust,17/04/2013,CONTRACTED-OUT H.CARE SERVICES,Integrated Care,INHEALTH LIMITED,0001527204,62932.19
Department of Health,East Sussex Hospitals NHS Trust,17/04/2013,ADVERTISING COSTS-NON STAFF,Commercial,PEARCE MARKETING CONSULTANTS,0001527276,1369.10
Department of Health,East Sussex Hospitals NHS Trust,17/04/2013,LEASE RENT,Commercial,ASTERISK LIMITED,0001527305,565.32
Department of Health,East Sussex Hospitals NHS Trust,17/04/2013,PATS APPL.-SPECTACLES,Planned Care,SPECSAVERS OPTICIANS,0001527367,1060.10
Department of Health,East Sussex Hospitals NHS Trust,17/04/2013,GENERAL PRACTITIONERS,Urgent Care,BIRD-IN-EYE SURGERY,0001527372,830.45
Department of Health,East Sussex Hospitals NHS Trust,17/04/2013,GENERAL PRACTITIONERS,Urgent Care,BUXTED MEDICAL CENTRE,0001527373,634.10
Department of Health,East Sussex Hospitals NHS Trust,17/04/2013,GENERAL PRACTITIONERS,Urgent Care,BUXTED MEDICAL CENTRE,0001527374,1569.10
Department of Health,East Sussex Hospitals NHS Trust,17/04/2013,GENERAL PRACTITIONERS,Urgent Care,THE MEADS SURGERY,0001527375,1458.60
Department of Health,East Sussex Hospitals NHS Trust,17/04/2013,GENERAL PRACTITIONERS,Urgent Care,THE MEADS SURGERY,0001527376,1079.15
Department of Health,East Sussex Hospitals NHS Trust,17/04/2013,CAPITAL EXPENDITURE,Other Central,CATCHPOLE PROJECT MANAGEMENT SERVS LTD,0001527378,7012.50
Department of Health,East Sussex Hospitals NHS Trust,17/04/2013,COUNSELLING EXPENSES,Integrated Care,HEIDI CARMAN,0001527379,500.00
Department of Health,East Sussex Hospitals NHS Trust,17/04/2013,ADVERTISING COSTS-NON STAFF,Commercial,PROWORX MEDIA LIMITED,0001527381,1200.00
Department of Health,East Sussex Hospitals NHS Trust,17/04/2013,AGENCY NURSE - QUALIFIED,Urgent Care,LYMPHOEDEMA SPECIALIST SERVICES,0001527387,5139.90
Department of Health,East Sussex Hospitals NHS Trust,17/04/2013,PROFESSIONAL FEES,Commercial,MARTIN COOPER,0001527512,2800.00
Department of Health,East Sussex Hospitals NHS Trust,17/04/2013,PROFESSIONAL FEES,Planned Care,ROYAL COLLEGE OF SURGEONS OF ENGLAND,0001527513,15000.00
Department of Health,East Sussex Hospitals NHS Trust,17/04/2013,WATER-RATES & METERED,Commercial,SOUTHERN WATER SERVICES LTD,0001527516,1573.26
Department of Health,East Sussex Hospitals NHS Trust,17/04/2013,WATER-RATES & METERED,Commercial,SOUTHERN WATER SERVICES LTD,0001527519,1089.77
Department of Health,East Sussex Hospitals NHS Trust,17/04/2013,WATER-RATES & METERED,Commercial,SOUTHERN WATER SERVICES LTD,0001527520,854.02
Department of Health,East Sussex Hospitals NHS Trust,17/04/2013,WATER-RATES & METERED,Commercial,SOUTHERN WATER SERVICES LTD,0001527521,989.74
Department of Health,East Sussex Hospitals NHS Trust,17/04/2013,WATER-RATES & METERED,Commercial,SOUTHERN WATER SERVICES LTD,0001527522,1205.95
Department of Health,East Sussex Hospitals NHS Trust,17/04/2013,"BOOKS, JOURNALS & SUBCRIPTIONS",Corporate Services,HEALTHCARE FINANCIAL MANAGEMENT ASSOC,0001527528,1108.80
Department of Health,East Sussex Hospitals NHS Trust,17/04/2013,DRUGS-OTHER,Commercial,UNIDRUG DISTRIBUTION GROUP LTD,0001613864,2803.68
Department of Health,East Sussex Hospitals NHS Trust,17/04/2013,DRUGS-OTHER,Commercial,UNIDRUG DISTRIBUTION GROUP LTD,0001613865,768.00
Department of Health,East Sussex Hospitals NHS Trust,17/04/2013,DRUGS-OTHER,Commercial,AAH PHARMACEUTICALS LTD,0001614041,1980.00
Department of Health,East Sussex Hospitals NHS Trust,17/04/2013,DRUGS-OTHER,Commercial,AAH PHARMACEUTICALS LTD,0001614042,1162.56
Department of Health,East Sussex Hospitals NHS Trust,17/04/2013,DRUGS-OTHER,Commercial,AAH PHARMACEUTICALS LTD,0001614045,721.26
Department of Health,East Sussex Hospitals NHS Trust,17/04/2013,DRUGS-OTHER,Commercial,AAH PHARMACEUTICALS LTD,0001614048,563.04
Department of Health,East Sussex Hospitals NHS Trust,17/04/2013,DRUGS-OTHER,Commercial,AAH PHARMACEUTICALS LTD,0001614067,1964.16
Department of Health,East Sussex Hospitals NHS Trust,17/04/2013,DRUGS-OTHER,Commercial,UNIDRUG DISTRIBUTION GROUP LTD,0001614086,768.00
Department of Health,East Sussex Hospitals NHS Trust,17/04/2013,DRUGS-OTHER,Commercial,ELI LILLY & CO LTD,0001614094,4800.00
Department of Health,East Sussex Hospitals NHS Trust,17/04/2013,DRUGS-OTHER,Commercial,AAH PHARMACEUTICALS LTD,0001614109,922.80
Department of Health,East Sussex Hospitals NHS Trust,17/04/2013,DRUGS-OTHER,Commercial,AAH PHARMACEUTICALS LTD,0001614112,639.41
Department of Health,East Sussex Hospitals NHS Trust,17/04/2013,DRUGS-OTHER,Commercial,AAH PHARMACEUTICALS LTD,0001614116,879.60
Department of Health,East Sussex Hospitals NHS Trust,17/04/2013,DRUGS-OTHER,Commercial,ALLIANCE HEALTHCARE (DISTRIBUTION) LTD,0001614127,607.20
Department of Health,East Sussex Hospitals NHS Trust,17/04/2013,DRUGS-OTHER,Commercial,ALLIANCE HEALTHCARE (DISTRIBUTION) LTD,0001614129,851.18
Department of Health,East Sussex Hospitals NHS Trust,17/04/2013,DRUGS-OTHER,Commercial,ALLIANCE HEALTHCARE (DISTRIBUTION) LTD,0001614131,2452.80
Department of Health,East Sussex Hospitals NHS Trust,17/04/2013,WHEELCHAIR,Integrated Care,TENDERCARE LTD,0001812483,1654.92
Department of Health,East Sussex Hospitals NHS Trust,17/04/2013,COMPUTER SOFTWARE,Integrated Care,INTEGER,0001812942,600.00
Department of Health,East Sussex Hospitals NHS Trust,17/04/2013,WHEELCHAIR REPAIRS,Integrated Care,AJ MOBILITY LTD,0001812971,3591.89
Department of Health,East Sussex Hospitals NHS Trust,17/04/2013,WHEELCHAIR REPAIRS,Integrated Care,AJ MOBILITY LTD,0001812973,3363.16
Department of Health,East Sussex Hospitals NHS Trust,17/04/2013,WHEELCHAIR MAINTENANCE,Integrated Care,AJ MOBILITY LTD,0001813085,20057.53
Department of Health,East Sussex Hospitals NHS Trust,17/04/2013,WHEELCHAIR REPAIRS,Integrated Care,AJ MOBILITY LTD,0001813121,1482.05
Department of Health,East Sussex Hospitals NHS Trust,17/04/2013,WHEELCHAIR REPAIRS,Integrated Care,AJ MOBILITY LTD,0001813227,1115.37
Department of Health,East Sussex Hospitals NHS Trust,17/04/2013,PROCEDURE PACKS,Planned Care,UNISURGE INTERNATIONAL LTD,0001813357,595.73
Department of Health,East Sussex Hospitals NHS Trust,17/04/2013,WHEELCHAIR,Integrated Care,SOUTHERN MOBILITY CENTRE,0001813363,885.60
Department of Health,East Sussex Hospitals NHS Trust,17/04/2013,WHEELCHAIR,Integrated Care,SOUTHERN MOBILITY CENTRE,0001813365,2682.00
Department of Health,East Sussex Hospitals NHS Trust,17/04/2013,WHEELCHAIR,Urgent Care,BETTER MOBILITY LTD,0001813399,1200.00
Department of Health,East Sussex Hospitals NHS Trust,17/04/2013,WHEELCHAIR REPAIRS,Integrated Care,AJ MOBILITY LTD,0001813413,3845.14
Department of Health,East Sussex Hospitals NHS Trust,17/04/2013,WHEELCHAIR REPAIRS,Integrated Care,AJ MOBILITY LTD,0001813415,3758.61
Department of Health,East Sussex Hospitals NHS Trust,17/04/2013,WHEELCHAIR REPAIRS,Integrated Care,AJ MOBILITY LTD,0001813430,1793.57
Department of Health,East Sussex Hospitals NHS Trust,17/04/2013,THERAPY EQUIPMENT,Integrated Care,PEARSON EDUCATION LTD,0001813451,924.50
Department of Health,East Sussex Hospitals NHS Trust,17/04/2013,PROCEDURE PACKS,Planned Care,UNISURGE INTERNATIONAL LTD,0001813487,595.73
Department of Health,East Sussex Hospitals NHS Trust,17/04/2013,EDUCATIONAL EQUIPMENT,Integrated Care,PEARSON EDUCATION LTD,0001813489,715.20
Department of Health,East Sussex Hospitals NHS Trust,17/04/2013,WHEELCHAIR,Integrated Care,SOUTHERN MOBILITY CENTRE,0001813491,519.60
Department of Health,East Sussex Hospitals NHS Trust,17/04/2013,MEDICAL GASES,Urgent Care,BOC (MANCHESTER)LTD,0001813590,1551.41
Department of Health,East Sussex Hospitals NHS Trust,17/04/2013,MEDICAL GASES,Urgent Care,BOC (MANCHESTER)LTD,0001813596,600.08
Department of Health,East Sussex Hospitals NHS Trust,17/04/2013,MEDICAL GASES,Urgent Care,BOC (MANCHESTER)LTD,0001813596,-54.68
Department of Health,East Sussex Hospitals NHS Trust,17/04/2013,MEDICAL GASES,Commercial,BOC (MANCHESTER)LTD,0001813596,4.54
Department of Health,East Sussex Hospitals NHS Trust,17/04/2013,CLINICAL WASTE DISPOSAL,Commercial,SRCL LTD,0001813628,599.72
Department of Health,East Sussex Hospitals NHS Trust,17/04/2013,WHEELCHAIR,Integrated Care,SOUTHERN MOBILITY CENTRE,0001813778,538.80
Department of Health,East Sussex Hospitals NHS Trust,17/04/2013,WHEELCHAIR REPAIRS,Integrated Care,SOUTHERN MOBILITY CENTRE,0001813780,125.00
Department of Health,East Sussex Hospitals NHS Trust,17/04/2013,PROFESSIONAL FEES,Integrated Care,SOUTHERN MOBILITY CENTRE,0001813780,37.50
Department of Health,East Sussex Hospitals NHS Trust,17/04/2013,HIRE OF ACCOMMODATION,Integrated Care,SOUTHERN MOBILITY CENTRE,0001813780,360.00
Department of Health,East Sussex Hospitals NHS Trust,17/04/2013,SPECIAL SEATING,Integrated Care,SOUTHERN MOBILITY CENTRE,0001813858,543.60
Department of Health,East Sussex Hospitals NHS Trust,17/04/2013,CLEANING MATERIALS,Commercial,WIGHTMAN & PARRISH LTD,0001904155,539.10
Department of Health,East Sussex Hospitals NHS Trust,17/04/2013,PROVISIONS,Commercial,ANCHOR CATERING LTD,0001905042,826.50
Department of Health,East Sussex Hospitals NHS Trust,17/04/2013,PROVISIONS,Commercial,ANCHOR CATERING LTD,0001905045,826.50
Department of Health,East Sussex Hospitals NHS Trust,17/04/2013,PROVISIONS,Commercial,ANCHOR CATERING LTD,0001905049,826.50
Department of Health,East Sussex Hospitals NHS Trust,17/04/2013,PROVISIONS,Commercial,ANCHOR CATERING LTD,0001905053,826.50
Department of Health,East Sussex Hospitals NHS Trust,17/04/2013,PROVISIONS,Commercial,J R WHOLESALE,0001905413,516.80
Department of Health,East Sussex Hospitals NHS Trust,17/04/2013,PROVISIONS,Commercial,J R WHOLESALE,0001905414,556.75
Department of Health,East Sussex Hospitals NHS Trust,17/04/2013,PROSTHESES-OTHER,Planned Care,SMITH & NEPHEW ADVANCED SURGICAL DEVICES,0002112126,729.49
Department of Health,East Sussex Hospitals NHS Trust,17/04/2013,GENERAL LAB. CONSUMABLES,Integrated Care,OXOID LIMITED,0002114040,19.58
Department of Health,East Sussex Hospitals NHS Trust,17/04/2013,LAB MATERIALS - OXOID,Integrated Care,OXOID LIMITED,0002114040,1041.28
Department of Health,East Sussex Hospitals NHS Trust,17/04/2013,PROSTHESIS - LENS,Planned Care,ALCON EYE CARE UK LTD,0002114181,1041.60
Department of Health,East Sussex Hospitals NHS Trust,17/04/2013,PROSTHESES-OTHER,Integrated Care,PLATON MEDICAL,0002114288,1515.60
Department of Health,East Sussex Hospitals NHS Trust,17/04/2013,INTERVENTIONAL DISPOSABLES,Integrated Care,TERUMO UK,0002115048,1080.00
Department of Health,East Sussex Hospitals NHS Trust,17/04/2013,INTERVENTIONAL DISPOSABLES,Urgent Care,TERUMO UK,0002115121,396.00
Department of Health,East Sussex Hospitals NHS Trust,17/04/2013,CARDIOLOGY CATHETERS,Urgent Care,TERUMO UK,0002115121,211.20
Department of Health,East Sussex Hospitals NHS Trust,17/04/2013,M&S GENERAL SUPPLIES-OTHER,Planned Care,GAMBRO LUNDIA AB,0002115133,1008.00
Department of Health,East Sussex Hospitals NHS Trust,17/04/2013,CARDIOLOGY STENTS,Urgent Care,TERUMO UK,0002115174,828.00
Department of Health,East Sussex Hospitals NHS Trust,17/04/2013,CARDIOLOGY CATHETERS,Urgent Care,TERUMO UK,0002115229,-24.00
Department of Health,East Sussex Hospitals NHS Trust,17/04/2013,CARDIOLOGY STENTS,Urgent Care,TERUMO UK,0002115229,852.00
Department of Health,East Sussex Hospitals NHS Trust,17/04/2013,INTERVENTIONAL DISPOSABLES,Urgent Care,TERUMO UK,0002115230,228.00
Department of Health,East Sussex Hospitals NHS Trust,17/04/2013,CARDIOLOGY CATHETERS,Urgent Care,TERUMO UK,0002115230,456.00
Department of Health,East Sussex Hospitals NHS Trust,17/04/2013,M&S EQUIPMENT - OTHER,Planned Care,GAMBRO LUNDIA AB,0002115393,322.14
Department of Health,East Sussex Hospitals NHS Trust,17/04/2013,M&S GENERAL SUPPLIES-OTHER,Planned Care,GAMBRO LUNDIA AB,0002115393,1008.00
Department of Health,East Sussex Hospitals NHS Trust,17/04/2013,GENERAL LAB. CONSUMABLES,Integrated Care,GREINER BIO-ONE LTD,0002115435,1606.43
Department of Health,East Sussex Hospitals NHS Trust,17/04/2013,LEASE CARS,Cross Site,AUTOMOTIVE LEASING LTD,0002115441,2965.96
Department of Health,East Sussex Hospitals NHS Trust,17/04/2013,GENERAL LAB. CONSUMABLES,Integrated Care,GREINER BIO-ONE LTD,0002115518,1606.43
Department of Health,East Sussex Hospitals NHS Trust,17/04/2013,M&S GENERAL SUPPLIES-OTHER,Planned Care,SMITH & NEPHEW ADVANCED SURGICAL DEVICES,0002115569,31.02
Department of Health,East Sussex Hospitals NHS Trust,17/04/2013,SURGICAL INSTRUMENTS,Planned Care,SMITH & NEPHEW ADVANCED SURGICAL DEVICES,0002115569,34.37
Department of Health,East Sussex Hospitals NHS Trust,17/04/2013,PROSTHESES-OTHER,Planned Care,SMITH & NEPHEW ADVANCED SURGICAL DEVICES,0002115569,991.22
Department of Health,East Sussex Hospitals NHS Trust,17/04/2013,SURGICAL INSTRUMENTS,Planned Care,SMITH & NEPHEW ADVANCED SURGICAL DEVICES,0002115594,68.74
Department of Health,East Sussex Hospitals NHS Trust,17/04/2013,PROSTHESES-OTHER,Planned Care,SMITH & NEPHEW ADVANCED SURGICAL DEVICES,0002115594,458.34
Department of Health,East Sussex Hospitals NHS Trust,17/04/2013,SURGICAL INSTRUMENTS,Planned Care,SMITH & NEPHEW ADVANCED SURGICAL DEVICES,0002115595,581.54
Department of Health,East Sussex Hospitals NHS Trust,17/04/2013,M&S GENERAL SUPPLIES-OTHER,Planned Care,SMITH & NEPHEW ADVANCED SURGICAL DEVICES,0002115636,231.24
Department of Health,East Sussex Hospitals NHS Trust,17/04/2013,ELECTRO MEDICAL EQUIPMENT,Planned Care,SMITH & NEPHEW ADVANCED SURGICAL DEVICES,0002115636,321.82
Department of Health,East Sussex Hospitals NHS Trust,17/04/2013,M&S GENERAL SUPPLIES-OTHER,Planned Care,GAMBRO LUNDIA AB,0002115639,1008.00
Department of Health,East Sussex Hospitals NHS Trust,17/04/2013,M&S GENERAL SUPPLIES-OTHER,Planned Care,STRYKER UK,0002115683,777.60
Department of Health,East Sussex Hospitals NHS Trust,17/04/2013,PROSTHESES-HIP,Planned Care,STRYKER UK,0002115685,1374.41
Department of Health,East Sussex Hospitals NHS Trust,17/04/2013,NATIONAL JOINT REGISTRY LEVY,Planned Care,STRYKER UK,0002115685,20.00
Department of Health,East Sussex Hospitals NHS Trust,17/04/2013,M&S GENERAL SUPPLIES-OTHER,Planned Care,STRYKER UK,0002115688,777.60
Department of Health,East Sussex Hospitals NHS Trust,17/04/2013,PROSTHESES-HIP,Planned Care,STRYKER UK,0002115689,544.32
Department of Health,East Sussex Hospitals NHS Trust,17/04/2013,CLINICAL WASTE DISPOSAL,Commercial,SRCL LTD,0002115717,1098.39
Department of Health,East Sussex Hospitals NHS Trust,17/04/2013,CLINICAL WASTE DISPOSAL,Commercial,SRCL LTD,0002115719,1776.37
Department of Health,East Sussex Hospitals NHS Trust,17/04/2013,CLINICAL WASTE DISPOSAL,Commercial,SRCL LTD,0002115720,2425.96
Department of Health,East Sussex Hospitals NHS Trust,17/04/2013,PROSTHESES-OTHER,Planned Care,SMITH & NEPHEW ADVANCED SURGICAL DEVICES,0002115750,1551.65
Department of Health,East Sussex Hospitals NHS Trust,17/04/2013,PROSTHESIS - LENS,Planned Care,ALCON EYE CARE UK LTD,0002115923,892.80
Department of Health,East Sussex Hospitals NHS Trust,17/04/2013,M&S GENERAL SUPPLIES-OTHER,Integrated Care,BOC (MANCHESTER)LTD,0002115925,925.14
Department of Health,East Sussex Hospitals NHS Trust,17/04/2013,OFFICE EQUIPMENT,Urgent Care,SHOWMAN AV PRESENTATION PRODS (UK) LTD,0002115930,1500.00
Department of Health,East Sussex Hospitals NHS Trust,17/04/2013,PROSTHESIS - LENS,Planned Care,ALCON EYE CARE UK LTD,0002115937,4312.80
Department of Health,East Sussex Hospitals NHS Trust,17/04/2013,CAPITAL EXPENDITURE,Other Central,BYTES SOFTWARE SERVICES LTD,0002116254,6613.18
Department of Health,East Sussex Hospitals NHS Trust,17/04/2013,CAPITAL EXPENDITURE,Other Central,MISCO COMPUTER SUPPLIES LTD,0002116258,2543.26
Department of Health,East Sussex Hospitals NHS Trust,17/04/2013,SURGICAL INSTRUMENTS,Planned Care,STERICOM LTD,0002116270,864.00
Department of Health,East Sussex Hospitals NHS Trust,17/04/2013,SURGICAL INSTRUMENTS,Planned Care,DELTA SURGICAL LTD,0002116489,502.74
Department of Health,East Sussex Hospitals NHS Trust,17/04/2013,M&S GENERAL SUPPLIES-OTHER,Planned Care,FISHER & PAYKEL HEALTHCARE LTD,0002116556,592.80
Department of Health,East Sussex Hospitals NHS Trust,17/04/2013,M&S GENERAL SUPPLIES-OTHER,Urgent Care,TERUMO UK,0002116633,66.00
Department of Health,East Sussex Hospitals NHS Trust,17/04/2013,INTERVENTIONAL DISPOSABLES,Urgent Care,TERUMO UK,0002116633,342.00
Department of Health,East Sussex Hospitals NHS Trust,17/04/2013,CARDIOLOGY CATHETERS,Urgent Care,TERUMO UK,0002116633,464.40
Department of Health,East Sussex Hospitals NHS Trust,17/04/2013,CONTRACT ENGINEERING MAINT,Commercial,INDUSTRIAL ELECTRICAL CONTRACTORS,0002212414,2487.02
Department of Health,East Sussex Hospitals NHS Trust,17/04/2013,LAB MATERIALS - OXOID,Integrated Care,OXOID LIMITED,0002213181,531.61
Department of Health,East Sussex Hospitals NHS Trust,17/04/2013,DRUGS-HAEMAPHILIA PRODUCTS,Integrated Care,UNIDRUG DISTRIBUTION GROUP LTD,0002213382,2757.30
Department of Health,East Sussex Hospitals NHS Trust,17/04/2013,LAB MATERIALS - ABBOTT,Integrated Care,ABBOTT LABORATORIES LTD,0002213410,6181.68
Department of Health,East Sussex Hospitals NHS Trust,17/04/2013,LAUNDRY EQUIPMENT (PACKING),Commercial,FLEXFILM LTD,0002213462,1792.34
Department of Health,East Sussex Hospitals NHS Trust,17/04/2013,LAUNDRY EQUIPMENT (PACKING),Commercial,FLEXFILM LTD,0002213463,3650.40
Department of Health,East Sussex Hospitals NHS Trust,17/04/2013,CAPITAL EXPENDITURE,Other Central,CABLE MANAGEMENT SUPPLIES,0002213493,953.45
Department of Health,East Sussex Hospitals NHS Trust,17/04/2013,MED EQUIPMENT LEASES,Integrated Care,GE CAPITAL EQUIPMENT FINANCE LTD,0002213549,47418.01
Department of Health,East Sussex Hospitals NHS Trust,17/04/2013,PRE-STERILE COMMERCIAL PACKS,Commercial,UNISURGE INTERNATIONAL LTD,0002213609,580.18
Department of Health,East Sussex Hospitals NHS Trust,17/04/2013,CAPITAL EXPENDITURE,Other Central,BIOQUELL UK LTD (FORMERLY SERVICECARE),0002213745,7131.60
Department of Health,East Sussex Hospitals NHS Trust,17/04/2013,MED EQUIPMENT LEASES,Planned Care,CRANMER LAWRENCE & COMPANY LTD,0002213746,2964.02
Department of Health,East Sussex Hospitals NHS Trust,17/04/2013,MEDICAL GAS - VIE RENTAL,Commercial,BOC (MANCHESTER)LTD,0002213778,55.96
Department of Health,East Sussex Hospitals NHS Trust,17/04/2013,MEDICAL GAS - VIE USE,Commercial,BOC (MANCHESTER)LTD,0002213778,807.84
Department of Health,East Sussex Hospitals NHS Trust,17/04/2013,MEDICAL GAS - VIE USE,Commercial,BOC (MANCHESTER)LTD,0002213779,909.75
Department of Health,East Sussex Hospitals NHS Trust,17/04/2013,M&S GENERAL SUPPLIES-OTHER,Commercial,UNISURGE INTERNATIONAL LTD,0002213785,725.72
Department of Health,East Sussex Hospitals NHS Trust,17/04/2013,PRE-STERILE COMMERCIAL PACKS,Commercial,UNISURGE INTERNATIONAL LTD,0002213785,1600.42
Department of Health,East Sussex Hospitals NHS Trust,17/04/2013,GENERAL LAB. CONSUMABLES,Integrated Care,GREINER BIO-ONE LTD,0002213834,4344.60
Department of Health,East Sussex Hospitals NHS Trust,17/04/2013,GENERAL LAB. CONSUMABLES,Integrated Care,GREINER BIO-ONE LTD,0002213866,821.46
Department of Health,East Sussex Hospitals NHS Trust,17/04/2013,M&S GENERAL SUPPLIES-OTHER,Commercial,UNISURGE INTERNATIONAL LTD,0002213887,853.36
Department of Health,East Sussex Hospitals NHS Trust,17/04/2013,PRE-STERILE COMMERCIAL PACKS,Commercial,UNISURGE INTERNATIONAL LTD,0002213887,939.58
Department of Health,East Sussex Hospitals NHS Trust,17/04/2013,M&S GENERAL SUPPLIES-OTHER,Planned Care,SMITH & NEPHEW ADVANCED SURGICAL DEVICES,0002213971,1394.00
Department of Health,East Sussex Hospitals NHS Trust,17/04/2013,SURGICAL INSTRUMENTS,Planned Care,SMITH & NEPHEW ADVANCED SURGICAL DEVICES,0002213971,241.88
Department of Health,East Sussex Hospitals NHS Trust,17/04/2013,LAPARASCOPIC EQUIP-UROLOGICAL,Planned Care,DAAX LTD,0002214024,2580.00
Department of Health,East Sussex Hospitals NHS Trust,17/04/2013,GENERAL LAB. CONSUMABLES,Integrated Care,GREINER BIO-ONE LTD,0002214040,4344.60
Department of Health,East Sussex Hospitals NHS Trust,17/04/2013,M&S GENERAL SUPPLIES-OTHER,Commercial,UNISURGE INTERNATIONAL LTD,0002214096,563.88
Department of Health,East Sussex Hospitals NHS Trust,17/04/2013,PRE-STERILE COMMERCIAL PACKS,Commercial,UNISURGE INTERNATIONAL LTD,0002214096,1555.48
Department of Health,East Sussex Hospitals NHS Trust,17/04/2013,M & S EQUIP REPAIR MATERIALS,Planned Care,MAQUET LIMITED,0002214139,806.07
Department of Health,East Sussex Hospitals NHS Trust,17/04/2013,M & S EQUIP REPAIR MATERIALS,Planned Care,MAQUET LIMITED,0002214139,68.03
Department of Health,East Sussex Hospitals NHS Trust,17/04/2013,M & S EQUIP REPAIR MATERIALS,Planned Care,MAQUET LIMITED,0002214140,671.98
Department of Health,East Sussex Hospitals NHS Trust,17/04/2013,PRE-STERILE COMMERCIAL PACKS,Commercial,BDF LTD.,0002214260,548.72
Department of Health,East Sussex Hospitals NHS Trust,17/04/2013,ELECTRO MEDICAL EQUIPMENT,Planned Care,JUDD MEDICAL LTD,0002214448,708.00
Department of Health,East Sussex Hospitals NHS Trust,17/04/2013,M&S GENERAL SUPPLIES-OTHER,Commercial,FIELDSKILL CONQUEST LTD,0002214641,601.80
Department of Health,East Sussex Hospitals NHS Trust,17/04/2013,CONTRACT ENGINEERING MAINT,Commercial,SYNERGY DESIGN ASSOCIATES LIMITED,0002214746,540.00
Department of Health,East Sussex Hospitals NHS Trust,17/04/2013,CONTRACT ENGINEERING MAINT,Commercial,SYNERGY DESIGN ASSOCIATES LIMITED,0002214747,2464.00
Department of Health,East Sussex Hospitals NHS Trust,17/04/2013,STOCK-ASCRIBE EDGH,Pharmacy Stock,MEDCO HEALTH SOLUTIONS LTD,0013002279,762.97
Department of Health,East Sussex Hospitals NHS Trust,17/04/2013,STOCK-ASCRIBE EDGH,Pharmacy Stock,MEDCO HEALTH SOLUTIONS LTD,0013002280,762.97
Department of Health,East Sussex Hospitals NHS Trust,17/04/2013,STOCK-ASCRIBE EDGH,Pharmacy Stock,UNIDRUG DISTRIBUTION GROUP LTD,0013002539,1260.60
Department of Health,East Sussex Hospitals NHS Trust,17/04/2013,STOCK-ASCRIBE EDGH,Pharmacy Stock,MEDCO HEALTH SOLUTIONS LTD,0013002664,1577.00
Department of Health,East Sussex Hospitals NHS Trust,17/04/2013,STOCK-ASCRIBE EDGH,Pharmacy Stock,MEDCO HEALTH SOLUTIONS LTD,0013002665,762.97
Department of Health,East Sussex Hospitals NHS Trust,17/04/2013,STOCK-ASCRIBE EDGH,Pharmacy Stock,MEDCO HEALTH SOLUTIONS LTD,0013002666,762.97
Department of Health,East Sussex Hospitals NHS Trust,17/04/2013,STOCK-ASCRIBE EDGH,Pharmacy Stock,MEDCO HEALTH SOLUTIONS LTD,0013002667,762.97
Department of Health,East Sussex Hospitals NHS Trust,17/04/2013,STOCK-ASCRIBE EDGH,Pharmacy Stock,MEDCO HEALTH SOLUTIONS LTD,0013002668,1577.00
Department of Health,East Sussex Hospitals NHS Trust,17/04/2013,STOCK-ASCRIBE EDGH,Pharmacy Stock,MEDCO HEALTH SOLUTIONS LTD,0013002669,762.97
Department of Health,East Sussex Hospitals NHS Trust,17/04/2013,STOCK-ASCRIBE EDGH,Pharmacy Stock,MEDCO HEALTH SOLUTIONS LTD,0013002670,1577.00
Department of Health,East Sussex Hospitals NHS Trust,17/04/2013,STOCK-ASCRIBE EDGH,Pharmacy Stock,MEDCO HEALTH SOLUTIONS LTD,0013002671,762.97
Department of Health,East Sussex Hospitals NHS Trust,17/04/2013,STOCK-ASCRIBE EDGH,Pharmacy Stock,MEDCO HEALTH SOLUTIONS LTD,0013002672,762.97
Department of Health,East Sussex Hospitals NHS Trust,17/04/2013,STOCK-ASCRIBE EDGH,Pharmacy Stock,MEDCO HEALTH SOLUTIONS LTD,0013002673,762.97
Department of Health,East Sussex Hospitals NHS Trust,17/04/2013,STOCK-ASCRIBE EDGH,Pharmacy Stock,MEDCO HEALTH SOLUTIONS LTD,0013002674,762.97
Department of Health,East Sussex Hospitals NHS Trust,17/04/2013,STOCK-ASCRIBE EDGH,Pharmacy Stock,MEDCO HEALTH SOLUTIONS LTD,0013002675,1271.00
Department of Health,East Sussex Hospitals NHS Trust,17/04/2013,STOCK-ASCRIBE EDGH,Pharmacy Stock,MEDCO HEALTH SOLUTIONS LTD,0013002676,762.97
Department of Health,East Sussex Hospitals NHS Trust,17/04/2013,STOCK-ASCRIBE EDGH,Pharmacy Stock,MEDCO HEALTH SOLUTIONS LTD,0013002677,762.97
Department of Health,East Sussex Hospitals NHS Trust,17/04/2013,STOCK-ASCRIBE EDGH,Pharmacy Stock,MEDCO HEALTH SOLUTIONS LTD,0013002678,762.97
Department of Health,East Sussex Hospitals NHS Trust,17/04/2013,STOCK-ASCRIBE EDGH,Pharmacy Stock,MEDCO HEALTH SOLUTIONS LTD,0013002679,762.97
Department of Health,East Sussex Hospitals NHS Trust,17/04/2013,STOCK-ASCRIBE EDGH,Pharmacy Stock,MEDCO HEALTH SOLUTIONS LTD,0013002680,762.97
Department of Health,East Sussex Hospitals NHS Trust,17/04/2013,STOCK-ASCRIBE EDGH,Pharmacy Stock,MEDCO HEALTH SOLUTIONS LTD,0013002681,762.97
Department of Health,East Sussex Hospitals NHS Trust,17/04/2013,STOCK-ASCRIBE EDGH,Pharmacy Stock,MEDCO HEALTH SOLUTIONS LTD,0013002682,762.97
Department of Health,East Sussex Hospitals NHS Trust,17/04/2013,STOCK-ASCRIBE EDGH,Pharmacy Stock,MEDCO HEALTH SOLUTIONS LTD,0013002683,762.97
Department of Health,East Sussex Hospitals NHS Trust,17/04/2013,STOCK-ASCRIBE EDGH,Pharmacy Stock,MEDCO HEALTH SOLUTIONS LTD,0013002684,762.97
Department of Health,East Sussex Hospitals NHS Trust,17/04/2013,STOCK-ASCRIBE EDGH,Pharmacy Stock,MEDCO HEALTH SOLUTIONS LTD,0013002685,762.97
Department of Health,East Sussex Hospitals NHS Trust,17/04/2013,STOCK-ASCRIBE EDGH,Pharmacy Stock,MEDCO HEALTH SOLUTIONS LTD,0013002686,2147.00
Department of Health,East Sussex Hospitals NHS Trust,17/04/2013,STOCK-ASCRIBE EDGH,Pharmacy Stock,MEDCO HEALTH SOLUTIONS LTD,0013002687,1577.00
Department of Health,East Sussex Hospitals NHS Trust,17/04/2013,STOCK-ASCRIBE EDGH,Pharmacy Stock,MEDCO HEALTH SOLUTIONS LTD,0013002688,762.97
Department of Health,East Sussex Hospitals NHS Trust,17/04/2013,STOCK-ASCRIBE EDGH,Pharmacy Stock,MEDCO HEALTH SOLUTIONS LTD,0013002689,762.97
Department of Health,East Sussex Hospitals NHS Trust,17/04/2013,STOCK-ASCRIBE EDGH,Pharmacy Stock,MEDCO HEALTH SOLUTIONS LTD,0013002690,762.97
Department of Health,East Sussex Hospitals NHS Trust,17/04/2013,STOCK-ASCRIBE EDGH,Pharmacy Stock,MEDCO HEALTH SOLUTIONS LTD,0013002691,762.97
Department of Health,East Sussex Hospitals NHS Trust,17/04/2013,STOCK-ASCRIBE EDGH,Pharmacy Stock,MEDCO HEALTH SOLUTIONS LTD,0013002692,762.97
Department of Health,East Sussex Hospitals NHS Trust,17/04/2013,STOCK-ASCRIBE EDGH,Pharmacy Stock,MEDCO HEALTH SOLUTIONS LTD,0013002693,762.97
Department of Health,East Sussex Hospitals NHS Trust,17/04/2013,STOCK-ASCRIBE EDGH,Pharmacy Stock,MEDCO HEALTH SOLUTIONS LTD,0013002694,762.97
Department of Health,East Sussex Hospitals NHS Trust,17/04/2013,STOCK-ASCRIBE EDGH,Pharmacy Stock,MEDCO HEALTH SOLUTIONS LTD,0013002695,762.97
Department of Health,East Sussex Hospitals NHS Trust,17/04/2013,STOCK-ASCRIBE EDGH,Pharmacy Stock,MEDCO HEALTH SOLUTIONS LTD,0013002696,1271.00
Department of Health,East Sussex Hospitals NHS Trust,17/04/2013,STOCK-ASCRIBE EDGH,Pharmacy Stock,MEDCO HEALTH SOLUTIONS LTD,0013002697,1271.00
Department of Health,East Sussex Hospitals NHS Trust,17/04/2013,STOCK-ASCRIBE EDGH,Pharmacy Stock,MEDCO HEALTH SOLUTIONS LTD,0013002698,1271.00
Department of Health,East Sussex Hospitals NHS Trust,17/04/2013,STOCK-ASCRIBE EDGH,Pharmacy Stock,MEDCO HEALTH SOLUTIONS LTD,0013002699,762.97
Department of Health,East Sussex Hospitals NHS Trust,17/04/2013,STOCK-ASCRIBE EDGH,Pharmacy Stock,MEDCO HEALTH SOLUTIONS LTD,0013002700,762.97
Department of Health,East Sussex Hospitals NHS Trust,17/04/2013,STOCK-ASCRIBE EDGH,Pharmacy Stock,MEDCO HEALTH SOLUTIONS LTD,0013002701,762.98
Department of Health,East Sussex Hospitals NHS Trust,17/04/2013,STOCK-ASCRIBE EDGH,Pharmacy Stock,MEDCO HEALTH SOLUTIONS LTD,0013002702,1577.00
Department of Health,East Sussex Hospitals NHS Trust,17/04/2013,STOCK-ASCRIBE EDGH,Pharmacy Stock,MEDCO HEALTH SOLUTIONS LTD,0013002703,762.97
Department of Health,East Sussex Hospitals NHS Trust,17/04/2013,STOCK-ASCRIBE EDGH,Pharmacy Stock,MEDCO HEALTH SOLUTIONS LTD,0013002704,762.97
Department of Health,East Sussex Hospitals NHS Trust,17/04/2013,STOCK-ASCRIBE EDGH,Pharmacy Stock,DURBIN PLC,0013002741,510.56
Department of Health,East Sussex Hospitals NHS Trust,17/04/2013,STOCK-ASCRIBE EDGH,Pharmacy Stock,UNIDRUG DISTRIBUTION GROUP LTD,0013002876,573.00
Department of Health,East Sussex Hospitals NHS Trust,17/04/2013,STOCK-ASCRIBE EDGH,Pharmacy Stock,BAYER PLC,0013002881,930.00
Department of Health,East Sussex Hospitals NHS Trust,17/04/2013,STOCK-ASCRIBE EDGH,Pharmacy Stock,HOSPIRA UK LIMITED,0013002891,2392.32
Department of Health,East Sussex Hospitals NHS Trust,17/04/2013,STOCK-ASCRIBE EDGH,Pharmacy Stock,UNIDRUG DISTRIBUTION GROUP LTD,0013003360,532.50
Department of Health,East Sussex Hospitals NHS Trust,17/04/2013,STOCK-ASCRIBE EDGH,Pharmacy Stock,OXFORD HEALTH NHS FOUNDATION TRUST,0013003374,6556.32
Department of Health,East Sussex Hospitals NHS Trust,17/04/2013,STOCK-ASCRIBE EDGH,Pharmacy Stock,UNIDRUG DISTRIBUTION GROUP LTD,0013003375,1146.00
Department of Health,East Sussex Hospitals NHS Trust,17/04/2013,STOCK-ASCRIBE EDGH,Pharmacy Stock,BAYER PLC,0013003378,930.00
Department of Health,East Sussex Hospitals NHS Trust,17/04/2013,STOCK-ASCRIBE EDGH,Pharmacy Stock,UNIDRUG DISTRIBUTION GROUP LTD,0013003381,573.00
Department of Health,East Sussex Hospitals NHS Trust,17/04/2013,STOCK-ASCRIBE EDGH,Pharmacy Stock,MEDCO HEALTH SOLUTIONS LTD,0013003643,1577.00
Department of Health,East Sussex Hospitals NHS Trust,17/04/2013,STOCK-ASCRIBE EDGH,Pharmacy Stock,ALLIANCE HEALTHCARE (DISTRIBUTION) LTD,0013003815,884.44
Department of Health,East Sussex Hospitals NHS Trust,17/04/2013,STOCK-ASCRIBE EDGH,Pharmacy Stock,UNIDRUG DISTRIBUTION GROUP LTD,0013003913,1601.04
Department of Health,East Sussex Hospitals NHS Trust,17/04/2013,STOCK-ASCRIBE EDGH,Pharmacy Stock,UNIDRUG DISTRIBUTION GROUP LTD,0013003925,1158.90
Department of Health,East Sussex Hospitals NHS Trust,17/04/2013,STOCK-ASCRIBE EDGH,Pharmacy Stock,ELI LILLY & CO LTD,0013004089,3187.30
Department of Health,East Sussex Hospitals NHS Trust,17/04/2013,STOCK-ASCRIBE EDGH,Pharmacy Stock,ELI LILLY & CO LTD,0013004196,6905.81
Department of Health,East Sussex Hospitals NHS Trust,17/04/2013,STOCK-ASCRIBE EDGH,Pharmacy Stock,UNIDRUG DISTRIBUTION GROUP LTD,0013004197,1146.00
Department of Health,East Sussex Hospitals NHS Trust,17/04/2013,STOCK-ASCRIBE EDGH,Pharmacy Stock,UNIDRUG DISTRIBUTION GROUP LTD,0013004207,1194.00
Department of Health,East Sussex Hospitals NHS Trust,17/04/2013,STOCK-ASCRIBE EDGH,Pharmacy Stock,ROCHE PRODUCTS LTD,0013004218,14666.40
Department of Health,East Sussex Hospitals NHS Trust,17/04/2013,STOCK-ASCRIBE EDGH,Pharmacy Stock,HEALTHCARE AT HOME LTD,0013004231,2160.20
Department of Health,East Sussex Hospitals NHS Trust,17/04/2013,STOCK-ASCRIBE EDGH,Pharmacy Stock,HEALTHCARE AT HOME LTD,0013004232,1262.45
Department of Health,East Sussex Hospitals NHS Trust,17/04/2013,STOCK-ASCRIBE EDGH,Pharmacy Stock,HEALTHCARE AT HOME LTD,0013004233,1408.56
Department of Health,East Sussex Hospitals NHS Trust,17/04/2013,STOCK-ASCRIBE EDGH,Pharmacy Stock,HEALTHCARE AT HOME LTD,0013004234,1082.90
Department of Health,East Sussex Hospitals NHS Trust,17/04/2013,STOCK-ASCRIBE EDGH,Pharmacy Stock,HEALTHCARE AT HOME LTD,0013004235,1382.15
Department of Health,East Sussex Hospitals NHS Trust,17/04/2013,STOCK-ASCRIBE EDGH,Pharmacy Stock,HEALTHCARE AT HOME LTD,0013004250,1408.56
Department of Health,East Sussex Hospitals NHS Trust,17/04/2013,STOCK-ASCRIBE EDGH,Pharmacy Stock,HEALTHCARE AT HOME LTD,0013004251,1408.56
Department of Health,East Sussex Hospitals NHS Trust,17/04/2013,STOCK-ASCRIBE EDGH,Pharmacy Stock,HEALTHCARE AT HOME LTD,0013004254,704.28
Department of Health,East Sussex Hospitals NHS Trust,17/04/2013,STOCK-ASCRIBE EDGH,Pharmacy Stock,HEALTHCARE AT HOME LTD,0013004255,1408.56
Department of Health,East Sussex Hospitals NHS Trust,17/04/2013,STOCK-ASCRIBE EDGH,Pharmacy Stock,HEALTHCARE AT HOME LTD,0013004256,715.00
Department of Health,East Sussex Hospitals NHS Trust,17/04/2013,STOCK-ASCRIBE EDGH,Pharmacy Stock,HEALTHCARE AT HOME LTD,0013004257,704.28
Department of Health,East Sussex Hospitals NHS Trust,17/04/2013,STOCK-ASCRIBE EDGH,Pharmacy Stock,HEALTHCARE AT HOME LTD,0013004258,704.28
Department of Health,East Sussex Hospitals NHS Trust,17/04/2013,STOCK-ASCRIBE EDGH,Pharmacy Stock,HEALTHCARE AT HOME LTD,0013004259,704.28
Department of Health,East Sussex Hospitals NHS Trust,17/04/2013,STOCK-ASCRIBE EDGH,Pharmacy Stock,HEALTHCARE AT HOME LTD,0013004260,1430.00
Department of Health,East Sussex Hospitals NHS Trust,17/04/2013,STOCK-ASCRIBE EDGH,Pharmacy Stock,HEALTHCARE AT HOME LTD,0013004261,715.00
Department of Health,East Sussex Hospitals NHS Trust,17/04/2013,STOCK-ASCRIBE EDGH,Pharmacy Stock,HEALTHCARE AT HOME LTD,0013004262,1408.56
Department of Health,East Sussex Hospitals NHS Trust,17/04/2013,STOCK-ASCRIBE EDGH,Pharmacy Stock,HEALTHCARE AT HOME LTD,0013004263,715.00
Department of Health,East Sussex Hospitals NHS Trust,17/04/2013,STOCK-ASCRIBE EDGH,Pharmacy Stock,HEALTHCARE AT HOME LTD,0013004273,715.00
Department of Health,East Sussex Hospitals NHS Trust,17/04/2013,STOCK-ASCRIBE EDGH,Pharmacy Stock,HEALTHCARE AT HOME LTD,0013004274,704.28
Department of Health,East Sussex Hospitals NHS Trust,17/04/2013,STOCK-ASCRIBE EDGH,Pharmacy Stock,HEALTHCARE AT HOME LTD,0013004275,704.28
Department of Health,East Sussex Hospitals NHS Trust,17/04/2013,STOCK-ASCRIBE EDGH,Pharmacy Stock,HEALTHCARE AT HOME LTD,0013004276,704.28
Department of Health,East Sussex Hospitals NHS Trust,17/04/2013,STOCK-ASCRIBE EDGH,Pharmacy Stock,HEALTHCARE AT HOME LTD,0013004277,715.00
Department of Health,East Sussex Hospitals NHS Trust,17/04/2013,STOCK-ASCRIBE EDGH,Pharmacy Stock,HEALTHCARE AT HOME LTD,0013004278,704.28
Department of Health,East Sussex Hospitals NHS Trust,17/04/2013,STOCK-ASCRIBE EDGH,Pharmacy Stock,HEALTHCARE AT HOME LTD,0013004279,715.00
Department of Health,East Sussex Hospitals NHS Trust,17/04/2013,STOCK-ASCRIBE EDGH,Pharmacy Stock,HEALTHCARE AT HOME LTD,0013004280,715.00
Department of Health,East Sussex Hospitals NHS Trust,17/04/2013,STOCK-ASCRIBE EDGH,Pharmacy Stock,HEALTHCARE AT HOME LTD,0013004281,715.00
Department of Health,East Sussex Hospitals NHS Trust,17/04/2013,STOCK-ASCRIBE EDGH,Pharmacy Stock,HEALTHCARE AT HOME LTD,0013004282,715.00
Department of Health,East Sussex Hospitals NHS Trust,17/04/2013,STOCK-ASCRIBE EDGH,Pharmacy Stock,HEALTHCARE AT HOME LTD,0013004283,715.00
Department of Health,East Sussex Hospitals NHS Trust,17/04/2013,STOCK-ASCRIBE EDGH,Pharmacy Stock,HEALTHCARE AT HOME LTD,0013004284,715.00
Department of Health,East Sussex Hospitals NHS Trust,17/04/2013,STOCK-ASCRIBE EDGH,Pharmacy Stock,HEALTHCARE AT HOME LTD,0013004285,715.00
Department of Health,East Sussex Hospitals NHS Trust,17/04/2013,STOCK-ASCRIBE EDGH,Pharmacy Stock,HEALTHCARE AT HOME LTD,0013004286,704.28
Department of Health,East Sussex Hospitals NHS Trust,17/04/2013,STOCK-ASCRIBE EDGH,Pharmacy Stock,HEALTHCARE AT HOME LTD,0013004287,704.28
Department of Health,East Sussex Hospitals NHS Trust,17/04/2013,STOCK-ASCRIBE EDGH,Pharmacy Stock,HEALTHCARE AT HOME LTD,0013004288,715.00
Department of Health,East Sussex Hospitals NHS Trust,17/04/2013,STOCK-ASCRIBE EDGH,Pharmacy Stock,HEALTHCARE AT HOME LTD,0013004289,715.00
Department of Health,East Sussex Hospitals NHS Trust,17/04/2013,STOCK-ASCRIBE EDGH,Pharmacy Stock,HEALTHCARE AT HOME LTD,0013004290,715.00
Department of Health,East Sussex Hospitals NHS Trust,17/04/2013,STOCK-ASCRIBE EDGH,Pharmacy Stock,HEALTHCARE AT HOME LTD,0013004291,715.00
Department of Health,East Sussex Hospitals NHS Trust,17/04/2013,STOCK-ASCRIBE EDGH,Pharmacy Stock,HEALTHCARE AT HOME LTD,0013004292,815.64
Department of Health,East Sussex Hospitals NHS Trust,17/04/2013,STOCK-ASCRIBE EDGH,Pharmacy Stock,HEALTHCARE AT HOME LTD,0013004293,704.28
Department of Health,East Sussex Hospitals NHS Trust,17/04/2013,STOCK-ASCRIBE EDGH,Pharmacy Stock,HEALTHCARE AT HOME LTD,0013004294,715.00
Department of Health,East Sussex Hospitals NHS Trust,17/04/2013,STOCK-ASCRIBE EDGH,Pharmacy Stock,HEALTHCARE AT HOME LTD,0013004295,704.28
Department of Health,East Sussex Hospitals NHS Trust,17/04/2013,STOCK-ASCRIBE EDGH,Pharmacy Stock,HEALTHCARE AT HOME LTD,0013004296,715.00
Department of Health,East Sussex Hospitals NHS Trust,17/04/2013,STOCK-ASCRIBE EDGH,Pharmacy Stock,HEALTHCARE AT HOME LTD,0013004297,715.00
Department of Health,East Sussex Hospitals NHS Trust,17/04/2013,STOCK-ASCRIBE EDGH,Pharmacy Stock,HEALTHCARE AT HOME LTD,0013004298,704.28
Department of Health,East Sussex Hospitals NHS Trust,17/04/2013,STOCK-ASCRIBE EDGH,Pharmacy Stock,HEALTHCARE AT HOME LTD,0013004299,715.00
Department of Health,East Sussex Hospitals NHS Trust,17/04/2013,STOCK-ASCRIBE EDGH,Pharmacy Stock,HEALTHCARE AT HOME LTD,0013004300,715.00
Department of Health,East Sussex Hospitals NHS Trust,17/04/2013,STOCK-ASCRIBE EDGH,Pharmacy Stock,HEALTHCARE AT HOME LTD,0013004301,715.00
Department of Health,East Sussex Hospitals NHS Trust,17/04/2013,STOCK-ASCRIBE EDGH,Pharmacy Stock,HEALTHCARE AT HOME LTD,0013004302,715.00
Department of Health,East Sussex Hospitals NHS Trust,17/04/2013,STOCK-ASCRIBE EDGH,Pharmacy Stock,HEALTHCARE AT HOME LTD,0013004303,704.28
Department of Health,East Sussex Hospitals NHS Trust,17/04/2013,STOCK-ASCRIBE EDGH,Pharmacy Stock,HEALTHCARE AT HOME LTD,0013004305,715.00
Department of Health,East Sussex Hospitals NHS Trust,17/04/2013,STOCK-ASCRIBE EDGH,Pharmacy Stock,HEALTHCARE AT HOME LTD,0013004306,715.00
Department of Health,East Sussex Hospitals NHS Trust,17/04/2013,STOCK-ASCRIBE EDGH,Pharmacy Stock,HEALTHCARE AT HOME LTD,0013004307,715.00
Department of Health,East Sussex Hospitals NHS Trust,17/04/2013,STOCK-ASCRIBE EDGH,Pharmacy Stock,HEALTHCARE AT HOME LTD,0013004308,704.28
Department of Health,East Sussex Hospitals NHS Trust,17/04/2013,STOCK-ASCRIBE EDGH,Pharmacy Stock,HEALTHCARE AT HOME LTD,0013004309,715.00
Department of Health,East Sussex Hospitals NHS Trust,17/04/2013,STOCK-ASCRIBE EDGH,Pharmacy Stock,HEALTHCARE AT HOME LTD,0013004310,704.28
Department of Health,East Sussex Hospitals NHS Trust,17/04/2013,STOCK-ASCRIBE EDGH,Pharmacy Stock,HEALTHCARE AT HOME LTD,0013004311,715.00
Department of Health,East Sussex Hospitals NHS Trust,17/04/2013,STOCK-ASCRIBE EDGH,Pharmacy Stock,HEALTHCARE AT HOME LTD,0013004312,715.00
Department of Health,East Sussex Hospitals NHS Trust,17/04/2013,STOCK-ASCRIBE EDGH,Pharmacy Stock,HEALTHCARE AT HOME LTD,0013004313,715.00
Department of Health,East Sussex Hospitals NHS Trust,17/04/2013,STOCK-ASCRIBE EDGH,Pharmacy Stock,HEALTHCARE AT HOME LTD,0013004314,1430.00
Department of Health,East Sussex Hospitals NHS Trust,17/04/2013,STOCK-ASCRIBE EDGH,Pharmacy Stock,HEALTHCARE AT HOME LTD,0013004315,704.28
Department of Health,East Sussex Hospitals NHS Trust,17/04/2013,STOCK-ASCRIBE EDGH,Pharmacy Stock,HEALTHCARE AT HOME LTD,0013004316,715.00
Department of Health,East Sussex Hospitals NHS Trust,17/04/2013,STOCK-ASCRIBE EDGH,Pharmacy Stock,HEALTHCARE AT HOME LTD,0013004317,715.00
Department of Health,East Sussex Hospitals NHS Trust,17/04/2013,STOCK-ASCRIBE EDGH,Pharmacy Stock,HEALTHCARE AT HOME LTD,0013004318,715.00
Department of Health,East Sussex Hospitals NHS Trust,17/04/2013,STOCK-ASCRIBE EDGH,Pharmacy Stock,HEALTHCARE AT HOME LTD,0013004319,715.00
Department of Health,East Sussex Hospitals NHS Trust,17/04/2013,STOCK-ASCRIBE EDGH,Pharmacy Stock,HEALTHCARE AT HOME LTD,0013004320,704.28
Department of Health,East Sussex Hospitals NHS Trust,17/04/2013,STOCK-ASCRIBE EDGH,Pharmacy Stock,HEALTHCARE AT HOME LTD,0013004321,715.00
Department of Health,East Sussex Hospitals NHS Trust,17/04/2013,STOCK-ASCRIBE EDGH,Pharmacy Stock,HEALTHCARE AT HOME LTD,0013004322,715.00
Department of Health,East Sussex Hospitals NHS Trust,17/04/2013,STOCK-ASCRIBE EDGH,Pharmacy Stock,HEALTHCARE AT HOME LTD,0013004323,715.00
Department of Health,East Sussex Hospitals NHS Trust,17/04/2013,STOCK-ASCRIBE EDGH,Pharmacy Stock,HEALTHCARE AT HOME LTD,0013004324,1408.56
Department of Health,East Sussex Hospitals NHS Trust,17/04/2013,STOCK-ASCRIBE EDGH,Pharmacy Stock,HEALTHCARE AT HOME LTD,0013004325,704.28
Department of Health,East Sussex Hospitals NHS Trust,17/04/2013,STOCK-ASCRIBE EDGH,Pharmacy Stock,HEALTHCARE AT HOME LTD,0013004326,704.28
Department of Health,East Sussex Hospitals NHS Trust,17/04/2013,STOCK-ASCRIBE EDGH,Pharmacy Stock,HEALTHCARE AT HOME LTD,0013004333,715.00
Department of Health,East Sussex Hospitals NHS Trust,17/04/2013,STOCK-ASCRIBE EDGH,Pharmacy Stock,HEALTHCARE AT HOME LTD,0013004334,704.28
Department of Health,East Sussex Hospitals NHS Trust,17/04/2013,STOCK-ASCRIBE CONQUEST,Pharmacy Stock,HEALTHCARE AT HOME LTD,0013004335,715.00
Department of Health,East Sussex Hospitals NHS Trust,17/04/2013,STOCK-ASCRIBE EDGH,Pharmacy Stock,HEALTHCARE AT HOME LTD,0013004336,704.28
Department of Health,East Sussex Hospitals NHS Trust,17/04/2013,STOCK-ASCRIBE EDGH,Pharmacy Stock,HEALTHCARE AT HOME LTD,0013004337,704.28
Department of Health,East Sussex Hospitals NHS Trust,17/04/2013,STOCK-ASCRIBE EDGH,Pharmacy Stock,HEALTHCARE AT HOME LTD,0013004338,715.00
Department of Health,East Sussex Hospitals NHS Trust,17/04/2013,STOCK-ASCRIBE EDGH,Pharmacy Stock,HEALTHCARE AT HOME LTD,0013004339,715.00
Department of Health,East Sussex Hospitals NHS Trust,17/04/2013,STOCK-ASCRIBE EDGH,Pharmacy Stock,HEALTHCARE AT HOME LTD,0013004340,715.00
Department of Health,East Sussex Hospitals NHS Trust,17/04/2013,STOCK-ASCRIBE EDGH,Pharmacy Stock,HEALTHCARE AT HOME LTD,0013004341,715.00
Department of Health,East Sussex Hospitals NHS Trust,17/04/2013,STOCK-ASCRIBE EDGH,Pharmacy Stock,HEALTHCARE AT HOME LTD,0013004342,715.00
Department of Health,East Sussex Hospitals NHS Trust,17/04/2013,STOCK-ASCRIBE EDGH,Pharmacy Stock,HEALTHCARE AT HOME LTD,0013004343,715.00
Department of Health,East Sussex Hospitals NHS Trust,17/04/2013,STOCK-ASCRIBE EDGH,Pharmacy Stock,HEALTHCARE AT HOME LTD,0013004344,715.00
Department of Health,East Sussex Hospitals NHS Trust,17/04/2013,STOCK-ASCRIBE EDGH,Pharmacy Stock,HEALTHCARE AT HOME LTD,0013004345,704.28
Department of Health,East Sussex Hospitals NHS Trust,17/04/2013,STOCK-ASCRIBE EDGH,Pharmacy Stock,HEALTHCARE AT HOME LTD,0013004346,704.28
Department of Health,East Sussex Hospitals NHS Trust,17/04/2013,STOCK-ASCRIBE EDGH,Pharmacy Stock,HEALTHCARE AT HOME LTD,0013004347,704.28
Department of Health,East Sussex Hospitals NHS Trust,17/04/2013,STOCK-ASCRIBE EDGH,Pharmacy Stock,HEALTHCARE AT HOME LTD,0013004348,704.28
Department of Health,East Sussex Hospitals NHS Trust,17/04/2013,STOCK-ASCRIBE EDGH,Pharmacy Stock,HEALTHCARE AT HOME LTD,0013004349,715.00
Department of Health,East Sussex Hospitals NHS Trust,17/04/2013,STOCK-ASCRIBE EDGH,Pharmacy Stock,HEALTHCARE AT HOME LTD,0013004350,704.28
Department of Health,East Sussex Hospitals NHS Trust,17/04/2013,STOCK-ASCRIBE EDGH,Pharmacy Stock,HEALTHCARE AT HOME LTD,0013004351,704.28
Department of Health,East Sussex Hospitals NHS Trust,17/04/2013,STOCK-ASCRIBE EDGH,Pharmacy Stock,HEALTHCARE AT HOME LTD,0013004352,715.00
Department of Health,East Sussex Hospitals NHS Trust,17/04/2013,STOCK-ASCRIBE EDGH,Pharmacy Stock,HEALTHCARE AT HOME LTD,0013004353,704.28
Department of Health,East Sussex Hospitals NHS Trust,17/04/2013,STOCK-ASCRIBE EDGH,Pharmacy Stock,HEALTHCARE AT HOME LTD,0013004354,704.28
Department of Health,East Sussex Hospitals NHS Trust,17/04/2013,STOCK-ASCRIBE EDGH,Pharmacy Stock,HEALTHCARE AT HOME LTD,0013004355,715.00
Department of Health,East Sussex Hospitals NHS Trust,17/04/2013,STOCK-ASCRIBE EDGH,Pharmacy Stock,HEALTHCARE AT HOME LTD,0013004356,1408.56
Department of Health,East Sussex Hospitals NHS Trust,17/04/2013,STOCK-ASCRIBE EDGH,Pharmacy Stock,HEALTHCARE AT HOME LTD,0013004357,715.00
Department of Health,East Sussex Hospitals NHS Trust,17/04/2013,STOCK-ASCRIBE EDGH,Pharmacy Stock,HEALTHCARE AT HOME LTD,0013004358,2145.00
Department of Health,East Sussex Hospitals NHS Trust,17/04/2013,STOCK-ASCRIBE EDGH,Pharmacy Stock,HEALTHCARE AT HOME LTD,0013004359,715.00
Department of Health,East Sussex Hospitals NHS Trust,17/04/2013,STOCK-ASCRIBE EDGH,Pharmacy Stock,HEALTHCARE AT HOME LTD,0013004360,715.00
Department of Health,East Sussex Hospitals NHS Trust,17/04/2013,STOCK-ASCRIBE EDGH,Pharmacy Stock,HEALTHCARE AT HOME LTD,0013004361,2145.00
Department of Health,East Sussex Hospitals NHS Trust,17/04/2013,STOCK-ASCRIBE EDGH,Pharmacy Stock,HEALTHCARE AT HOME LTD,0013004362,715.00
Department of Health,East Sussex Hospitals NHS Trust,17/04/2013,STOCK-ASCRIBE EDGH,Pharmacy Stock,HEALTHCARE AT HOME LTD,0013004363,815.64
Department of Health,East Sussex Hospitals NHS Trust,17/04/2013,STOCK-ASCRIBE EDGH,Pharmacy Stock,HEALTHCARE AT HOME LTD,0013004364,715.00
Department of Health,East Sussex Hospitals NHS Trust,17/04/2013,STOCK-ASCRIBE EDGH,Pharmacy Stock,HEALTHCARE AT HOME LTD,0013004365,704.28
Department of Health,East Sussex Hospitals NHS Trust,17/04/2013,STOCK-ASCRIBE EDGH,Pharmacy Stock,HEALTHCARE AT HOME LTD,0013004366,715.00
Department of Health,East Sussex Hospitals NHS Trust,17/04/2013,STOCK-ASCRIBE EDGH,Pharmacy Stock,HEALTHCARE AT HOME LTD,0013004367,815.64
Department of Health,East Sussex Hospitals NHS Trust,17/04/2013,STOCK-ASCRIBE EDGH,Pharmacy Stock,HEALTHCARE AT HOME LTD,0013004369,715.00
Department of Health,East Sussex Hospitals NHS Trust,17/04/2013,STOCK-ASCRIBE EDGH,Pharmacy Stock,HEALTHCARE AT HOME LTD,0013004370,715.00
Department of Health,East Sussex Hospitals NHS Trust,17/04/2013,STOCK-ASCRIBE EDGH,Pharmacy Stock,HEALTHCARE AT HOME LTD,0013004371,704.28
Department of Health,East Sussex Hospitals NHS Trust,17/04/2013,STOCK-ASCRIBE EDGH,Pharmacy Stock,HEALTHCARE AT HOME LTD,0013004372,715.00
Department of Health,East Sussex Hospitals NHS Trust,17/04/2013,STOCK-ASCRIBE EDGH,Pharmacy Stock,HEALTHCARE AT HOME LTD,0013004373,704.28
Department of Health,East Sussex Hospitals NHS Trust,17/04/2013,STOCK-ASCRIBE EDGH,Pharmacy Stock,HEALTHCARE AT HOME LTD,0013004374,1408.56
Department of Health,East Sussex Hospitals NHS Trust,17/04/2013,STOCK-ASCRIBE EDGH,Pharmacy Stock,HEALTHCARE AT HOME LTD,0013004375,815.64
Department of Health,East Sussex Hospitals NHS Trust,17/04/2013,STOCK-ASCRIBE EDGH,Pharmacy Stock,HEALTHCARE AT HOME LTD,0013004376,715.00
Department of Health,East Sussex Hospitals NHS Trust,17/04/2013,STOCK-ASCRIBE EDGH,Pharmacy Stock,HEALTHCARE AT HOME LTD,0013004377,704.28
Department of Health,East Sussex Hospitals NHS Trust,17/04/2013,STOCK-ASCRIBE EDGH,Pharmacy Stock,HEALTHCARE AT HOME LTD,0013004378,704.28
Department of Health,East Sussex Hospitals NHS Trust,17/04/2013,STOCK-ASCRIBE EDGH,Pharmacy Stock,HEALTHCARE AT HOME LTD,0013004379,715.00
Department of Health,East Sussex Hospitals NHS Trust,17/04/2013,STOCK-ASCRIBE EDGH,Pharmacy Stock,HEALTHCARE AT HOME LTD,0013004380,715.00
Department of Health,East Sussex Hospitals NHS Trust,17/04/2013,STOCK-ASCRIBE EDGH,Pharmacy Stock,HEALTHCARE AT HOME LTD,0013004381,715.00
Department of Health,East Sussex Hospitals NHS Trust,17/04/2013,STOCK-ASCRIBE EDGH,Pharmacy Stock,HEALTHCARE AT HOME LTD,0013004382,715.00
Department of Health,East Sussex Hospitals NHS Trust,17/04/2013,STOCK-ASCRIBE EDGH,Pharmacy Stock,HEALTHCARE AT HOME LTD,0013004383,2145.00
Department of Health,East Sussex Hospitals NHS Trust,17/04/2013,STOCK-ASCRIBE EDGH,Pharmacy Stock,HEALTHCARE AT HOME LTD,0013004384,715.00
Department of Health,East Sussex Hospitals NHS Trust,17/04/2013,STOCK-ASCRIBE EDGH,Pharmacy Stock,HEALTHCARE AT HOME LTD,0013004385,715.00
Department of Health,East Sussex Hospitals NHS Trust,17/04/2013,STOCK-ASCRIBE EDGH,Pharmacy Stock,HEALTHCARE AT HOME LTD,0013004386,704.28
Department of Health,East Sussex Hospitals NHS Trust,17/04/2013,STOCK-ASCRIBE EDGH,Pharmacy Stock,HEALTHCARE AT HOME LTD,0013004387,704.28
Department of Health,East Sussex Hospitals NHS Trust,17/04/2013,STOCK-ASCRIBE EDGH,Pharmacy Stock,HEALTHCARE AT HOME LTD,0013004388,1408.56
Department of Health,East Sussex Hospitals NHS Trust,17/04/2013,STOCK-ASCRIBE EDGH,Pharmacy Stock,HEALTHCARE AT HOME LTD,0013004389,715.00
Department of Health,East Sussex Hospitals NHS Trust,17/04/2013,STOCK-ASCRIBE EDGH,Pharmacy Stock,HEALTHCARE AT HOME LTD,0013004390,715.00
Department of Health,East Sussex Hospitals NHS Trust,17/04/2013,STOCK-ASCRIBE EDGH,Pharmacy Stock,HEALTHCARE AT HOME LTD,0013004391,704.28
Department of Health,East Sussex Hospitals NHS Trust,17/04/2013,STOCK-ASCRIBE EDGH,Pharmacy Stock,HEALTHCARE AT HOME LTD,0013004393,715.00
Department of Health,East Sussex Hospitals NHS Trust,17/04/2013,STOCK-ASCRIBE EDGH,Pharmacy Stock,HEALTHCARE AT HOME LTD,0013004394,715.00
Department of Health,East Sussex Hospitals NHS Trust,17/04/2013,STOCK-ASCRIBE EDGH,Pharmacy Stock,HEALTHCARE AT HOME LTD,0013004395,715.00
Department of Health,East Sussex Hospitals NHS Trust,17/04/2013,STOCK-ASCRIBE EDGH,Pharmacy Stock,HEALTHCARE AT HOME LTD,0013004396,704.28
Department of Health,East Sussex Hospitals NHS Trust,17/04/2013,STOCK-ASCRIBE EDGH,Pharmacy Stock,HEALTHCARE AT HOME LTD,0013004400,715.00
Department of Health,East Sussex Hospitals NHS Trust,17/04/2013,STOCK-ASCRIBE EDGH,Pharmacy Stock,HEALTHCARE AT HOME LTD,0013004401,1408.56
Department of Health,East Sussex Hospitals NHS Trust,17/04/2013,STOCK-ASCRIBE EDGH,Pharmacy Stock,HEALTHCARE AT HOME LTD,0013004402,715.00
Department of Health,East Sussex Hospitals NHS Trust,17/04/2013,STOCK-ASCRIBE EDGH,Pharmacy Stock,HEALTHCARE AT HOME LTD,0013004403,704.28
Department of Health,East Sussex Hospitals NHS Trust,17/04/2013,STOCK-ASCRIBE EDGH,Pharmacy Stock,HEALTHCARE AT HOME LTD,0013004404,715.00
Department of Health,East Sussex Hospitals NHS Trust,17/04/2013,STOCK-ASCRIBE EDGH,Pharmacy Stock,HEALTHCARE AT HOME LTD,0013004405,715.00
Department of Health,East Sussex Hospitals NHS Trust,17/04/2013,STOCK-ASCRIBE EDGH,Pharmacy Stock,HEALTHCARE AT HOME LTD,0013004407,704.28
Department of Health,East Sussex Hospitals NHS Trust,17/04/2013,STOCK-ASCRIBE EDGH,Pharmacy Stock,HEALTHCARE AT HOME LTD,0013004408,715.00
Department of Health,East Sussex Hospitals NHS Trust,17/04/2013,STOCK-ASCRIBE EDGH,Pharmacy Stock,HEALTHCARE AT HOME LTD,0013004409,715.00
Department of Health,East Sussex Hospitals NHS Trust,17/04/2013,STOCK-ASCRIBE EDGH,Pharmacy Stock,HEALTHCARE AT HOME LTD,0013004410,715.00
Department of Health,East Sussex Hospitals NHS Trust,17/04/2013,STOCK-ASCRIBE EDGH,Pharmacy Stock,HEALTHCARE AT HOME LTD,0013004411,715.00
Department of Health,East Sussex Hospitals NHS Trust,17/04/2013,STOCK-ASCRIBE EDGH,Pharmacy Stock,HEALTHCARE AT HOME LTD,0013004412,704.28
Department of Health,East Sussex Hospitals NHS Trust,17/04/2013,STOCK-ASCRIBE EDGH,Pharmacy Stock,HEALTHCARE AT HOME LTD,0013004414,715.00
Department of Health,East Sussex Hospitals NHS Trust,17/04/2013,STOCK-ASCRIBE EDGH,Pharmacy Stock,UNIDRUG DISTRIBUTION GROUP LTD,0013004421,1194.00
Department of Health,East Sussex Hospitals NHS Trust,17/04/2013,STOCK-ASCRIBE EDGH,Pharmacy Stock,HEALTHCARE AT HOME LTD,0013004447,715.00
Department of Health,East Sussex Hospitals NHS Trust,17/04/2013,STOCK-ASCRIBE EDGH,Pharmacy Stock,HEALTHCARE AT HOME LTD,0013004452,704.28
Department of Health,East Sussex Hospitals NHS Trust,17/04/2013,STOCK-ASCRIBE EDGH,Pharmacy Stock,HEALTHCARE AT HOME LTD,0013004453,704.28
Department of Health,East Sussex Hospitals NHS Trust,17/04/2013,STOCK-ASCRIBE EDGH,Pharmacy Stock,HEALTHCARE AT HOME LTD,0013004454,715.00
Department of Health,East Sussex Hospitals NHS Trust,17/04/2013,STOCK-ASCRIBE EDGH,Pharmacy Stock,HEALTHCARE AT HOME LTD,0013004455,715.00
Department of Health,East Sussex Hospitals NHS Trust,17/04/2013,STOCK-ASCRIBE EDGH,Pharmacy Stock,HEALTHCARE AT HOME LTD,0013004456,715.00
Department of Health,East Sussex Hospitals NHS Trust,17/04/2013,STOCK-ASCRIBE EDGH,Pharmacy Stock,HEALTHCARE AT HOME LTD,0013004457,715.00
Department of Health,East Sussex Hospitals NHS Trust,17/04/2013,STOCK-ASCRIBE EDGH,Pharmacy Stock,HEALTHCARE AT HOME LTD,0013004458,715.00
Department of Health,East Sussex Hospitals NHS Trust,17/04/2013,STOCK-ASCRIBE EDGH,Pharmacy Stock,HEALTHCARE AT HOME LTD,0013004459,704.28
Department of Health,East Sussex Hospitals NHS Trust,17/04/2013,STOCK-ASCRIBE EDGH,Pharmacy Stock,HEALTHCARE AT HOME LTD,0013004460,1408.56
Department of Health,East Sussex Hospitals NHS Trust,17/04/2013,STOCK-ASCRIBE EDGH,Pharmacy Stock,HEALTHCARE AT HOME LTD,0013004461,1408.56
Department of Health,East Sussex Hospitals NHS Trust,17/04/2013,STOCK-ASCRIBE EDGH,Pharmacy Stock,HEALTHCARE AT HOME LTD,0013004462,704.28
Department of Health,East Sussex Hospitals NHS Trust,17/04/2013,STOCK-ASCRIBE EDGH,Pharmacy Stock,HEALTHCARE AT HOME LTD,0013004463,715.00
Department of Health,East Sussex Hospitals NHS Trust,17/04/2013,STOCK-ASCRIBE EDGH,Pharmacy Stock,HEALTHCARE AT HOME LTD,0013004464,715.00
Department of Health,East Sussex Hospitals NHS Trust,17/04/2013,STOCK-ASCRIBE EDGH,Pharmacy Stock,HEALTHCARE AT HOME LTD,0013004465,715.00
Department of Health,East Sussex Hospitals NHS Trust,17/04/2013,STOCK-ASCRIBE EDGH,Pharmacy Stock,HEALTHCARE AT HOME LTD,0013004466,715.00
Department of Health,East Sussex Hospitals NHS Trust,19/04/2013,CAPITAL EXPENDITURE,Other Central,FRENCON CONSTRUCTION LTD,0001527719,152230.65
Department of Health,East Sussex Hospitals NHS Trust,19/04/2013,POSTAGE - FRANKING MACHINE,Commercial,POSTAGE BY PHONE - PITNEY BOWES LTD,0001527720,10000.00
Department of Health,East Sussex Hospitals NHS Trust,19/04/2013,PURCHASING CARDS,Cross Site,LLOYDS TSB CORPORATE MARKETS,0001527721,30384.04
Department of Health,East Sussex Hospitals NHS Trust,19/04/2013,POSTAGE - FRANKING MACHINE,Commercial,NEOPOST LTD,0001527722,15000.00
Department of Health,East Sussex Hospitals NHS Trust,19/04/2013,NHSLA-CNST INSURANCE,Corporate Services,NHS LITIGATION AUTHORITY,0001527723,713298.00
Department of Health,East Sussex Hospitals NHS Trust,19/04/2013,OTHER INSURANCE NOT PROP/VHCL,Corporate Services,NHS LITIGATION AUTHORITY,0001527723,34655.00
Department of Health,East Sussex Hospitals NHS Trust,19/04/2013,FINANCE LEASE > 1 YEAR,Other Central,SHAWBROOK ASSET FINANCE,0001527724,76279.13
Department of Health,East Sussex Hospitals NHS Trust,24/04/2013,YEAR END NRVS JV GENERAL CRS,NHS Creditors,ROYAL DEVON & EXETER NHS FOUNDATION TRUS,0000135468,650.00
Department of Health,East Sussex Hospitals NHS Trust,24/04/2013,NHS SUPPLY CHAIN CREDITORS,Cross Site,NHS SUPPLY CHAIN,0000136416,170721.59
Department of Health,East Sussex Hospitals NHS Trust,24/04/2013,AGENCY NURSE - QUALIFIED,Integrated Care,TEAM24 LTD,0000285072,536.32
Department of Health,East Sussex Hospitals NHS Trust,24/04/2013,AGENCY MLSO,Integrated Care,DAY WEBSTER LTD,0000285504,1080.00
Department of Health,East Sussex Hospitals NHS Trust,24/04/2013,AGENCY SPECIALIST REG,Planned Care,PROMEDICAL PERSONNEL LTD,0000285835,1927.86
Department of Health,East Sussex Hospitals NHS Trust,24/04/2013,AGENCY OCC THERAPY STAFF,Integrated Care,THE PLACEMENT GROUP,0000286005,536.27
Department of Health,East Sussex Hospitals NHS Trust,24/04/2013,AGENCY SPECIALIST REG,Urgent Care,RM MEDICS LTD,0000286208,5310.23
Department of Health,East Sussex Hospitals NHS Trust,24/04/2013,AGENCY NURSE - QUALIFIED,Urgent Care,PREMIERCARE NETWORK LTD,0000286293,946.96
Department of Health,East Sussex Hospitals NHS Trust,24/04/2013,AGENCY NURSE - QUALIFIED,Urgent Care,PULSE HEALTHCARE SERVICES LTD,0000286348,517.91
Department of Health,East Sussex Hospitals NHS Trust,24/04/2013,AGENCY NURSE - QUALIFIED,Urgent Care,PULSE HEALTHCARE SERVICES LTD,0000286349,517.91
Department of Health,East Sussex Hospitals NHS Trust,24/04/2013,AGENCY OCC THERAPY STAFF,Integrated Care,THE PLACEMENT GROUP,0000286371,1386.90
Department of Health,East Sussex Hospitals NHS Trust,24/04/2013,AGENCY OCC THERAPY STAFF,Integrated Care,THE PLACEMENT GROUP,0000286386,1054.04
Department of Health,East Sussex Hospitals NHS Trust,24/04/2013,AGENCY OCC THERAPY STAFF,Integrated Care,THE PLACEMENT GROUP,0000286467,1386.90
Department of Health,East Sussex Hospitals NHS Trust,24/04/2013,AGENCY NURSE - QUALIFIED,Urgent Care,ARABELLA HEALTH STAFFING LTD,0000286476,465.41
Department of Health,East Sussex Hospitals NHS Trust,24/04/2013,AGENCY SPECIALIST REG,Urgent Care,THE ACCIDENT & EMERGENCY AGENCY LTD,0000286537,624.00
Department of Health,East Sussex Hospitals NHS Trust,24/04/2013,AGENCY SPECIALIST REG,Urgent Care,THE ACCIDENT & EMERGENCY AGENCY LTD,0000286538,1560.00
Department of Health,East Sussex Hospitals NHS Trust,24/04/2013,AGENCY SPECIALIST REG,Urgent Care,THE ACCIDENT & EMERGENCY AGENCY LTD,0000286539,624.00
Department of Health,East Sussex Hospitals NHS Trust,24/04/2013,AGENCY DIETICIAN,Integrated Care,PULSE HEALTHCARE SERVICES LTD,0000286559,1373.86
Department of Health,East Sussex Hospitals NHS Trust,24/04/2013,AGENCY MLSO,Integrated Care,PULSE HEALTHCARE SERVICES LTD,0000286560,1155.60
Department of Health,East Sussex Hospitals NHS Trust,24/04/2013,AGENCY DRIVERS,Commercial,PEOPLE POWER REC AGENCY LTD,0000286579,575.52
Department of Health,East Sussex Hospitals NHS Trust,24/04/2013,AGENCY NURSE - QUALIFIED,Urgent Care,PULSE HEALTHCARE SERVICES LTD,0000286596,517.91
Department of Health,East Sussex Hospitals NHS Trust,24/04/2013,AGENCY DIETICIAN,Integrated Care,PULSE HEALTHCARE SERVICES LTD,0000286615,1373.86
Department of Health,East Sussex Hospitals NHS Trust,24/04/2013,AGENCY NURSE - QUALIFIED,Integrated Care,TEAM24 LTD,0000286716,1148.40
Department of Health,East Sussex Hospitals NHS Trust,24/04/2013,AGENCY NURSE - QUALIFIED,Integrated Care,TEAM24 LTD,0000286717,1130.81
Department of Health,East Sussex Hospitals NHS Trust,24/04/2013,AGENCY MLSO,Integrated Care,LABMED,0000286720,1347.76
Department of Health,East Sussex Hospitals NHS Trust,24/04/2013,AGENCY NURSE - QUALIFIED,Integrated Care,TEAM24 LTD,0000286722,536.32
Department of Health,East Sussex Hospitals NHS Trust,24/04/2013,AGENCY SPECIALIST REG,Planned Care,MYLOCUM LTD,0000286732,1762.54
Department of Health,East Sussex Hospitals NHS Trust,24/04/2013,AGENCY DIETICIAN,Integrated Care,THE PLACEMENT GROUP,0000286740,1233.90
Department of Health,East Sussex Hospitals NHS Trust,24/04/2013,AGENCY PHYSIOTHERAPY STAFF,Integrated Care,THE PLACEMENT GROUP,0000286824,1541.26
Department of Health,East Sussex Hospitals NHS Trust,24/04/2013,AGENCY PHYSIOTHERAPY STAFF,Integrated Care,THE PLACEMENT GROUP,0000286825,1541.26
Department of Health,East Sussex Hospitals NHS Trust,24/04/2013,AGENCY PHYSIOTHERAPY STAFF,Integrated Care,THE PLACEMENT GROUP,0000286826,1541.26
Department of Health,East Sussex Hospitals NHS Trust,24/04/2013,AGENCY MLSO,Integrated Care,PULSE HEALTHCARE SERVICES LTD,0000286836,1203.76
Department of Health,East Sussex Hospitals NHS Trust,24/04/2013,AGENCY OCC THERAPY STAFF,Integrated Care,PULSE HEALTHCARE SERVICES LTD,0000286838,1332.00
Department of Health,East Sussex Hospitals NHS Trust,24/04/2013,AGENCY PHYSIOTHERAPY STAFF,Urgent Care,MEDICONNECT RECRUITMENT,0000286844,1397.70
Department of Health,East Sussex Hospitals NHS Trust,24/04/2013,AGENCY SPECIALIST REG,Planned Care,SURGI-CALL LOCUMS,0000286845,5040.00
Department of Health,East Sussex Hospitals NHS Trust,24/04/2013,AGENCY SPECIALIST REG,Planned Care,SURGI-CALL LOCUMS,0000286846,5040.00
Department of Health,East Sussex Hospitals NHS Trust,24/04/2013,AGENCY SPECIALIST REG,Planned Care,SURGI-CALL LOCUMS,0000286847,7812.00
Department of Health,East Sussex Hospitals NHS Trust,24/04/2013,AGENCY SPECIALIST REG,Planned Care,SURGI-CALL LOCUMS,0000286848,5040.00
Department of Health,East Sussex Hospitals NHS Trust,24/04/2013,AGENCY SPECIALIST REG,Planned Care,SURGI-CALL LOCUMS,0000286849,9072.00
Department of Health,East Sussex Hospitals NHS Trust,24/04/2013,AGENCY SPECIALIST REG,Planned Care,SURGI-CALL LOCUMS,0000286850,3024.00
Department of Health,East Sussex Hospitals NHS Trust,24/04/2013,AGENCY SPECIALIST REG,Planned Care,SURGI-CALL LOCUMS,0000286851,5040.00
Department of Health,East Sussex Hospitals NHS Trust,24/04/2013,AGENCY SPECIALIST REG,Planned Care,SURGI-CALL LOCUMS,0000286852,5040.00
Department of Health,East Sussex Hospitals NHS Trust,24/04/2013,AGENCY MLSO,Integrated Care,LABMED,0000286854,1078.20
Department of Health,East Sussex Hospitals NHS Trust,24/04/2013,AGENCY NURSE - QUALIFIED,Integrated Care,TEAM24 LTD,0000286860,541.69
Department of Health,East Sussex Hospitals NHS Trust,24/04/2013,CAPITAL EXPENDITURE,Other Central,REED SPECIALIST RECRUITMENT LTD,0000286861,651.23
Department of Health,East Sussex Hospitals NHS Trust,24/04/2013,CAPITAL EXPENDITURE,Other Central,REED SPECIALIST RECRUITMENT LTD,0000286862,707.86
Department of Health,East Sussex Hospitals NHS Trust,24/04/2013,AGENCY TECHNICIAN,Planned Care,THE PLACEMENT GROUP,0000286875,1474.66
Department of Health,East Sussex Hospitals NHS Trust,24/04/2013,AGENCY OCC THERAPY STAFF,Integrated Care,THE PLACEMENT GROUP,0000286876,1386.90
Department of Health,East Sussex Hospitals NHS Trust,24/04/2013,AGENCY OCC THERAPY STAFF,Integrated Care,THE PLACEMENT GROUP,0000286877,1100.28
Department of Health,East Sussex Hospitals NHS Trust,24/04/2013,AGENCY PHYSIOTHERAPY STAFF,Integrated Care,THE PLACEMENT GROUP,0000286878,1769.58
Department of Health,East Sussex Hospitals NHS Trust,24/04/2013,AGENCY DIETICIAN,Integrated Care,THE PLACEMENT GROUP,0000286879,740.34
Department of Health,East Sussex Hospitals NHS Trust,24/04/2013,AGENCY NURSE - QUALIFIED,Integrated Care,TEAM24 LTD,0000286893,541.69
Department of Health,East Sussex Hospitals NHS Trust,24/04/2013,AGENCY NURSE - QUALIFIED,Integrated Care,TEAM24 LTD,0000286894,592.88
Department of Health,East Sussex Hospitals NHS Trust,24/04/2013,AGENCY NURSE - QUALIFIED,Integrated Care,TEAM24 LTD,0000286895,1130.81
Department of Health,East Sussex Hospitals NHS Trust,24/04/2013,AGENCY NURSE - QUALIFIED,Integrated Care,TEAM24 LTD,0000286896,520.48
Department of Health,East Sussex Hospitals NHS Trust,24/04/2013,AGENCY NURSE - QUALIFIED,Integrated Care,TEAM24 LTD,0000286897,545.44
Department of Health,East Sussex Hospitals NHS Trust,24/04/2013,AGENCY NURSE - QUALIFIED,Integrated Care,TEAM24 LTD,0000286898,541.69
Department of Health,East Sussex Hospitals NHS Trust,24/04/2013,AGENCY NURSE - QUALIFIED,Integrated Care,TEAM24 LTD,0000286899,1087.14
Department of Health,East Sussex Hospitals NHS Trust,24/04/2013,AGENCY NURSE - QUALIFIED,Integrated Care,TEAM24 LTD,0000286900,1062.17
Department of Health,East Sussex Hospitals NHS Trust,24/04/2013,AGENCY NURSE - QUALIFIED,Integrated Care,TEAM24 LTD,0000286902,1083.38
Department of Health,East Sussex Hospitals NHS Trust,24/04/2013,AGENCY NURSE - QUALIFIED,Integrated Care,TEAM24 LTD,0000286909,516.56
Department of Health,East Sussex Hospitals NHS Trust,24/04/2013,AGENCY NURSE - QUALIFIED,Integrated Care,TEAM24 LTD,0000286910,511.19
Department of Health,East Sussex Hospitals NHS Trust,24/04/2013,AGENCY NURSE - QUALIFIED,Integrated Care,TEAM24 LTD,0000286911,1130.81
Department of Health,East Sussex Hospitals NHS Trust,24/04/2013,AGENCY NURSE - QUALIFIED,Integrated Care,TEAM24 LTD,0000286912,541.69
Department of Health,East Sussex Hospitals NHS Trust,24/04/2013,AGENCY NURSE - QUALIFIED,Integrated Care,TEAM24 LTD,0000286913,1025.60
Department of Health,East Sussex Hospitals NHS Trust,24/04/2013,AGENCY NURSE - QUALIFIED,Integrated Care,TEAM24 LTD,0000286914,1083.38
Department of Health,East Sussex Hospitals NHS Trust,24/04/2013,AGENCY NURSE - QUALIFIED,Integrated Care,TEAM24 LTD,0000286915,545.45
Department of Health,East Sussex Hospitals NHS Trust,24/04/2013,AGENCY NURSE - QUALIFIED,Integrated Care,TEAM24 LTD,0000286917,509.87
Department of Health,East Sussex Hospitals NHS Trust,24/04/2013,AGENCY NURSE - QUALIFIED,Integrated Care,TEAM24 LTD,0000286918,1039.71
Department of Health,East Sussex Hospitals NHS Trust,24/04/2013,AGENCY NURSE - QUALIFIED,Integrated Care,TEAM24 LTD,0000286924,533.59
Department of Health,East Sussex Hospitals NHS Trust,24/04/2013,AGENCY NURSE - QUALIFIED,Integrated Care,TEAM24 LTD,0000286925,602.95
Department of Health,East Sussex Hospitals NHS Trust,24/04/2013,AGENCY NURSE - QUALIFIED,Integrated Care,TEAM24 LTD,0000286926,1083.38
Department of Health,East Sussex Hospitals NHS Trust,24/04/2013,AGENCY NURSE - QUALIFIED,Integrated Care,TEAM24 LTD,0000286927,541.69
Department of Health,East Sussex Hospitals NHS Trust,24/04/2013,AGENCY NURSE - QUALIFIED,Integrated Care,TEAM24 LTD,0000286928,1083.38
Department of Health,East Sussex Hospitals NHS Trust,24/04/2013,AGENCY - GENERAL GRADES,Commercial,INTERWORK RECRUITMENT CONSULTANTS LTD,0000286965,566.80
Department of Health,East Sussex Hospitals NHS Trust,24/04/2013,AGENCY PHYSIOTHERAPY STAFF,Integrated Care,THE PLACEMENT GROUP,0000286982,1541.26
Department of Health,East Sussex Hospitals NHS Trust,24/04/2013,AGENCY PHYSIOTHERAPY STAFF,Integrated Care,THE PLACEMENT GROUP,0000286983,1506.16
Department of Health,East Sussex Hospitals NHS Trust,24/04/2013,LOCUM SPECIALTY DOCTOR,Urgent Care,MEDACS HEALTHCARE SERVICES LTD,0000287100,1959.07
Department of Health,East Sussex Hospitals NHS Trust,24/04/2013,AGENCY NURSE - QUALIFIED,Integrated Care,TEAM24 LTD,0000287105,1200.83
Department of Health,East Sussex Hospitals NHS Trust,24/04/2013,AGENCY NURSE - QUALIFIED,Integrated Care,TEAM24 LTD,0000287106,602.95
Department of Health,East Sussex Hospitals NHS Trust,24/04/2013,AGENCY NURSE - QUALIFIED,Planned Care,TEAM24 LTD,0000287107,742.68
Department of Health,East Sussex Hospitals NHS Trust,24/04/2013,AGENCY NURSE - QUALIFIED,Integrated Care,TEAM24 LTD,0000287108,1083.38
Department of Health,East Sussex Hospitals NHS Trust,24/04/2013,AGENCY NURSE - QUALIFIED,Integrated Care,TEAM24 LTD,0000287109,1004.39
Department of Health,East Sussex Hospitals NHS Trust,24/04/2013,AGENCY NURSE - QUALIFIED,Integrated Care,TEAM24 LTD,0000287110,1625.07
Department of Health,East Sussex Hospitals NHS Trust,24/04/2013,AGENCY NURSE - QUALIFIED,Integrated Care,TEAM24 LTD,0000287161,545.44
Department of Health,East Sussex Hospitals NHS Trust,24/04/2013,AGENCY NURSE - QUALIFIED,Integrated Care,TEAM24 LTD,0000287164,541.69
Department of Health,East Sussex Hospitals NHS Trust,24/04/2013,AGENCY NURSE - QUALIFIED,Integrated Care,TEAM24 LTD,0000287167,1457.48
Department of Health,East Sussex Hospitals NHS Trust,24/04/2013,AGENCY NURSE - QUALIFIED,Integrated Care,TEAM24 LTD,0000287266,545.45
Department of Health,East Sussex Hospitals NHS Trust,24/04/2013,AGENCY NURSE - QUALIFIED,Integrated Care,TEAM24 LTD,0000287267,1628.83
Department of Health,East Sussex Hospitals NHS Trust,24/04/2013,AGENCY NURSE - QUALIFIED,Integrated Care,TEAM24 LTD,0000287270,589.12
Department of Health,East Sussex Hospitals NHS Trust,24/04/2013,AGENCY NURSE - QUALIFIED,Integrated Care,TEAM24 LTD,0000287271,565.41
Department of Health,East Sussex Hospitals NHS Trust,24/04/2013,AGENCY NURSE - QUALIFIED,Integrated Care,TEAM24 LTD,0000287272,625.86
Department of Health,East Sussex Hospitals NHS Trust,24/04/2013,AGENCY NURSE - QUALIFIED,Integrated Care,TEAM24 LTD,0000287276,541.69
Department of Health,East Sussex Hospitals NHS Trust,24/04/2013,AGENCY NURSE - QUALIFIED,Integrated Care,TEAM24 LTD,0000287279,1174.61
Department of Health,East Sussex Hospitals NHS Trust,24/04/2013,CAPITAL EXPENDITURE,Other Central,REED SPECIALIST RECRUITMENT LTD,0000287286,707.86
Department of Health,East Sussex Hospitals NHS Trust,24/04/2013,CAPITAL EXPENDITURE,Other Central,REED SPECIALIST RECRUITMENT LTD,0000287287,707.86
Department of Health,East Sussex Hospitals NHS Trust,24/04/2013,AGENCY SPECIALIST REG,Urgent Care,RM MEDICS LTD,0000287420,1325.22
Department of Health,East Sussex Hospitals NHS Trust,24/04/2013,AGENCY MLSO,Integrated Care,PULSE HEALTHCARE SERVICES LTD,0000287446,1203.76
Department of Health,East Sussex Hospitals NHS Trust,24/04/2013,AGENCY SPEECH THERAPIST,Integrated Care,LONDON TEACHING POOL LTD,0000287509,1320.66
Department of Health,East Sussex Hospitals NHS Trust,24/04/2013,AGENCY SPEECH THERAPIST,Integrated Care,LONDON TEACHING POOL LTD,0000287510,1707.76
Department of Health,East Sussex Hospitals NHS Trust,24/04/2013,AGENCY SPECIALIST REG,Planned Care,MEDACS HEALTHCARE SERVICES LTD,0000287515,1951.67
Department of Health,East Sussex Hospitals NHS Trust,24/04/2013,AGENCY MLSO,Integrated Care,DAY WEBSTER LTD,0000287539,1660.84
Department of Health,East Sussex Hospitals NHS Trust,24/04/2013,AGENCY MLSO,Integrated Care,DAY WEBSTER LTD,0000287540,1656.64
Department of Health,East Sussex Hospitals NHS Trust,24/04/2013,AGENCY MLSO,Integrated Care,DAY WEBSTER LTD,0000287541,1572.76
Department of Health,East Sussex Hospitals NHS Trust,24/04/2013,AGENCY MLSO,Integrated Care,DAY WEBSTER LTD,0000287542,1572.76
Department of Health,East Sussex Hospitals NHS Trust,24/04/2013,AGENCY MLSO,Integrated Care,DAY WEBSTER LTD,0000287543,1713.26
Department of Health,East Sussex Hospitals NHS Trust,24/04/2013,AGENCY MLSO,Integrated Care,DAY WEBSTER LTD,0000287544,1031.74
Department of Health,East Sussex Hospitals NHS Trust,24/04/2013,AGENCY MLSO,Integrated Care,DAY WEBSTER LTD,0000287545,618.61
Department of Health,East Sussex Hospitals NHS Trust,24/04/2013,AGENCY ANCILLARY,Commercial,INTERWORK RECRUITMENT CONSULTANTS LTD,0000287549,1026.47
Department of Health,East Sussex Hospitals NHS Trust,24/04/2013,AGENCY NURSE - QUALIFIED,Integrated Care,TEAM24 LTD,0000287561,541.69
Department of Health,East Sussex Hospitals NHS Trust,24/04/2013,AGENCY NURSE - QUALIFIED,Integrated Care,TEAM24 LTD,0000287564,589.12
Department of Health,East Sussex Hospitals NHS Trust,24/04/2013,AGENCY NURSE - QUALIFIED,Integrated Care,TEAM24 LTD,0000287565,589.12
Department of Health,East Sussex Hospitals NHS Trust,24/04/2013,AGENCY NURSE - QUALIFIED,Integrated Care,TEAM24 LTD,0000287566,512.80
Department of Health,East Sussex Hospitals NHS Trust,24/04/2013,AGENCY NURSE - QUALIFIED,Integrated Care,TEAM24 LTD,0000287567,542.94
Department of Health,East Sussex Hospitals NHS Trust,24/04/2013,AGENCY NURSE - QUALIFIED,Integrated Care,TEAM24 LTD,0000287568,512.80
Department of Health,East Sussex Hospitals NHS Trust,24/04/2013,AGENCY NURSE - QUALIFIED,Integrated Care,TEAM24 LTD,0000287569,602.95
Department of Health,East Sussex Hospitals NHS Trust,24/04/2013,AGENCY NURSE - QUALIFIED,Integrated Care,TEAM24 LTD,0000287574,508.63
Department of Health,East Sussex Hospitals NHS Trust,24/04/2013,AGENCY NURSE - QUALIFIED,Integrated Care,TEAM24 LTD,0000287578,545.44
Department of Health,East Sussex Hospitals NHS Trust,24/04/2013,AGENCY NURSE - QUALIFIED,Integrated Care,TEAM24 LTD,0000287579,541.69
Department of Health,East Sussex Hospitals NHS Trust,24/04/2013,AGENCY NURSE - QUALIFIED,Integrated Care,TEAM24 LTD,0000287581,1195.83
Department of Health,East Sussex Hospitals NHS Trust,24/04/2013,AGENCY NURSE - QUALIFIED,Integrated Care,TEAM24 LTD,0000287585,1474.77
Department of Health,East Sussex Hospitals NHS Trust,24/04/2013,AGENCY NURSE - QUALIFIED,Urgent Care,PREMIERCARE NETWORK LTD,0000287595,633.80
Department of Health,East Sussex Hospitals NHS Trust,24/04/2013,AGENCY OCC THERAPY STAFF,Integrated Care,PULSE HEALTHCARE SERVICES LTD,0000287615,1332.00
Department of Health,East Sussex Hospitals NHS Trust,24/04/2013,AGENCY MLSO,Integrated Care,PULSE HEALTHCARE SERVICES LTD,0000287617,963.00
Department of Health,East Sussex Hospitals NHS Trust,24/04/2013,AGENCY SPECIALIST REG,Planned Care,MEDACS HEALTHCARE SERVICES LTD,0000287625,577.02
Department of Health,East Sussex Hospitals NHS Trust,24/04/2013,AGENCY MLSO,Integrated Care,PULSE HEALTHCARE SERVICES LTD,0000287699,963.00
Department of Health,East Sussex Hospitals NHS Trust,24/04/2013,AGENCY SPECIALIST REG,Planned Care,MEDACS HEALTHCARE SERVICES LTD,0000287717,893.18
Department of Health,East Sussex Hospitals NHS Trust,24/04/2013,AGENCY ANCILLARY,Commercial,INTERWORK RECRUITMENT CONSULTANTS LTD,0000287721,8715.91
Department of Health,East Sussex Hospitals NHS Trust,24/04/2013,AGENCY ANCILLARY,Commercial,INTERWORK RECRUITMENT CONSULTANTS LTD,0000287722,774.26
Department of Health,East Sussex Hospitals NHS Trust,24/04/2013,AGENCY ANCILLARY,Commercial,INTERWORK RECRUITMENT CONSULTANTS LTD,0000287725,549.61
Department of Health,East Sussex Hospitals NHS Trust,24/04/2013,AGENCY ANCILLARY,Commercial,INTERWORK RECRUITMENT CONSULTANTS LTD,0000287726,622.74
Department of Health,East Sussex Hospitals NHS Trust,24/04/2013,AGENCY SPECIALIST REG,Planned Care,MEDACS HEALTHCARE SERVICES LTD,0000287828,3546.94
Department of Health,East Sussex Hospitals NHS Trust,24/04/2013,AGENCY SPECIALIST REG,Integrated Care,SCARAMOUCHE LOCUM SERVICES LTD,0000287886,1337.49
Department of Health,East Sussex Hospitals NHS Trust,24/04/2013,AGENCY NURSE - QUALIFIED,Urgent Care,PREMIERCARE NETWORK LTD,0000287946,1245.75
Department of Health,East Sussex Hospitals NHS Trust,24/04/2013,AGENCY NURSE - QUALIFIED,Urgent Care,PREMIERCARE NETWORK LTD,0000287947,1159.53
Department of Health,East Sussex Hospitals NHS Trust,24/04/2013,AGENCY NURSE - QUALIFIED,Urgent Care,PREMIERCARE NETWORK LTD,0000287948,808.46
Department of Health,East Sussex Hospitals NHS Trust,24/04/2013,DISPOSAL OF FLIORESCENT TUBES,Commercial,OSRAM LTD,0000361144,26.70
Department of Health,East Sussex Hospitals NHS Trust,24/04/2013,SC-CONQUEST UNIT WORKS,Commercial,OSRAM LTD,0000361144,1125.77
Department of Health,East Sussex Hospitals NHS Trust,24/04/2013,LAUNDRY MACHINES,Commercial,JLA TOTAL CARE LTD,0000361238,1177.20
Department of Health,East Sussex Hospitals NHS Trust,24/04/2013,CHILLERS-YORK UK,Commercial,JOHNSON CONTROLS LTD,0000361340,4048.41
Department of Health,East Sussex Hospitals NHS Trust,24/04/2013,CAPITAL EXPENDITURE,Other Central,BOOKER & BEST LIMITED,0000361393,4441.76
Department of Health,East Sussex Hospitals NHS Trust,24/04/2013,PROFESSIONAL FEES,Commercial,INGRID GILLESPIE,0000361530,1125.00
Department of Health,East Sussex Hospitals NHS Trust,24/04/2013,CAPITAL EXPENDITURE,Other Central,TERSUS CONSULTANCY LIMITED,0000361532,450.00
Department of Health,East Sussex Hospitals NHS Trust,24/04/2013,CAPITAL EXPENDITURE,Other Central,TERSUS CONSULTANCY LIMITED,0000361533,450.00
Department of Health,East Sussex Hospitals NHS Trust,24/04/2013,PROFESSIONAL FEES,Commercial,JOHN HARRATT,0000361534,1000.00
Department of Health,East Sussex Hospitals NHS Trust,24/04/2013,CAPITAL EXPENDITURE,Other Central,J M LOADES & ASSOCIATES LTD,0000361535,1045.00
Department of Health,East Sussex Hospitals NHS Trust,24/04/2013,CAPITAL EXPENDITURE,Other Central,J M LOADES & ASSOCIATES LTD,0000361536,997.50
Department of Health,East Sussex Hospitals NHS Trust,24/04/2013,CAPITAL EXPENDITURE,Other Central,J M LOADES & ASSOCIATES LTD,0000361537,2185.00
Department of Health,East Sussex Hospitals NHS Trust,24/04/2013,PROFESSIONAL FEES,Commercial,RICHARD WILES ASSOCIATES LTD,0000361538,3303.25
Department of Health,East Sussex Hospitals NHS Trust,24/04/2013,PROFESSIONAL FEES,Commercial,RICHARD WILES ASSOCIATES LTD,0000361539,3166.75
Department of Health,East Sussex Hospitals NHS Trust,24/04/2013,PROFESSIONAL FEES,Commercial,LAVINE CONSULTING,0000361540,1635.00
Department of Health,East Sussex Hospitals NHS Trust,24/04/2013,PROFESSIONAL FEES,Commercial,LAVINE CONSULTING,0000361541,937.50
Department of Health,East Sussex Hospitals NHS Trust,24/04/2013,PROFESSIONAL FEES,Commercial,MARK HEMSLEY,0000361542,700.00
Department of Health,East Sussex Hospitals NHS Trust,24/04/2013,PROFESSIONAL FEES,Commercial,MARK HEMSLEY,0000361543,862.50
Department of Health,East Sussex Hospitals NHS Trust,24/04/2013,AGENCY CONSULTANT,Integrated Care,PAPADI LTD,0000361546,3025.00
Department of Health,East Sussex Hospitals NHS Trust,24/04/2013,CAPITAL EXPENDITURE,Other Central,BOOKER & BEST LIMITED,0000361549,19691.53
Department of Health,East Sussex Hospitals NHS Trust,24/04/2013,LAUNDRY EQUIPMENT,Commercial,JLA TOTAL CARE LTD,0000621405,494.40
Department of Health,East Sussex Hospitals NHS Trust,24/04/2013,LAUNDRY MACHINES,Commercial,JLA TOTAL CARE LTD,0000621405,607.20
Department of Health,East Sussex Hospitals NHS Trust,24/04/2013,MAXILLO-FACIAL SURGERY,Integrated Care,CAPITAL DENTAL EQUIPMENT,0000621572,4207.00
Department of Health,East Sussex Hospitals NHS Trust,24/04/2013,POSTAGE - MAINTENANCE STOCK,Commercial,UNIVAR LTD,0000621752,859.20
Department of Health,East Sussex Hospitals NHS Trust,24/04/2013,ENGIN. PLANT/TOOL/CONSUMABLES,Commercial,UNIVAR LTD,0000621752,666.48
Department of Health,East Sussex Hospitals NHS Trust,24/04/2013,CAPITAL EXPENDITURE,Other Central,PHS COMPLIANCE,0000621794,5142.28
Department of Health,East Sussex Hospitals NHS Trust,24/04/2013,CAPITAL EXPENDITURE,Other Central,"SUSSEX TUBES, FITTING & VALVES",0000621881,1709.71
Department of Health,East Sussex Hospitals NHS Trust,24/04/2013,CAPITAL EXPENDITURE,Other Central,"SUSSEX TUBES, FITTING & VALVES",0000621882,1422.52
Department of Health,East Sussex Hospitals NHS Trust,24/04/2013,M & S EME SERVICE CONTRACT,Planned Care,EUROPA MEDICAL SERVICES,0000621886,1333.40
Department of Health,East Sussex Hospitals NHS Trust,24/04/2013,CONT.MAIN-MED & SURG EQUIP,Planned Care,EUROPA MEDICAL SERVICES,0000621886,720.00
Department of Health,East Sussex Hospitals NHS Trust,24/04/2013,PATS APPL - FOOTWARE,Integrated Care,FLORENCE J,0000754727,893.87
Department of Health,East Sussex Hospitals NHS Trust,24/04/2013,PATS APPL - FOOTWARE,Integrated Care,FLORENCE J,0000754728,546.71
Department of Health,East Sussex Hospitals NHS Trust,24/04/2013,PATS APPL - FOOTWARE,Integrated Care,FLORENCE J,0000754758,549.41
Department of Health,East Sussex Hospitals NHS Trust,24/04/2013,PATS APPL - FOOTWARE,Integrated Care,FLORENCE J,0000754760,656.67
Department of Health,East Sussex Hospitals NHS Trust,24/04/2013,PATS APPL - FOOTWARE,Integrated Care,FLORENCE J,0000754761,546.70
Department of Health,East Sussex Hospitals NHS Trust,24/04/2013,PATS APPL - FOOTWARE,Integrated Care,FLORENCE J,0000754762,734.76
Department of Health,East Sussex Hospitals NHS Trust,24/04/2013,PATS APPL - FOOTWARE,Integrated Care,FLORENCE J,0000754763,503.52
Department of Health,East Sussex Hospitals NHS Trust,24/04/2013,PROSTHESES-HIP,Planned Care,JOHNSON & JOHNSON MEDICAL LTD,0000895497,711.28
Department of Health,East Sussex Hospitals NHS Trust,24/04/2013,M&S GENERAL SUPPLIES-OTHER,Planned Care,JOHNSON & JOHNSON MEDICAL LTD,0000895650,502.38
Department of Health,East Sussex Hospitals NHS Trust,24/04/2013,LASER/LAPARASCOPIC EQUIPMENT,Planned Care,JOHNSON & JOHNSON MEDICAL LTD,0000895651,418.89
Department of Health,East Sussex Hospitals NHS Trust,24/04/2013,M&S GENERAL SUPPLIES-OTHER,Planned Care,JOHNSON & JOHNSON MEDICAL LTD,0000895651,3899.53
Department of Health,East Sussex Hospitals NHS Trust,24/04/2013,SURGICAL INSTRUMENTS,Planned Care,JOHNSON & JOHNSON MEDICAL LTD,0000895651,1013.76
Department of Health,East Sussex Hospitals NHS Trust,24/04/2013,STAPLING DEVICES,Planned Care,JOHNSON & JOHNSON MEDICAL LTD,0000895654,1817.38
Department of Health,East Sussex Hospitals NHS Trust,24/04/2013,SUTURES,Planned Care,JOHNSON & JOHNSON MEDICAL LTD,0000895665,1380.58
Department of Health,East Sussex Hospitals NHS Trust,24/04/2013,LASER/LAPARASCOPIC EQUIPMENT,Planned Care,JOHNSON & JOHNSON MEDICAL LTD,0000895665,-0.04
Department of Health,East Sussex Hospitals NHS Trust,24/04/2013,ELECTRO CONSUMABLES,Planned Care,JOHNSON & JOHNSON MEDICAL LTD,0000895665,1345.82
Department of Health,East Sussex Hospitals NHS Trust,24/04/2013,M&S GENERAL SUPPLIES-OTHER,Planned Care,JOHNSON & JOHNSON MEDICAL LTD,0000895686,1879.92
Department of Health,East Sussex Hospitals NHS Trust,24/04/2013,ELECTRO CONSUMABLES,Planned Care,JOHNSON & JOHNSON MEDICAL LTD,0000895686,362.13
Department of Health,East Sussex Hospitals NHS Trust,24/04/2013,M&S GENERAL SUPPLIES-OTHER,Planned Care,COOK (UK) LTD,0000895739,2292.00
Department of Health,East Sussex Hospitals NHS Trust,24/04/2013,M&S GENERAL SUPPLIES-OTHER,Planned Care,GAMBRO LUNDIA AB,0000896338,698.40
Department of Health,East Sussex Hospitals NHS Trust,24/04/2013,M&S GENERAL SUPPLIES-OTHER,Planned Care,GAMBRO LUNDIA AB,0000896438,1038.00
Department of Health,East Sussex Hospitals NHS Trust,24/04/2013,M&S GENERAL SUPPLIES-OTHER,Planned Care,GAMBRO LUNDIA AB,0000896439,578.40
Department of Health,East Sussex Hospitals NHS Trust,24/04/2013,DISPOSABLE DRAPES,Planned Care,MOLNLYCKE HEALTHCARE,0000896638,630.03
Department of Health,East Sussex Hospitals NHS Trust,24/04/2013,PRE-STERILE COMMERCIAL PACKS,Planned Care,MOLNLYCKE HEALTHCARE,0000896808,269.34
Department of Health,East Sussex Hospitals NHS Trust,24/04/2013,DISPOSABLE DRAPES,Planned Care,MOLNLYCKE HEALTHCARE,0000896808,650.98
Department of Health,East Sussex Hospitals NHS Trust,24/04/2013,PROSTHESIS - SHOULDERS,Planned Care,SURGICRAFT LIMITED,0000896922,927.60
Department of Health,East Sussex Hospitals NHS Trust,24/04/2013,PROSTHESES-OTHER,Planned Care,SURGICRAFT LIMITED,0000896922,23.40
Department of Health,East Sussex Hospitals NHS Trust,24/04/2013,STOCK-ASCRIBE CONQUEST,Pharmacy Stock,BRISTOL-MYERS SQUIBB PHARMACEUTICAL,0001207063,3048.12
Department of Health,East Sussex Hospitals NHS Trust,24/04/2013,STOCK-ASCRIBE CONQUEST,Pharmacy Stock,PHARMARAMA INTERNATIONAL LIMITED,0001207529,606.60
Department of Health,East Sussex Hospitals NHS Trust,24/04/2013,STOCK-ASCRIBE CONQUEST,Pharmacy Stock,BRISTOL-MYERS SQUIBB PHARMACEUTICAL,0001208351,3048.12
Department of Health,East Sussex Hospitals NHS Trust,24/04/2013,STOCK-ASCRIBE CONQUEST,Pharmacy Stock,BRISTOL-MYERS SQUIBB PHARMACEUTICAL,0001208353,2438.50
Department of Health,East Sussex Hospitals NHS Trust,24/04/2013,STOCK-ASCRIBE CONQUEST,Pharmacy Stock,BRISTOL-MYERS SQUIBB PHARMACEUTICAL,0001208420,2438.50
Department of Health,East Sussex Hospitals NHS Trust,24/04/2013,STOCK-ASCRIBE CONQUEST,Pharmacy Stock,GAMBRO LUNDIA AB,0001208576,1140.00
Department of Health,East Sussex Hospitals NHS Trust,24/04/2013,STOCK-ASCRIBE CONQUEST,Pharmacy Stock,FRESENIUS LTD,0001208868,1557.14
Department of Health,East Sussex Hospitals NHS Trust,24/04/2013,STOCK-ASCRIBE CONQUEST,Pharmacy Stock,AAH PHARMACEUTICALS LTD,0001209228,803.35
Department of Health,East Sussex Hospitals NHS Trust,24/04/2013,STOCK-ASCRIBE CONQUEST,Pharmacy Stock,AAH PHARMACEUTICALS LTD,0001209254,828.83
Department of Health,East Sussex Hospitals NHS Trust,24/04/2013,STOCK-ASCRIBE CONQUEST,Pharmacy Stock,AAH PHARMACEUTICALS LTD,0001209257,625.32
Department of Health,East Sussex Hospitals NHS Trust,24/04/2013,STOCK-ASCRIBE CONQUEST,Pharmacy Stock,AAH PHARMACEUTICALS LTD,0001209258,558.05
Department of Health,East Sussex Hospitals NHS Trust,24/04/2013,STOCK-ASCRIBE CONQUEST,Pharmacy Stock,AAH PHARMACEUTICALS LTD,0001209267,734.40
Department of Health,East Sussex Hospitals NHS Trust,24/04/2013,STOCK-ASCRIBE CONQUEST,Pharmacy Stock,AAH PHARMACEUTICALS LTD,0001209274,1206.83
Department of Health,East Sussex Hospitals NHS Trust,24/04/2013,STOCK-ASCRIBE CONQUEST,Pharmacy Stock,AAH PHARMACEUTICALS LTD,0001209275,595.58
Department of Health,East Sussex Hospitals NHS Trust,24/04/2013,STOCK-ASCRIBE CONQUEST,Pharmacy Stock,AAH PHARMACEUTICALS LTD,0001209291,606.24
Department of Health,East Sussex Hospitals NHS Trust,24/04/2013,STOCK-ASCRIBE CONQUEST,Pharmacy Stock,AAH PHARMACEUTICALS LTD,0001209296,665.52
Department of Health,East Sussex Hospitals NHS Trust,24/04/2013,STOCK-ASCRIBE CONQUEST,Pharmacy Stock,AAH PHARMACEUTICALS LTD,0001209309,1768.80
Department of Health,East Sussex Hospitals NHS Trust,24/04/2013,STOCK-ASCRIBE CONQUEST,Pharmacy Stock,AAH PHARMACEUTICALS LTD,0001209324,641.10
Department of Health,East Sussex Hospitals NHS Trust,24/04/2013,STOCK-ASCRIBE CONQUEST,Pharmacy Stock,AAH PHARMACEUTICALS LTD,0001209343,616.20
Department of Health,East Sussex Hospitals NHS Trust,24/04/2013,STOCK-ASCRIBE CONQUEST,Pharmacy Stock,AAH PHARMACEUTICALS LTD,0001209356,1318.30
Department of Health,East Sussex Hospitals NHS Trust,24/04/2013,STOCK-ASCRIBE CONQUEST,Pharmacy Stock,AAH PHARMACEUTICALS LTD,0001209358,828.83
Department of Health,East Sussex Hospitals NHS Trust,24/04/2013,STOCK-ASCRIBE CONQUEST,Pharmacy Stock,AAH PHARMACEUTICALS LTD,0001209362,1033.22
Department of Health,East Sussex Hospitals NHS Trust,24/04/2013,STOCK-ASCRIBE CONQUEST,Pharmacy Stock,AAH PHARMACEUTICALS LTD,0001209370,1755.60
Department of Health,East Sussex Hospitals NHS Trust,24/04/2013,STOCK-ASCRIBE CONQUEST,Pharmacy Stock,AAH PHARMACEUTICALS LTD,0001209379,841.09
Department of Health,East Sussex Hospitals NHS Trust,24/04/2013,STOCK-ASCRIBE CONQUEST,Pharmacy Stock,AAH PHARMACEUTICALS LTD,0001209384,505.90
Department of Health,East Sussex Hospitals NHS Trust,24/04/2013,STOCK-ASCRIBE CONQUEST,Pharmacy Stock,AAH PHARMACEUTICALS LTD,0001209408,856.80
Department of Health,East Sussex Hospitals NHS Trust,24/04/2013,STOCK-ASCRIBE CONQUEST,Pharmacy Stock,AAH PHARMACEUTICALS LTD,0001209414,1156.78
Department of Health,East Sussex Hospitals NHS Trust,24/04/2013,STOCK-ASCRIBE CONQUEST,Pharmacy Stock,AAH PHARMACEUTICALS LTD,0001209444,571.01
Department of Health,East Sussex Hospitals NHS Trust,24/04/2013,STOCK-ASCRIBE CONQUEST,Pharmacy Stock,AAH PHARMACEUTICALS LTD,0001209452,589.07
Department of Health,East Sussex Hospitals NHS Trust,24/04/2013,STOCK-ASCRIBE CONQUEST,Pharmacy Stock,AAH PHARMACEUTICALS LTD,0001209454,572.54
Department of Health,East Sussex Hospitals NHS Trust,24/04/2013,STOCK-ASCRIBE CONQUEST,Pharmacy Stock,AAH PHARMACEUTICALS LTD,0001209464,908.50
Department of Health,East Sussex Hospitals NHS Trust,24/04/2013,STOCK-ASCRIBE CONQUEST,Pharmacy Stock,AAH PHARMACEUTICALS LTD,0001209469,525.90
Department of Health,East Sussex Hospitals NHS Trust,24/04/2013,STOCK-ASCRIBE CONQUEST,Pharmacy Stock,AAH PHARMACEUTICALS LTD,0001209472,588.00
Department of Health,East Sussex Hospitals NHS Trust,24/04/2013,STOCK-ASCRIBE CONQUEST,Pharmacy Stock,AAH PHARMACEUTICALS LTD,0001209475,556.56
Department of Health,East Sussex Hospitals NHS Trust,24/04/2013,STOCK-ASCRIBE CONQUEST,Pharmacy Stock,AAH PHARMACEUTICALS LTD,0001209483,645.77
Department of Health,East Sussex Hospitals NHS Trust,24/04/2013,STOCK-ASCRIBE CONQUEST,Pharmacy Stock,AAH PHARMACEUTICALS LTD,0001209488,827.40
Department of Health,East Sussex Hospitals NHS Trust,24/04/2013,STOCK-ASCRIBE CONQUEST,Pharmacy Stock,AAH PHARMACEUTICALS LTD,0001209492,720.00
